{"text_format":"1","workbook":"xlsx","n_sheets":9,"sheets":["RESULTADOS","LISTADO","EQUIPOS","C1 A C","C1 A L","C1 A L S","C2 A C","C2 A L","Categorías"],"not_rendered":{"charts":0,"images":3,"macros":1,"external_links":0,"defined_names":96,"comments":0,"pivot_tables":0},"unopened":[],"bounds":{"document_bytes":16777216,"sheet_cells":100000,"rows_first":2000,"rows_last":500,"rows_between":2000,"halvings":0,"cell_chars":16384,"cell_head_chars":4096},"cells_cut":0,"cells_raw":0,"read":"whole","date_system":"1900"}

{"sheet":"RESULTADOS","index":0,"n_rows":75,"n_cols":7,"rows_kept":75,"cut":false,"hidden":false,"merged":[[1,0,1,5],[2,0,2,5],[3,0,3,5],[18,0,18,5],[19,0,19,5],[22,0,22,5],[17,0,17,5],[6,0,6,5],[10,0,10,5],[13,0,13,5],[26,0,26,5],[27,0,27,5],[28,0,28,5],[32,0,32,5],[59,0,59,5],[42,0,42,5],[49,0,49,5],[36,0,36,3],[33,0,33,5],[34,0,34,5],[57,0,57,5],[58,0,58,5]]}
[]
["COPA CENTRO AGRICOLA"]
["I CHONE 11/02/2017, HCDA. SAN BERNARDO"]
["RESULTADOS"]
[]
["POSICION","NOMBRE DEL JINETE","NOMBRE DEL CABALLO","EQUIPO","PUNTAJE","TIEMPO ","T. TOTAL DE RECUPERACIÓN"]
["CATEGORÍA:   CHASQUI 2 ABIERTA VELOCIDAD LIBRE"]
[1,"MORABOWEN CESAR","BULERIA","",160,0.16457175925925921]
[2,"VINTIMILLA PABLO","BIANCA","ENDURNACE AZUAY",152,0.18042824074074065]
[3,"ALMEIDA AYALA HECTOR","SC SADIQ","ENDURNACE AZUAY",144,0.23063657407407406]
["CATEGORÍA:   CHASQUI 1 (60 A 79 Km) ABIERTA  VELOCIDAD LIBRE"]
[1,"VELEZ MENA MARIA CONSUELO","AISHA","ENDURANCE AZUAY",120,0.13057870370370364]
[2,"MALO ANDREA","SANTOO","",114,0.13059027777777779]
["CATEGORÍA:   CHASQUI 1 (40 a 59 Km) ABIERTA VELOCIDAD LIBRE"]
[1,"LOYOLA MARIA CLAUDIA","PATACON","ENDURANCE AZUAY",80,8.0162037037037046E-2]
[2,"LOZADA JOSE ARMANDO","ABUDABI","",76,8.1898148148148095E-2]
[]
["COPA CENTRO AGRICOLA"]
["I CHONE 11/02/2017, HCDA. SAN BERNARDO"]
["RESULTADOS"]
[]
["POSICION","NOMBRE DEL JINETE","NOMBRE DEL CABALLO","EQUIPO",null,"TIEMPO ","T. TOTAL DE RECUPERACIÓN"]
["CATEGORÍA:   CHASQUI 1 (40 a 59 Km)  ABIERTA NOVICIOS"]
[null,"VINTIMILLA PAULINO","SA DREAMSHA","",64,0.11173611111111113]
[null,"ESTRADA CARLOS","SC SHADID","",64,0.11180555555555559]
[]
["COPA CENTRO AGRICOLA"]
["I CHONE 11/02/2017, HCDA. SAN BERNARDO"]
["RESULTADOS"]
[]
["POSICION","NOMBRE DEL JINETE","NOMBRE DEL CABALLO","EQUIPO",null,"TIEMPO"]
[]
["COPA CENTRO AGRICOLA"]
["I CHONE 11/02/2017, HCDA. SAN BERNARDO"]
["RESULTADOS"]
[]
["                          EQUIPOS",null,null,null,null,"PUNTAJE"]
[1,null,"ENDURANCE AZUAY",null,null,416]
[2,null,"ZZ",null,null,0]
[3,null,"ZZ",null,null,0]
[4,null,"ZZ",null,null,0]
[5,null,"ZZ",null,null,0]
["MEJOR CONDICIÓN FISICA    CABALLOS, CATEGORÍAS JUVENILES"]
["POSICION","NOMBRE DEL CABALLO","NOMBRE DEL JINETE","EQUIPO",null,"PUNTAJE"]
[1,"","","",null,""]
[2,"","","",null,""]
[3,"","","",null,""]
[4,"","","",null,""]
[5,"","","",null,""]
["MEJOR CONDICIÓN FISICA    CABALLOS, CATEGORÍAS ABIERTA"]
["POSICION","NOMBRE DEL CABALLO","NOMBRE DEL JINETE","EQUIPO",null,"PUNTAJE"]
[1,"","","",null,""]
[2,"","","",null,""]
[3,"","","",null,"","NOMBRE DEL JINETE"]
[4,"","","",null,""]
[5,"","","",null,""]
[]
["COPA CENTRO AGRICOLA"]
["I CHONE 11/02/2017, HCDA. SAN BERNARDO"]
["E S T A D I S T I C A S"]
[]
[null,null,"PARTICIPANTES","PORCENTAJE"]
[1,"DESCALIFICADOS",2,0.14285714285714285]
[2,"ELIMINADOS POR P. METABÓLICOS",0,0]
[3,"ELIMINADOS POR CLAUDICACIÓN",2,0.14285714285714285]
[4,"E. EXCESO EN TIEMPO DE RECUPERACIÓN",0,0]
[5,"E POR EXCESO DE VELOCIDAD",1,7.1428571428571425E-2]
[6,"ELIMINADOS POR LENTÍSIMOS",0,0]
[7,"ELIMINADOS POR PISTA",0,0]
[8,"SUBTOTAL ELIMINADOS Y DESCALIFICADOS",5,0.35714285714285715]
[9,"NO FINALIZARON",0,0,null,""]
[10,"NO PARTICIPARON",0,0,null,""]
[null,null,null,0]
[11,"CLASIFICADOS",9,0.6428571428571429,null,""]
[12,"TOTAL DE INSCRITOS",14,1,null,""]

{"sheet":"LISTADO","index":1,"n_rows":206,"n_cols":7,"rows_kept":206,"cut":false,"hidden":true,"merged":[[1,0,1,6]]}
[]
["RESPALDO MANUAL"]
[]
[]
[]
["CODIGO","Nº","PRIMERA ETAPA","SEGUNDA ETAPA","TERCERA ETAPA","CUARTA ETAPA","QUINTA ETAPA"]
[{"$f":"+IF(#REF!=\"\",\"Z\",#REF!)","v":{"$error":"#REF!"}},{"$f":"+IF(#REF!=\"\",\"\",#REF!)","v":{"$error":"#REF!"}}]
[{"$f":"+IF(#REF!=\"\",\"Z\",#REF!)","v":{"$error":"#REF!"}},{"$f":"+IF(#REF!=\"\",\"\",#REF!)","v":{"$error":"#REF!"}}]
[{"$f":"+IF(#REF!=\"\",\"Z\",#REF!)","v":{"$error":"#REF!"}},{"$f":"+IF(#REF!=\"\",\"\",#REF!)","v":{"$error":"#REF!"}}]
[{"$f":"+IF(#REF!=\"\",\"Z\",#REF!)","v":{"$error":"#REF!"}},{"$f":"+IF(#REF!=\"\",\"\",#REF!)","v":{"$error":"#REF!"}}]
[{"$f":"+IF(#REF!=\"\",\"Z\",#REF!)","v":{"$error":"#REF!"}},{"$f":"+IF(#REF!=\"\",\"\",#REF!)","v":{"$error":"#REF!"}}]
[{"$f":"+IF(#REF!=\"\",\"Z\",#REF!)","v":{"$error":"#REF!"}},{"$f":"+IF(#REF!=\"\",\"\",#REF!)","v":{"$error":"#REF!"}}]
[{"$f":"+IF(#REF!=\"\",\"Z\",#REF!)","v":{"$error":"#REF!"}},{"$f":"+IF(#REF!=\"\",\"\",#REF!)","v":{"$error":"#REF!"}}]
[{"$f":"+IF(#REF!=\"\",\"Z\",#REF!)","v":{"$error":"#REF!"}},{"$f":"+IF(#REF!=\"\",\"\",#REF!)","v":{"$error":"#REF!"}}]
[{"$f":"+IF(#REF!=\"\",\"Z\",#REF!)","v":{"$error":"#REF!"}},{"$f":"+IF(#REF!=\"\",\"\",#REF!)","v":{"$error":"#REF!"}}]
[{"$f":"+IF(#REF!=\"\",\"Z\",#REF!)","v":{"$error":"#REF!"}},{"$f":"+IF(#REF!=\"\",\"\",#REF!)","v":{"$error":"#REF!"}}]
[{"$f":"+IF(#REF!=\"\",\"Z\",#REF!)","v":{"$error":"#REF!"}},{"$f":"+IF(#REF!=\"\",\"\",#REF!)","v":{"$error":"#REF!"}}]
[{"$f":"+IF(#REF!=\"\",\"Z\",#REF!)","v":{"$error":"#REF!"}},{"$f":"+IF(#REF!=\"\",\"\",#REF!)","v":{"$error":"#REF!"}}]
[{"$f":"+IF(#REF!=\"\",\"Z\",#REF!)","v":{"$error":"#REF!"}},{"$f":"+IF(#REF!=\"\",\"\",#REF!)","v":{"$error":"#REF!"}}]
[{"$f":"+IF(#REF!=\"\",\"Z\",#REF!)","v":{"$error":"#REF!"}},{"$f":"+IF(#REF!=\"\",\"\",#REF!)","v":{"$error":"#REF!"}}]
[{"$f":"+IF(#REF!=\"\",\"Z\",#REF!)","v":{"$error":"#REF!"}},{"$f":"+IF(#REF!=\"\",\"\",#REF!)","v":{"$error":"#REF!"}}]
[{"$f":"+IF(#REF!=\"\",\"Z\",#REF!)","v":{"$error":"#REF!"}},{"$f":"+IF(#REF!=\"\",\"\",#REF!)","v":{"$error":"#REF!"}}]
[{"$f":"+IF(#REF!=\"\",\"Z\",#REF!)","v":{"$error":"#REF!"}},{"$f":"+IF(#REF!=\"\",\"\",#REF!)","v":{"$error":"#REF!"}}]
[{"$f":"+IF(#REF!=\"\",\"Z\",#REF!)","v":{"$error":"#REF!"}},{"$f":"+IF(#REF!=\"\",\"\",#REF!)","v":{"$error":"#REF!"}}]
[{"$f":"+IF(#REF!=\"\",\"Z\",#REF!)","v":{"$error":"#REF!"}},{"$f":"+IF(#REF!=\"\",\"\",#REF!)","v":{"$error":"#REF!"}}]
[{"$f":"+IF(#REF!=\"\",\"Z\",#REF!)","v":{"$error":"#REF!"}},{"$f":"+IF(#REF!=\"\",\"\",#REF!)","v":{"$error":"#REF!"}}]
[{"$f":"+IF(#REF!=\"\",\"Z\",#REF!)","v":{"$error":"#REF!"}},{"$f":"+IF(#REF!=\"\",\"\",#REF!)","v":{"$error":"#REF!"}}]
[{"$f":"+IF(#REF!=\"\",\"Z\",#REF!)","v":{"$error":"#REF!"}},{"$f":"+IF(#REF!=\"\",\"\",#REF!)","v":{"$error":"#REF!"}}]
[{"$f":"+IF(#REF!=\"\",\"Z\",#REF!)","v":{"$error":"#REF!"}},{"$f":"+IF(#REF!=\"\",\"\",#REF!)","v":{"$error":"#REF!"}}]
[{"$f":"+IF(#REF!=\"\",\"Z\",#REF!)","v":{"$error":"#REF!"}},{"$f":"+IF(#REF!=\"\",\"\",#REF!)","v":{"$error":"#REF!"}}]
[{"$f":"+IF(#REF!=\"\",\"Z\",#REF!)","v":{"$error":"#REF!"}},{"$f":"+IF(#REF!=\"\",\"\",#REF!)","v":{"$error":"#REF!"}}]
[{"$f":"+IF(#REF!=\"\",\"Z\",#REF!)","v":{"$error":"#REF!"}},{"$f":"+IF(#REF!=\"\",\"\",#REF!)","v":{"$error":"#REF!"}}]
[{"$f":"+IF(#REF!=\"\",\"Z\",#REF!)","v":{"$error":"#REF!"}},{"$f":"+IF(#REF!=\"\",\"\",#REF!)","v":{"$error":"#REF!"}}]
[{"$f":"+IF(#REF!=\"\",\"Z\",#REF!)","v":{"$error":"#REF!"}},{"$f":"+IF(#REF!=\"\",\"\",#REF!)","v":{"$error":"#REF!"}}]
[{"$f":"+IF(#REF!=\"\",\"Z\",#REF!)","v":{"$error":"#REF!"}},{"$f":"+IF(#REF!=\"\",\"\",#REF!)","v":{"$error":"#REF!"}}]
[{"$f":"+IF(#REF!=\"\",\"Z\",#REF!)","v":{"$error":"#REF!"}},{"$f":"+IF(#REF!=\"\",\"\",#REF!)","v":{"$error":"#REF!"}}]
[{"$f":"+IF(#REF!=\"\",\"Z\",#REF!)","v":{"$error":"#REF!"}},{"$f":"+IF(#REF!=\"\",\"\",#REF!)","v":{"$error":"#REF!"}}]
[{"$f":"+IF(#REF!=\"\",\"Z\",#REF!)","v":{"$error":"#REF!"}},{"$f":"+IF(#REF!=\"\",\"\",#REF!)","v":{"$error":"#REF!"}}]
[{"$f":"+IF(#REF!=\"\",\"Z\",#REF!)","v":{"$error":"#REF!"}},{"$f":"+IF(#REF!=\"\",\"\",#REF!)","v":{"$error":"#REF!"}}]
[{"$f":"+IF(#REF!=\"\",\"Z\",#REF!)","v":{"$error":"#REF!"}},{"$f":"+IF(#REF!=\"\",\"\",#REF!)","v":{"$error":"#REF!"}}]
[{"$f":"+IF(#REF!=\"\",\"Z\",#REF!)","v":{"$error":"#REF!"}},{"$f":"+IF(#REF!=\"\",\"\",#REF!)","v":{"$error":"#REF!"}}]
[{"$f":"+IF(#REF!=\"\",\"Z\",#REF!)","v":{"$error":"#REF!"}},{"$f":"+IF(#REF!=\"\",\"\",#REF!)","v":{"$error":"#REF!"}}]
[{"$f":"+IF(#REF!=\"\",\"Z\",#REF!)","v":{"$error":"#REF!"}},{"$f":"+IF(#REF!=\"\",\"\",#REF!)","v":{"$error":"#REF!"}}]
[{"$f":"+IF(#REF!=\"\",\"Z\",#REF!)","v":{"$error":"#REF!"}},{"$f":"+IF(#REF!=\"\",\"\",#REF!)","v":{"$error":"#REF!"}}]
[{"$f":"+IF(#REF!=\"\",\"Z\",#REF!)","v":{"$error":"#REF!"}},{"$f":"+IF(#REF!=\"\",\"\",#REF!)","v":{"$error":"#REF!"}}]
[{"$f":"+IF(#REF!=\"\",\"Z\",#REF!)","v":{"$error":"#REF!"}},{"$f":"+IF(#REF!=\"\",\"\",#REF!)","v":{"$error":"#REF!"}}]
[{"$f":"+IF(#REF!=\"\",\"Z\",#REF!)","v":{"$error":"#REF!"}},{"$f":"+IF(#REF!=\"\",\"\",#REF!)","v":{"$error":"#REF!"}}]
[{"$f":"+IF(#REF!=\"\",\"Z\",#REF!)","v":{"$error":"#REF!"}},{"$f":"+IF(#REF!=\"\",\"\",#REF!)","v":{"$error":"#REF!"}}]
[{"$f":"+IF(#REF!=\"\",\"Z\",#REF!)","v":{"$error":"#REF!"}},{"$f":"+IF(#REF!=\"\",\"\",#REF!)","v":{"$error":"#REF!"}}]
[{"$f":"+IF(#REF!=\"\",\"Z\",#REF!)","v":{"$error":"#REF!"}},{"$f":"+IF(#REF!=\"\",\"\",#REF!)","v":{"$error":"#REF!"}}]
[{"$f":"+IF(#REF!=\"\",\"Z\",#REF!)","v":{"$error":"#REF!"}},{"$f":"+IF(#REF!=\"\",\"\",#REF!)","v":{"$error":"#REF!"}}]
[{"$f":"+IF(#REF!=\"\",\"Z\",#REF!)","v":{"$error":"#REF!"}},{"$f":"+IF(#REF!=\"\",\"\",#REF!)","v":{"$error":"#REF!"}}]
[{"$f":"+IF(#REF!=\"\",\"Z\",#REF!)","v":{"$error":"#REF!"}},{"$f":"+IF(#REF!=\"\",\"\",#REF!)","v":{"$error":"#REF!"}}]
[{"$f":"+IF(#REF!=\"\",\"Z\",#REF!)","v":{"$error":"#REF!"}},{"$f":"+IF(#REF!=\"\",\"\",#REF!)","v":{"$error":"#REF!"}}]
[{"$f":"+IF(#REF!=\"\",\"Z\",#REF!)","v":{"$error":"#REF!"}},{"$f":"+IF(#REF!=\"\",\"\",#REF!)","v":{"$error":"#REF!"}}]
[{"$f":"+IF(#REF!=\"\",\"Z\",#REF!)","v":{"$error":"#REF!"}},{"$f":"+IF(#REF!=\"\",\"\",#REF!)","v":{"$error":"#REF!"}}]
[{"$f":"+IF(#REF!=\"\",\"Z\",#REF!)","v":{"$error":"#REF!"}},{"$f":"+IF(#REF!=\"\",\"\",#REF!)","v":{"$error":"#REF!"}}]
[{"$f":"+IF(#REF!=\"\",\"Z\",#REF!)","v":{"$error":"#REF!"}},{"$f":"+IF(#REF!=\"\",\"\",#REF!)","v":{"$error":"#REF!"}}]
[{"$f":"+IF(#REF!=\"\",\"Z\",#REF!)","v":{"$error":"#REF!"}},{"$f":"+IF(#REF!=\"\",\"\",#REF!)","v":{"$error":"#REF!"}}]
[{"$f":"+IF(#REF!=\"\",\"Z\",#REF!)","v":{"$error":"#REF!"}},{"$f":"+IF(#REF!=\"\",\"\",#REF!)","v":{"$error":"#REF!"}}]
[{"$f":"+IF(#REF!=\"\",\"Z\",#REF!)","v":{"$error":"#REF!"}},{"$f":"+IF(#REF!=\"\",\"\",#REF!)","v":{"$error":"#REF!"}}]
[{"$f":"+IF(#REF!=\"\",\"Z\",#REF!)","v":{"$error":"#REF!"}},{"$f":"+IF(#REF!=\"\",\"\",#REF!)","v":{"$error":"#REF!"}}]
[{"$f":"+IF(#REF!=\"\",\"Z\",#REF!)","v":{"$error":"#REF!"}},{"$f":"+IF(#REF!=\"\",\"\",#REF!)","v":{"$error":"#REF!"}}]
[{"$f":"+IF(#REF!=\"\",\"Z\",#REF!)","v":{"$error":"#REF!"}},{"$f":"+IF(#REF!=\"\",\"\",#REF!)","v":{"$error":"#REF!"}}]
[{"$f":"+IF(#REF!=\"\",\"Z\",#REF!)","v":{"$error":"#REF!"}},{"$f":"+IF(#REF!=\"\",\"\",#REF!)","v":{"$error":"#REF!"}}]
[{"$f":"+IF(#REF!=\"\",\"Z\",#REF!)","v":{"$error":"#REF!"}},{"$f":"+IF(#REF!=\"\",\"\",#REF!)","v":{"$error":"#REF!"}}]
[{"$f":"+IF(#REF!=\"\",\"Z\",#REF!)","v":{"$error":"#REF!"}},{"$f":"+IF(#REF!=\"\",\"\",#REF!)","v":{"$error":"#REF!"}}]
[{"$f":"+IF(#REF!=\"\",\"Z\",#REF!)","v":{"$error":"#REF!"}},{"$f":"+IF(#REF!=\"\",\"\",#REF!)","v":{"$error":"#REF!"}}]
[{"$f":"+IF(#REF!=\"\",\"Z\",#REF!)","v":{"$error":"#REF!"}},{"$f":"+IF(#REF!=\"\",\"\",#REF!)","v":{"$error":"#REF!"}}]
[{"$f":"+IF(#REF!=\"\",\"Z\",#REF!)","v":{"$error":"#REF!"}},{"$f":"+IF(#REF!=\"\",\"\",#REF!)","v":{"$error":"#REF!"}}]
[{"$f":"+IF(#REF!=\"\",\"Z\",#REF!)","v":{"$error":"#REF!"}},{"$f":"+IF(#REF!=\"\",\"\",#REF!)","v":{"$error":"#REF!"}}]
[{"$f":"+IF(#REF!=\"\",\"Z\",#REF!)","v":{"$error":"#REF!"}},{"$f":"+IF(#REF!=\"\",\"\",#REF!)","v":{"$error":"#REF!"}}]
[{"$f":"+IF(#REF!=\"\",\"Z\",#REF!)","v":{"$error":"#REF!"}},{"$f":"+IF(#REF!=\"\",\"\",#REF!)","v":{"$error":"#REF!"}}]
[{"$f":"+IF(#REF!=\"\",\"Z\",#REF!)","v":{"$error":"#REF!"}},{"$f":"+IF(#REF!=\"\",\"\",#REF!)","v":{"$error":"#REF!"}}]
[{"$f":"+IF(#REF!=\"\",\"Z\",#REF!)","v":{"$error":"#REF!"}},{"$f":"+IF(#REF!=\"\",\"\",#REF!)","v":{"$error":"#REF!"}}]
[{"$f":"+IF(#REF!=\"\",\"Z\",#REF!)","v":{"$error":"#REF!"}},{"$f":"+IF(#REF!=\"\",\"\",#REF!)","v":{"$error":"#REF!"}}]
[{"$f":"+IF(#REF!=\"\",\"Z\",#REF!)","v":{"$error":"#REF!"}},{"$f":"+IF(#REF!=\"\",\"\",#REF!)","v":{"$error":"#REF!"}}]
[{"$f":"+IF(#REF!=\"\",\"Z\",#REF!)","v":{"$error":"#REF!"}},{"$f":"+IF(#REF!=\"\",\"\",#REF!)","v":{"$error":"#REF!"}}]
[{"$f":"+IF(#REF!=\"\",\"Z\",#REF!)","v":{"$error":"#REF!"}},{"$f":"+IF(#REF!=\"\",\"\",#REF!)","v":{"$error":"#REF!"}}]
[{"$f":"+IF(#REF!=\"\",\"Z\",#REF!)","v":{"$error":"#REF!"}},{"$f":"+IF(#REF!=\"\",\"\",#REF!)","v":{"$error":"#REF!"}}]
[{"$f":"+IF(#REF!=\"\",\"Z\",#REF!)","v":{"$error":"#REF!"}},{"$f":"+IF(#REF!=\"\",\"\",#REF!)","v":{"$error":"#REF!"}}]
[{"$f":"+IF(#REF!=\"\",\"Z\",#REF!)","v":{"$error":"#REF!"}},{"$f":"+IF(#REF!=\"\",\"\",#REF!)","v":{"$error":"#REF!"}}]
[{"$f":"+IF(#REF!=\"\",\"Z\",#REF!)","v":{"$error":"#REF!"}},{"$f":"+IF(#REF!=\"\",\"\",#REF!)","v":{"$error":"#REF!"}}]
[{"$f":"+IF(#REF!=\"\",\"Z\",#REF!)","v":{"$error":"#REF!"}},{"$f":"+IF(#REF!=\"\",\"\",#REF!)","v":{"$error":"#REF!"}}]
[{"$f":"+IF(#REF!=\"\",\"Z\",#REF!)","v":{"$error":"#REF!"}},{"$f":"+IF(#REF!=\"\",\"\",#REF!)","v":{"$error":"#REF!"}}]
[{"$f":"+IF(#REF!=\"\",\"Z\",#REF!)","v":{"$error":"#REF!"}},{"$f":"+IF(#REF!=\"\",\"\",#REF!)","v":{"$error":"#REF!"}}]
[{"$f":"+IF(#REF!=\"\",\"Z\",#REF!)","v":{"$error":"#REF!"}},{"$f":"+IF(#REF!=\"\",\"\",#REF!)","v":{"$error":"#REF!"}}]
[{"$f":"+IF(#REF!=\"\",\"Z\",#REF!)","v":{"$error":"#REF!"}},{"$f":"+IF(#REF!=\"\",\"\",#REF!)","v":{"$error":"#REF!"}}]
[{"$f":"+IF(#REF!=\"\",\"Z\",#REF!)","v":{"$error":"#REF!"}},{"$f":"+IF(#REF!=\"\",\"\",#REF!)","v":{"$error":"#REF!"}}]
[{"$f":"+IF(#REF!=\"\",\"Z\",#REF!)","v":{"$error":"#REF!"}},{"$f":"+IF(#REF!=\"\",\"\",#REF!)","v":{"$error":"#REF!"}}]
[{"$f":"+IF(#REF!=\"\",\"Z\",#REF!)","v":{"$error":"#REF!"}},{"$f":"+IF(#REF!=\"\",\"\",#REF!)","v":{"$error":"#REF!"}}]
[{"$f":"+IF(#REF!=\"\",\"Z\",#REF!)","v":{"$error":"#REF!"}},{"$f":"+IF(#REF!=\"\",\"\",#REF!)","v":{"$error":"#REF!"}}]
[{"$f":"+IF(#REF!=\"\",\"Z\",#REF!)","v":{"$error":"#REF!"}},{"$f":"+IF(#REF!=\"\",\"\",#REF!)","v":{"$error":"#REF!"}}]
[{"$f":"+IF(#REF!=\"\",\"Z\",#REF!)","v":{"$error":"#REF!"}},{"$f":"+IF(#REF!=\"\",\"\",#REF!)","v":{"$error":"#REF!"}}]
[{"$f":"+IF(#REF!=\"\",\"Z\",#REF!)","v":{"$error":"#REF!"}},{"$f":"+IF(#REF!=\"\",\"\",#REF!)","v":{"$error":"#REF!"}}]
[{"$f":"+IF(#REF!=\"\",\"Z\",#REF!)","v":{"$error":"#REF!"}},{"$f":"+IF(#REF!=\"\",\"\",#REF!)","v":{"$error":"#REF!"}}]
[{"$f":"+IF(#REF!=\"\",\"Z\",#REF!)","v":{"$error":"#REF!"}},{"$f":"+IF(#REF!=\"\",\"\",#REF!)","v":{"$error":"#REF!"}}]
[{"$f":"+IF(#REF!=\"\",\"Z\",#REF!)","v":{"$error":"#REF!"}},{"$f":"+IF(#REF!=\"\",\"\",#REF!)","v":{"$error":"#REF!"}}]
[{"$f":"+IF(#REF!=\"\",\"Z\",#REF!)","v":{"$error":"#REF!"}},{"$f":"+IF(#REF!=\"\",\"\",#REF!)","v":{"$error":"#REF!"}}]
[{"$f":"+IF(#REF!=\"\",\"Z\",#REF!)","v":{"$error":"#REF!"}},{"$f":"+IF(#REF!=\"\",\"\",#REF!)","v":{"$error":"#REF!"}}]
[{"$f":"+IF(#REF!=\"\",\"Z\",#REF!)","v":{"$error":"#REF!"}},{"$f":"+IF(#REF!=\"\",\"\",#REF!)","v":{"$error":"#REF!"}}]
[{"$f":"+IF(#REF!=\"\",\"Z\",#REF!)","v":{"$error":"#REF!"}},{"$f":"+IF(#REF!=\"\",\"\",#REF!)","v":{"$error":"#REF!"}}]
[{"$f":"+IF(#REF!=\"\",\"Z\",#REF!)","v":{"$error":"#REF!"}},{"$f":"+IF(#REF!=\"\",\"\",#REF!)","v":{"$error":"#REF!"}}]
[{"$f":"+IF(#REF!=\"\",\"Z\",#REF!)","v":{"$error":"#REF!"}},{"$f":"+IF(#REF!=\"\",\"\",#REF!)","v":{"$error":"#REF!"}}]
[{"$f":"+IF(#REF!=\"\",\"Z\",#REF!)","v":{"$error":"#REF!"}},{"$f":"+IF(#REF!=\"\",\"\",#REF!)","v":{"$error":"#REF!"}}]
[{"$f":"+IF(#REF!=\"\",\"Z\",#REF!)","v":{"$error":"#REF!"}},{"$f":"+IF(#REF!=\"\",\"\",#REF!)","v":{"$error":"#REF!"}}]
[{"$f":"+IF(#REF!=\"\",\"Z\",#REF!)","v":{"$error":"#REF!"}},{"$f":"+IF(#REF!=\"\",\"\",#REF!)","v":{"$error":"#REF!"}}]
[{"$f":"+IF(#REF!=\"\",\"Z\",#REF!)","v":{"$error":"#REF!"}},{"$f":"+IF(#REF!=\"\",\"\",#REF!)","v":{"$error":"#REF!"}}]
[{"$f":"+IF(#REF!=\"\",\"Z\",#REF!)","v":{"$error":"#REF!"}},{"$f":"+IF(#REF!=\"\",\"\",#REF!)","v":{"$error":"#REF!"}}]
[{"$f":"+IF(#REF!=\"\",\"Z\",#REF!)","v":{"$error":"#REF!"}},{"$f":"+IF(#REF!=\"\",\"\",#REF!)","v":{"$error":"#REF!"}}]
[{"$f":"+IF(#REF!=\"\",\"Z\",#REF!)","v":{"$error":"#REF!"}},{"$f":"+IF(#REF!=\"\",\"\",#REF!)","v":{"$error":"#REF!"}}]
[{"$f":"+IF(#REF!=\"\",\"Z\",#REF!)","v":{"$error":"#REF!"}},{"$f":"+IF(#REF!=\"\",\"\",#REF!)","v":{"$error":"#REF!"}}]
[{"$f":"+IF(#REF!=\"\",\"Z\",#REF!)","v":{"$error":"#REF!"}},{"$f":"+IF(#REF!=\"\",\"\",#REF!)","v":{"$error":"#REF!"}}]
[{"$f":"+IF(#REF!=\"\",\"Z\",#REF!)","v":{"$error":"#REF!"}},{"$f":"+IF(#REF!=\"\",\"\",#REF!)","v":{"$error":"#REF!"}}]
[{"$f":"+IF(#REF!=\"\",\"Z\",#REF!)","v":{"$error":"#REF!"}},{"$f":"+IF(#REF!=\"\",\"\",#REF!)","v":{"$error":"#REF!"}}]
[{"$f":"+IF(#REF!=\"\",\"Z\",#REF!)","v":{"$error":"#REF!"}},{"$f":"+IF(#REF!=\"\",\"\",#REF!)","v":{"$error":"#REF!"}}]
[{"$f":"+IF(#REF!=\"\",\"Z\",#REF!)","v":{"$error":"#REF!"}},{"$f":"+IF(#REF!=\"\",\"\",#REF!)","v":{"$error":"#REF!"}}]
[{"$f":"+IF(#REF!=\"\",\"Z\",#REF!)","v":{"$error":"#REF!"}},{"$f":"+IF(#REF!=\"\",\"\",#REF!)","v":{"$error":"#REF!"}}]
[{"$f":"+IF(#REF!=\"\",\"Z\",#REF!)","v":{"$error":"#REF!"}},{"$f":"+IF(#REF!=\"\",\"\",#REF!)","v":{"$error":"#REF!"}}]
[{"$f":"+IF(#REF!=\"\",\"Z\",#REF!)","v":{"$error":"#REF!"}},{"$f":"+IF(#REF!=\"\",\"\",#REF!)","v":{"$error":"#REF!"}}]
[{"$f":"+IF(#REF!=\"\",\"Z\",#REF!)","v":{"$error":"#REF!"}},{"$f":"+IF(#REF!=\"\",\"\",#REF!)","v":{"$error":"#REF!"}}]
[{"$f":"+IF(#REF!=\"\",\"Z\",#REF!)","v":{"$error":"#REF!"}},{"$f":"+IF(#REF!=\"\",\"\",#REF!)","v":{"$error":"#REF!"}}]
[{"$f":"+IF(#REF!=\"\",\"Z\",#REF!)","v":{"$error":"#REF!"}},{"$f":"+IF(#REF!=\"\",\"\",#REF!)","v":{"$error":"#REF!"}}]
[{"$f":"+IF(#REF!=\"\",\"Z\",#REF!)","v":{"$error":"#REF!"}},{"$f":"+IF(#REF!=\"\",\"\",#REF!)","v":{"$error":"#REF!"}}]
[{"$f":"+IF(#REF!=\"\",\"Z\",#REF!)","v":{"$error":"#REF!"}},{"$f":"+IF(#REF!=\"\",\"\",#REF!)","v":{"$error":"#REF!"}}]
[{"$f":"+IF(#REF!=\"\",\"Z\",#REF!)","v":{"$error":"#REF!"}},{"$f":"+IF(#REF!=\"\",\"\",#REF!)","v":{"$error":"#REF!"}}]
[{"$f":"+IF(#REF!=\"\",\"Z\",#REF!)","v":{"$error":"#REF!"}},{"$f":"+IF(#REF!=\"\",\"\",#REF!)","v":{"$error":"#REF!"}}]
[{"$f":"+IF(#REF!=\"\",\"Z\",#REF!)","v":{"$error":"#REF!"}},{"$f":"+IF(#REF!=\"\",\"\",#REF!)","v":{"$error":"#REF!"}}]
[{"$f":"+IF(#REF!=\"\",\"Z\",#REF!)","v":{"$error":"#REF!"}},{"$f":"+IF(#REF!=\"\",\"\",#REF!)","v":{"$error":"#REF!"}}]
[{"$f":"+IF(#REF!=\"\",\"Z\",#REF!)","v":{"$error":"#REF!"}},{"$f":"+IF(#REF!=\"\",\"\",#REF!)","v":{"$error":"#REF!"}}]
[{"$f":"+IF(#REF!=\"\",\"Z\",#REF!)","v":{"$error":"#REF!"}},{"$f":"+IF(#REF!=\"\",\"\",#REF!)","v":{"$error":"#REF!"}}]
[{"$f":"+IF(#REF!=\"\",\"Z\",#REF!)","v":{"$error":"#REF!"}},{"$f":"+IF(#REF!=\"\",\"\",#REF!)","v":{"$error":"#REF!"}}]
[{"$f":"+IF(#REF!=\"\",\"Z\",#REF!)","v":{"$error":"#REF!"}},{"$f":"+IF(#REF!=\"\",\"\",#REF!)","v":{"$error":"#REF!"}}]
[{"$f":"+IF(#REF!=\"\",\"Z\",#REF!)","v":{"$error":"#REF!"}},{"$f":"+IF(#REF!=\"\",\"\",#REF!)","v":{"$error":"#REF!"}}]
[{"$f":"+IF(#REF!=\"\",\"Z\",#REF!)","v":{"$error":"#REF!"}},{"$f":"+IF(#REF!=\"\",\"\",#REF!)","v":{"$error":"#REF!"}}]
[{"$f":"+IF(#REF!=\"\",\"Z\",#REF!)","v":{"$error":"#REF!"}},{"$f":"+IF(#REF!=\"\",\"\",#REF!)","v":{"$error":"#REF!"}}]
[{"$f":"+IF(#REF!=\"\",\"Z\",#REF!)","v":{"$error":"#REF!"}},{"$f":"+IF(#REF!=\"\",\"\",#REF!)","v":{"$error":"#REF!"}}]
[{"$f":"+IF(#REF!=\"\",\"Z\",#REF!)","v":{"$error":"#REF!"}},{"$f":"+IF(#REF!=\"\",\"\",#REF!)","v":{"$error":"#REF!"}}]
[{"$f":"+IF(#REF!=\"\",\"Z\",#REF!)","v":{"$error":"#REF!"}},{"$f":"+IF(#REF!=\"\",\"\",#REF!)","v":{"$error":"#REF!"}}]
[{"$f":"+IF(#REF!=\"\",\"Z\",#REF!)","v":{"$error":"#REF!"}},{"$f":"+IF(#REF!=\"\",\"\",#REF!)","v":{"$error":"#REF!"}}]
[{"$f":"+IF(#REF!=\"\",\"Z\",#REF!)","v":{"$error":"#REF!"}},{"$f":"+IF(#REF!=\"\",\"\",#REF!)","v":{"$error":"#REF!"}}]
[{"$f":"+IF(#REF!=\"\",\"Z\",#REF!)","v":{"$error":"#REF!"}},{"$f":"+IF(#REF!=\"\",\"\",#REF!)","v":{"$error":"#REF!"}}]
[{"$f":"+IF(#REF!=\"\",\"Z\",#REF!)","v":{"$error":"#REF!"}},{"$f":"+IF(#REF!=\"\",\"\",#REF!)","v":{"$error":"#REF!"}}]
[{"$f":"+IF(#REF!=\"\",\"Z\",#REF!)","v":{"$error":"#REF!"}},{"$f":"+IF(#REF!=\"\",\"\",#REF!)","v":{"$error":"#REF!"}}]
[{"$f":"+IF(#REF!=\"\",\"Z\",#REF!)","v":{"$error":"#REF!"}},{"$f":"+IF(#REF!=\"\",\"\",#REF!)","v":{"$error":"#REF!"}}]
[{"$f":"+IF(#REF!=\"\",\"Z\",#REF!)","v":{"$error":"#REF!"}},{"$f":"+IF(#REF!=\"\",\"\",#REF!)","v":{"$error":"#REF!"}}]
[{"$f":"+IF(#REF!=\"\",\"Z\",#REF!)","v":{"$error":"#REF!"}},{"$f":"+IF(#REF!=\"\",\"\",#REF!)","v":{"$error":"#REF!"}}]
[{"$f":"+IF(#REF!=\"\",\"Z\",#REF!)","v":{"$error":"#REF!"}},{"$f":"+IF(#REF!=\"\",\"\",#REF!)","v":{"$error":"#REF!"}}]
[{"$f":"+IF(#REF!=\"\",\"Z\",#REF!)","v":{"$error":"#REF!"}},{"$f":"+IF(#REF!=\"\",\"\",#REF!)","v":{"$error":"#REF!"}}]
[{"$f":"+IF(#REF!=\"\",\"Z\",#REF!)","v":{"$error":"#REF!"}},{"$f":"+IF(#REF!=\"\",\"\",#REF!)","v":{"$error":"#REF!"}}]
[{"$f":"+IF(#REF!=\"\",\"Z\",#REF!)","v":{"$error":"#REF!"}},{"$f":"+IF(#REF!=\"\",\"\",#REF!)","v":{"$error":"#REF!"}}]
[{"$f":"+IF(#REF!=\"\",\"Z\",#REF!)","v":{"$error":"#REF!"}},{"$f":"+IF(#REF!=\"\",\"\",#REF!)","v":{"$error":"#REF!"}}]
[{"$f":"+IF(#REF!=\"\",\"Z\",#REF!)","v":{"$error":"#REF!"}},{"$f":"+IF(#REF!=\"\",\"\",#REF!)","v":{"$error":"#REF!"}}]
[{"$f":"+IF(#REF!=\"\",\"Z\",#REF!)","v":{"$error":"#REF!"}},{"$f":"+IF(#REF!=\"\",\"\",#REF!)","v":{"$error":"#REF!"}}]
[{"$f":"+IF(#REF!=\"\",\"Z\",#REF!)","v":{"$error":"#REF!"}},{"$f":"+IF(#REF!=\"\",\"\",#REF!)","v":{"$error":"#REF!"}}]
[{"$f":"+IF(#REF!=\"\",\"Z\",#REF!)","v":{"$error":"#REF!"}},{"$f":"+IF(#REF!=\"\",\"\",#REF!)","v":{"$error":"#REF!"}}]
[{"$f":"+IF(#REF!=\"\",\"Z\",#REF!)","v":{"$error":"#REF!"}},{"$f":"+IF(#REF!=\"\",\"\",#REF!)","v":{"$error":"#REF!"}}]
[{"$f":"+IF(#REF!=\"\",\"Z\",#REF!)","v":{"$error":"#REF!"}},{"$f":"+IF(#REF!=\"\",\"\",#REF!)","v":{"$error":"#REF!"}}]
[{"$f":"+IF(#REF!=\"\",\"Z\",#REF!)","v":{"$error":"#REF!"}},{"$f":"+IF(#REF!=\"\",\"\",#REF!)","v":{"$error":"#REF!"}}]
[{"$f":"+IF(#REF!=\"\",\"Z\",#REF!)","v":{"$error":"#REF!"}},{"$f":"+IF(#REF!=\"\",\"\",#REF!)","v":{"$error":"#REF!"}}]
[{"$f":"+IF(#REF!=\"\",\"Z\",#REF!)","v":{"$error":"#REF!"}},{"$f":"+IF(#REF!=\"\",\"\",#REF!)","v":{"$error":"#REF!"}}]
[{"$f":"+IF(#REF!=\"\",\"Z\",#REF!)","v":{"$error":"#REF!"}},{"$f":"+IF(#REF!=\"\",\"\",#REF!)","v":{"$error":"#REF!"}}]
[{"$f":"+IF(#REF!=\"\",\"Z\",#REF!)","v":{"$error":"#REF!"}},{"$f":"+IF(#REF!=\"\",\"\",#REF!)","v":{"$error":"#REF!"}}]
[{"$f":"+IF(#REF!=\"\",\"Z\",#REF!)","v":{"$error":"#REF!"}},{"$f":"+IF(#REF!=\"\",\"\",#REF!)","v":{"$error":"#REF!"}}]
[{"$f":"+IF(#REF!=\"\",\"Z\",#REF!)","v":{"$error":"#REF!"}},{"$f":"+IF(#REF!=\"\",\"\",#REF!)","v":{"$error":"#REF!"}}]
[{"$f":"+IF(#REF!=\"\",\"Z\",#REF!)","v":{"$error":"#REF!"}},{"$f":"+IF(#REF!=\"\",\"\",#REF!)","v":{"$error":"#REF!"}}]
[{"$f":"+IF(#REF!=\"\",\"Z\",#REF!)","v":{"$error":"#REF!"}},{"$f":"+IF(#REF!=\"\",\"\",#REF!)","v":{"$error":"#REF!"}}]
[{"$f":"+IF(#REF!=\"\",\"Z\",#REF!)","v":{"$error":"#REF!"}},{"$f":"+IF(#REF!=\"\",\"\",#REF!)","v":{"$error":"#REF!"}}]
[{"$f":"+IF(#REF!=\"\",\"Z\",#REF!)","v":{"$error":"#REF!"}},{"$f":"+IF(#REF!=\"\",\"\",#REF!)","v":{"$error":"#REF!"}}]
[{"$f":"+IF(#REF!=\"\",\"Z\",#REF!)","v":{"$error":"#REF!"}},{"$f":"+IF(#REF!=\"\",\"\",#REF!)","v":{"$error":"#REF!"}}]
[{"$f":"+IF(#REF!=\"\",\"Z\",#REF!)","v":{"$error":"#REF!"}},{"$f":"+IF(#REF!=\"\",\"\",#REF!)","v":{"$error":"#REF!"}}]
[{"$f":"+IF(#REF!=\"\",\"Z\",#REF!)","v":{"$error":"#REF!"}},{"$f":"+IF(#REF!=\"\",\"\",#REF!)","v":{"$error":"#REF!"}}]
[{"$f":"+IF(#REF!=\"\",\"Z\",#REF!)","v":{"$error":"#REF!"}},{"$f":"+IF(#REF!=\"\",\"\",#REF!)","v":{"$error":"#REF!"}}]
[{"$f":"+IF(#REF!=\"\",\"Z\",#REF!)","v":{"$error":"#REF!"}},{"$f":"+IF(#REF!=\"\",\"\",#REF!)","v":{"$error":"#REF!"}}]
[{"$f":"+IF(#REF!=\"\",\"Z\",#REF!)","v":{"$error":"#REF!"}},{"$f":"+IF(#REF!=\"\",\"\",#REF!)","v":{"$error":"#REF!"}}]
[{"$f":"+IF(#REF!=\"\",\"Z\",#REF!)","v":{"$error":"#REF!"}},{"$f":"+IF(#REF!=\"\",\"\",#REF!)","v":{"$error":"#REF!"}}]
[{"$f":"+IF(#REF!=\"\",\"Z\",#REF!)","v":{"$error":"#REF!"}},{"$f":"+IF(#REF!=\"\",\"\",#REF!)","v":{"$error":"#REF!"}}]
[{"$f":"+IF(#REF!=\"\",\"Z\",#REF!)","v":{"$error":"#REF!"}},{"$f":"+IF(#REF!=\"\",\"\",#REF!)","v":{"$error":"#REF!"}}]
[{"$f":"+IF(#REF!=\"\",\"Z\",#REF!)","v":{"$error":"#REF!"}},{"$f":"+IF(#REF!=\"\",\"\",#REF!)","v":{"$error":"#REF!"}}]
[{"$f":"+IF(#REF!=\"\",\"Z\",#REF!)","v":{"$error":"#REF!"}},{"$f":"+IF(#REF!=\"\",\"\",#REF!)","v":{"$error":"#REF!"}}]
[{"$f":"+IF(#REF!=\"\",\"Z\",#REF!)","v":{"$error":"#REF!"}},{"$f":"+IF(#REF!=\"\",\"\",#REF!)","v":{"$error":"#REF!"}}]
[{"$f":"+IF(#REF!=\"\",\"Z\",#REF!)","v":{"$error":"#REF!"}},{"$f":"+IF(#REF!=\"\",\"\",#REF!)","v":{"$error":"#REF!"}}]
[{"$f":"+IF(#REF!=\"\",\"Z\",#REF!)","v":{"$error":"#REF!"}},{"$f":"+IF(#REF!=\"\",\"\",#REF!)","v":{"$error":"#REF!"}}]
[{"$f":"+IF(#REF!=\"\",\"Z\",#REF!)","v":{"$error":"#REF!"}},{"$f":"+IF(#REF!=\"\",\"\",#REF!)","v":{"$error":"#REF!"}}]
[{"$f":"+IF(#REF!=\"\",\"Z\",#REF!)","v":{"$error":"#REF!"}},{"$f":"+IF(#REF!=\"\",\"\",#REF!)","v":{"$error":"#REF!"}}]
[{"$f":"+IF(#REF!=\"\",\"Z\",#REF!)","v":{"$error":"#REF!"}},{"$f":"+IF(#REF!=\"\",\"\",#REF!)","v":{"$error":"#REF!"}}]
[{"$f":"+IF(#REF!=\"\",\"Z\",#REF!)","v":{"$error":"#REF!"}},{"$f":"+IF(#REF!=\"\",\"\",#REF!)","v":{"$error":"#REF!"}}]
[{"$f":"+IF(#REF!=\"\",\"Z\",#REF!)","v":{"$error":"#REF!"}},{"$f":"+IF(#REF!=\"\",\"\",#REF!)","v":{"$error":"#REF!"}}]
[{"$f":"+IF(#REF!=\"\",\"Z\",#REF!)","v":{"$error":"#REF!"}},{"$f":"+IF(#REF!=\"\",\"\",#REF!)","v":{"$error":"#REF!"}}]
[{"$f":"+IF(#REF!=\"\",\"Z\",#REF!)","v":{"$error":"#REF!"}},{"$f":"+IF(#REF!=\"\",\"\",#REF!)","v":{"$error":"#REF!"}}]
[{"$f":"+IF(#REF!=\"\",\"Z\",#REF!)","v":{"$error":"#REF!"}},{"$f":"+IF(#REF!=\"\",\"\",#REF!)","v":{"$error":"#REF!"}}]
[{"$f":"+IF(#REF!=\"\",\"Z\",#REF!)","v":{"$error":"#REF!"}},{"$f":"+IF(#REF!=\"\",\"\",#REF!)","v":{"$error":"#REF!"}}]
[{"$f":"+IF(#REF!=\"\",\"Z\",#REF!)","v":{"$error":"#REF!"}},{"$f":"+IF(#REF!=\"\",\"\",#REF!)","v":{"$error":"#REF!"}}]
[{"$f":"+IF(#REF!=\"\",\"Z\",#REF!)","v":{"$error":"#REF!"}},{"$f":"+IF(#REF!=\"\",\"\",#REF!)","v":{"$error":"#REF!"}}]
[{"$f":"+IF(#REF!=\"\",\"Z\",#REF!)","v":{"$error":"#REF!"}},{"$f":"+IF(#REF!=\"\",\"\",#REF!)","v":{"$error":"#REF!"}}]
[{"$f":"+IF(#REF!=\"\",\"Z\",#REF!)","v":{"$error":"#REF!"}},{"$f":"+IF(#REF!=\"\",\"\",#REF!)","v":{"$error":"#REF!"}}]
[{"$f":"+IF(#REF!=\"\",\"Z\",#REF!)","v":{"$error":"#REF!"}},{"$f":"+IF(#REF!=\"\",\"\",#REF!)","v":{"$error":"#REF!"}}]
[{"$f":"+IF(#REF!=\"\",\"Z\",#REF!)","v":{"$error":"#REF!"}},{"$f":"+IF(#REF!=\"\",\"\",#REF!)","v":{"$error":"#REF!"}}]
[{"$f":"+IF(#REF!=\"\",\"Z\",#REF!)","v":{"$error":"#REF!"}},{"$f":"+IF(#REF!=\"\",\"\",#REF!)","v":{"$error":"#REF!"}}]
[{"$f":"+IF(#REF!=\"\",\"Z\",#REF!)","v":{"$error":"#REF!"}},{"$f":"+IF(#REF!=\"\",\"\",#REF!)","v":{"$error":"#REF!"}}]
[{"$f":"+IF(#REF!=\"\",\"Z\",#REF!)","v":{"$error":"#REF!"}},{"$f":"+IF(#REF!=\"\",\"\",#REF!)","v":{"$error":"#REF!"}}]
[{"$f":"+IF(#REF!=\"\",\"Z\",#REF!)","v":{"$error":"#REF!"}},{"$f":"+IF(#REF!=\"\",\"\",#REF!)","v":{"$error":"#REF!"}}]
[{"$f":"+IF(#REF!=\"\",\"Z\",#REF!)","v":{"$error":"#REF!"}},{"$f":"+IF(#REF!=\"\",\"\",#REF!)","v":{"$error":"#REF!"}}]
[{"$f":"+IF(#REF!=\"\",\"Z\",#REF!)","v":{"$error":"#REF!"}},{"$f":"+IF(#REF!=\"\",\"\",#REF!)","v":{"$error":"#REF!"}}]
[{"$f":"+IF(#REF!=\"\",\"Z\",#REF!)","v":{"$error":"#REF!"}},{"$f":"+IF(#REF!=\"\",\"\",#REF!)","v":{"$error":"#REF!"}}]
[{"$f":"+IF(#REF!=\"\",\"Z\",#REF!)","v":{"$error":"#REF!"}},{"$f":"+IF(#REF!=\"\",\"\",#REF!)","v":{"$error":"#REF!"}}]

{"sheet":"EQUIPOS","index":2,"n_rows":308,"n_cols":11,"rows_kept":308,"cut":false,"hidden":false,"merged":[[1,1,1,9]]}
[]
[null,"CLASIFICACIÓN DE LOS EQUIPOS"]
[]
[]
[]
["POSICIÓN","EQUIPO","CATEGORÍA","Nº","CODIGO","NOMBRE DEL JINETE","CODIGO","NOMBRE DEL CABALLO","PUNTAJE","SUMA"]
[]
[1,"ENDURANCE AZUAY","C2 A L",6,"A092","VINTIMILLA PABLO","C252","BIANCA",152,416,""]
[null,"ENDURANCE AZUAY","C2 A L",1,"A059","ALMEIDA AYALA HECTOR","C140","SC SADIQ",144,null,""]
[null,"ENDURANCE AZUAY","C1 A L S",8,"A171","VELEZ MENA MARIA CONSUELO","C209","AISHA",120,null,""]
[null,"ENDURANCE AZUAY","C1 A L",13,"A248","LOYOLA MARIA CLAUDIA","C197","PATACON",80,null,""]
[null,null,null,null,null,null,null,null,0,null,""]
[null,null,null,null,null,null,null,null,0,null,""]
[2,"ZZ","","","A1","","","","No categoría",0,""]
[null,"ZZ","","","A2","","","","No categoría",null,""]
[null,"ZZ","","","A3","","","","No categoría",null,""]
[null,"ZZ","","","A4","","","","No categoría",null,""]
[null,"ZZ","","","A5","","","","No categoría",null,""]
[null,"ZZ","C2 A C",2,"A081","KOPPEL OSWALDO","C511","SHAKKIRA VO",0,null,""]
[3,"ZZ","C2 A L",3,"A045","MORABOWEN CESAR","C229","BULERIA",160,0,""]
[null,"ZZ","C1 A L S",7,"A097","MALO ANDREA","C441","SANTOO",114,null,""]
[null,"ZZ","C1 A C",10,"A001","VINTIMILLA PAULINO","C512","SA DREAMSHA",64,null,""]
[null,"ZZ","C2 A C",4,"A178","ANDRADE JUAN CARLOS","C240","KALIFA",0,null,""]
[null,"ZZ","C2 A L",5,"A249","ANDRADE JOSE DANIEL","C282","MAGIC MENES",0,null,""]
[null,"ZZ","C1 A C",9,"A224","TUTIVEN LUIS FRANCISCO","C510","KAFER MB",0,null,""]
[4,"ZZ","C1 A L",14,"A192","LOZADA JOSE ARMANDO","C497","ABUDABI",76,0,""]
[null,"ZZ","C1 A C",11,"A250","ESTRADA CARLOS","C473","SC SHADID",64,null,""]
[null,"ZZ","C1 A C",12,"A242","TATE JUNE","C513","MONTE SAU",0,null,""]
[null,"ZZ","","","","","","",0,null,""]
[null,"ZZ","","","","","","",0,null,""]
[null,"ZZ","","","","","","",0,null,""]
[5,"ZZ","","","","","","",0,0,""]
[null,"ZZ","","","","","","",0,null,""]
[null,"ZZ","","","","","","",0,null,""]
[null,"ZZ","","","","","","",0,null,""]
[null,"ZZ","","","","","","",0,null,""]
[null,"ZZ","","","","","","",0,null,""]
[6,"ZZ","","","","","","",0,0,""]
[null,"ZZ","","","","","","",0,null,""]
[null,"ZZ","","","","","","",0,null,""]
[null,"ZZ","","","","","","",0,null,""]
[null,"ZZ","","","","","","",0,null,""]
[null,"ZZ","","","","","","",0,null,""]
[7,"ZZ","","","","","","",0,0,""]
[null,"ZZ","","","","","","",0,null,""]
[null,"ZZ","",37,"","","","",0,null,""]
[null,"ZZ","",38,"","","","",0,null,""]
[null,"ZZ","",39,"","","","",0,null,""]
[null,"ZZ","",40,"","","","",0,null,""]
[8,"ZZ","",41,"","","","",0,0,""]
[null,"ZZ","",42,"","","","",0,null,""]
[null,"ZZ","",43,"","","","",0,null,""]
[null,"ZZ","",44,"","","","",0,null,""]
[null,"ZZ","",45,"","","","",0,null,""]
[null,"ZZ","",46,"","","","",0,null,""]
[9,"ZZ","",47,"","","","",0,0,""]
[null,"ZZ","C1 A C",48,"","","","",0,null,""]
[null,"ZZ","C1 A C",49,"","","","",0,null,""]
[null,"ZZ","C1 A C",50,"","","","",0,null,""]
[null,"ZZ","C1 A C",51,"","","","",0,null,""]
[null,"ZZ","C1 A C",52,"","","","",0,null,""]
[10,"ZZ","C1 A C",53,"","","","",0,0,""]
[null,"ZZ","C1 A C",54,"","","","",0,null,""]
[null,"ZZ","C1 A C",55,"","","","",0,null,""]
[null,"ZZ","C1 J C",56,"","","","",0,null,""]
[null,"ZZ","C1 A C",57,"","","","",0,null,""]
[null,"ZZ","C1 A C",58,"","","","",0,null,""]
[11,"ZZ","C1 A C",59,"","","","",0,0,""]
[null,"ZZ","C1 A C",60,"","","","",0,null,""]
[null,"ZZ","C1 J L",61,"","","","",0,null,""]
[null,"ZZ","C1 J L",62,"","","","",0,null,""]
[null,"ZZ","C1 J L",63,"","","","",0,null,""]
[null,"ZZ","C1 J L",64,"","","","",0,null,""]
[12,"ZZ","C1 A L",65,"","","","",0,0,""]
[null,"ZZ","C1 A L",66,"","","","",0,null,""]
[null,"ZZ","C1 A L",67,"","","","",0,null,""]
[null,"ZZ","C1 A L",68,"","","","",0,null,""]
[null,"ZZ","C1 J L S",69,"","","","",0,null,""]
[null,"ZZ","C1 J L S",70,"","","","",0,null,""]
[13,"ZZ","C1 J L S",71,"","","","",0,0,""]
[null,"ZZ","C2 J C 3",72,"","","","",0,null,""]
[null,"ZZ","C2 J C 3",73,"","","","",0,null,""]
[null,"ZZ","C2 J C 3",74,"","","","",0,null,""]
[null,"ZZ","C2 J C 3",75,"","","","",0,null,""]
[null,"ZZ","C2 J C 3",76,"","","","",0,null,""]
[14,"ZZ","C2 J C 3",77,"","","","",0,0,""]
[null,"ZZ","C2 J C 3",78,"","","","",0,null,""]
[null,"ZZ","C2 J C 3",79,"","","","",0,null,""]
[null,"ZZ","C2 J C 3",80,"","","","",0,null,""]
[null,"ZZ","C2 J C 3",81,"","","","",0,null,""]
[null,"ZZ","C2 A C 3",82,"","","","",0,null,""]
[15,"ZZ","C2 A C 3",83,"","","","",0,0,""]
[null,"ZZ","C2 A C 3",84,"","","","",0,null,""]
[null,"ZZ","C2 A C 3",85,"","","","",0,null,""]
[null,"ZZ","C2 A C 3",86,"","","","",0,null,""]
[null,"ZZ","C2 A C 3",87,"","","","",0,null,""]
[null,"ZZ","C2 J L 3",88,"","","","",0,null,""]
[16,"ZZ","C2 J L 4",89,"","","","",0,0,""]
[null,"ZZ","C2 A L 3",90,"","","","",0,null,""]
[null,"ZZ","C2 A L 3",91,"","","","",0,null,""]
[null,"ZZ","C2 A L 3",92,"","","","",0,null,""]
[null,"ZZ","C2 A L 3",93,"","","","",0,null,""]
[null,"ZZ","C2 A L 3",94,"","","","",0,null,""]
[17,"ZZ","C1 A L S",95,"","","","",0,0,""]
[null,"ZZ","C1 A L S",96,"","","","",0,null,""]
[null,"ZZ","C1 A L S",97,"","","","",0,null,""]
[null,"ZZ","C2 J C 3",98,"","","","",0,null,""]
[null,"ZZ","C2 J C 3",99,"","","","",0,null,""]
[null,"ZZ","C2 J C 3",100,"","","","",0,null,""]
[18,"ZZ","C2 J C 3",101,"","","","",0,0,""]
[null,"ZZ","C2 J C 3",102,"","","","",0,null,""]
[null,"ZZ","C2 J C 3",103,"","","","",0,null,""]
[null,"ZZ","C2 J C 3",104,"","","","",0,null,""]
[null,"ZZ","C2 A C 3",105,"","","","",0,null,""]
[null,"ZZ","C2 A C 3",106,"","","","",0,null,""]
[19,"ZZ","C2 A C 3",107,"","","","",0,0,""]
[null,"ZZ","C2 A C 3",108,"","","","",0,null,""]
[null,"ZZ","C2 A C 3",109,"","","","",0,null,""]
[null,"ZZ","C2 A C 3",110,"","","","",0,null,""]
[null,"ZZ","C2 A C 3",111,"","","","",0,null,""]
[null,"ZZ","C2 A C 3",112,"","","","",0,null,""]
[20,"ZZ","C2 J L 3",113,"","","","",0,0,""]
[null,"ZZ","C2 J L 3",114,"","","","",0,null,""]
[null,"ZZ","C2 J L 3",115,"","","","",0,null,""]
[null,"ZZ","C2 J L 3",116,"","","","",0,null,""]
[null,"ZZ","C2 J L 3",117,"","","","",0,null,""]
[null,"ZZ","C2 J L 3",118,"","","","",0,null,""]
[21,"ZZ","C2 J L 3",119,"","","","",0,0,""]
[null,"ZZ","C2 A L 3",120,"","","","",0,null,""]
[null,"ZZ","C2 A L 3",121,"","","","",0,null,""]
[null,"ZZ","C2 A L 3",122,"","","","",0,null,""]
[null,"ZZ","C2 A L 3",123,"","","","",0,null,""]
[null,"ZZ","C2 A L 3",124,"","","","",0,null,""]
[22,"ZZ","C2 A L 3",125,"","","","",0,0,""]
[null,"ZZ","C2 A L 3",126,"","","","",0,null,""]
[null,"ZZ","C2 A L 3",127,"","","","",0,null,""]
[null,"ZZ","C2 A L 3",128,"","","","",0,null,""]
[null,"ZZ","C2 J C 3",129,"","","","",0,null,""]
[null,"ZZ","C2 J C 3",130,"","","","",0,null,""]
[23,"ZZ","C2 J C 3",131,"","","","",0,0,""]
[null,"ZZ","C2 J C",132,"","","","",0,null,""]
[null,"ZZ","C2 J C",133,"","","","",0,null,""]
[null,"ZZ","C2 J C",134,"","","","",0,null,""]
[null,"ZZ","C2 J C",135,"","","","",0,null,""]
[null,"ZZ","C2 J C",136,"","","","",0,null,""]
[24,"ZZ","C2 J C",137,"","","","",0,0,""]
[null,"ZZ","C2 A C 3",138,"","","","",0,null,""]
[null,"ZZ","C2 A C 3",139,"","","","",0,null,""]
[null,"ZZ","C2 A C 3",140,"","","","",0,null,""]
[null,"ZZ","C2 A C 3",141,"","","","",0,null,""]
[null,"ZZ","C2 A C 3",142,"","","","",0,null,""]
[25,"ZZ","C2 J L 3",143,"","","","",0,0,""]
[null,"ZZ","C2 J L 3",146,"","","","",0,null,""]
[null,"ZZ","C2 J L 3",147,"","","","",0,null,""]
[null,"ZZ","C2 J L 3",148,"","","","",0,null,""]
[null,"ZZ","C2 J L 3",149,"","","","",0,null,""]
[null,"ZZ","C2 J L 3",150,"","","","",0,null,""]
[26,"ZZ","C2 J L 3",151,"","","","",0,0,""]
[null,"ZZ","C2 J L 3",152,"","","","",0,null,""]
[null,"ZZ","C2 J L 3",153,"","","","",0,null,""]
[null,"ZZ","C2 A L 3",154,"","","","",0,null,""]
[null,"ZZ","C2 A L 3",155,"","","","",0,null,""]
[null,"ZZ","C2 A L 3",156,"","","","",0,null,""]
[27,"ZZ","C2 A L 3",157,"","","","",0,0,""]
[null,"ZZ","C2 A L 3",158,"","","","",0,null,""]
[null,"ZZ","C2 A L 3",159,"","","","",0,null,""]
[null,"ZZ","C2 A L 3",160,"","","","",0,null,""]
[null,"ZZ","C2 A L 3",161,"","","","",0,null,""]
[null,"ZZ","C2 A L 3",162,"","","","",0,null,""]
[28,"ZZ","C2 A L 3",163,"","","","",0,0,""]
[null,"ZZ","C2 A L 3",164,"","","","",0,null,""]
[null,"ZZ","C2 J L 1",165,"","","","",0,null,""]
[null,"ZZ","C2 J L 1",166,"","","","",0,null,""]
[null,"ZZ","C2 J L 1",167,"","","","",0,null,""]
[null,"ZZ","C2 J L 1",168,"","","","",0,null,""]
[29,"ZZ","C2 J L 1",169,"","","","",0,0,""]
[null,"ZZ","C2 J L 1",170,"","","","",0,null,""]
[null,"ZZ","C2 J L 1",171,"","","","",0,null,""]
[null,"ZZ","C2 A L 1",172,"","","","",0,null,""]
[null,"ZZ","C2 A L 1",173,"","","","",0,null,""]
[null,"ZZ","C2 A L 1",174,"","","","",0,null,""]
[30,"ZZ","C2 A L 1",175,"","","","",0,0,""]
[null,"ZZ","C2 A L 1",176,"","","","",0,null,""]
[null,"ZZ","C2 A L 1",177,"","","","",0,null,""]
[null,"ZZ","C2 A L 1",178,"","","","",0,null,""]
[null,"ZZ","C2 A L 1",179,"","","","",0,null,""]
[null,"ZZ","C2 A L 1",180,"","","","",0,null,""]
[31,"ZZ","C3 J L",181,"","","","",0,0,""]
[null,"ZZ","C3 J L",182,"","","","",0,null,""]
[null,"ZZ","C3 J L",183,"","","","",0,null,""]
[null,"ZZ","C3 J L",184,"","","","",0,null,""]
[null,"ZZ","C3 J L",185,"","","","",0,null,""]
[null,"ZZ","C3 J L",186,"","","","",0,null,""]
[32,"ZZ","C3 A L",187,"","","","",0,0,""]
[null,"ZZ","C3 A L",188,"","","","",0,null,""]
[null,"ZZ","C3 A L",189,"","","","",0,null,""]
[null,"ZZ","C3 A L",190,"","","","",0,null,""]
[null,"ZZ","C3 A L",191,"","","","",0,null,""]
[null,"ZZ","C3 A L",192,"","","","",0,null,""]
[33,"ZZ","C3 A L",193,"","","","",0,0,""]
[null,"ZZ","C3 A L",194,"","","","",0,null,""]
[null,"ZZ","C3 A L",195,"","","","",0,null,""]
[null,"ZZ","C3 A L",196,"","","","",0,null,""]
[null,"ZZ","C3 J L",197,"","","","",0,null,""]
[null,"ZZ","C4 A L",198,"","","","",0,null,""]
[34,"ZZ","C4 A L",199,"","","","",0,0,""]
[null,"ZZ","C4 A L",200,"","","","",0,null,""]
[null,"ZZ","C4 A L",201,"","","","",0,null,""]
[null,"ZZ","C3 A L",202,"","","","",0,null,""]
[null,"ZZ","","","","","","",0,null,""]
[null,"ZZ","","","","","","",0,null,""]
[null,null,null,null,null,null,null,null,null,null,""]
[]
[]
[]
[]
[]
[null,null,null,null,null,null,null,null,null,null,""]
[]
[]
[]
[]
[]
[null,null,null,null,null,null,null,null,null,null,""]
[]
[]
[]
[]
[]
[null,null,null,null,null,null,null,null,null,null,""]
[]
[]
[]
[]
[]
[null,null,null,null,null,null,null,null,null,null,""]
[]
[]
[]
[]
[]
[null,null,null,null,null,null,null,null,null,null,""]
[]
[]
[]
[]
[]
[null,null,null,null,null,null,null,null,null,null,""]
[]
[]
[]
[]
[]
[null,null,null,null,null,null,null,null,null,null,""]
[]
[]
[]
[]
[]
[null,null,null,null,null,null,null,null,null,null,""]
[]
[]
[]
[]
[]
[null,null,null,null,null,null,null,null,null,null,""]
[]
[]
[]
[]
[]
[null,null,null,null,null,null,null,null,null,null,""]
[]
[]
[]
[]
[]
[null,null,null,null,null,null,null,null,null,null,""]
[]
[]
[]
[]
[]
[null,null,null,null,null,null,null,null,null,null,""]
[]
[]
[]
[]
[]
[null,null,null,null,null,null,null,null,null,null,""]
[]
[]
[]
[]
[]
[null,null,null,null,null,null,null,null,null,null,""]
[]
[]
[]
[]
[]
[null,null,null,null,null,null,null,null,null,null,""]
[]
[]
[]
[]
[]
[null,null,null,null,null,null,null,null,null,null,""]

{"sheet":"C1 A C","index":3,"n_rows":388,"n_cols":79,"rows_kept":388,"cut":false,"hidden":false,"merged":[[0,0,0,8],[1,0,1,8],[2,0,2,8],[3,17,3,21],[1,11,1,12],[3,10,3,15],[2,10,2,11]]}
["COPA CENTRO AGRICOLA",null,null,null,null,null,null,null,null,null,null,null,null,"DISTANCIA",20,"Km",null,null,null,"DISTANCIA",20,"Km",null,40,"Km"]
["I CHONE 11/02/2017, HCDA. SAN BERNARDO",null,null,null,null,null,null,null,null,null,"FECHA:","2017-02-13T16:07:14.140",null,null,"T. MÁXIMO","1:40:00",null,null,null,"T. MÁXIMO","1:40:00",null,null,"3:20:00","T. MÁXIMO "]
["CHASQUI 1 (40 a 59 Km) ABIERTA NOVICIOS",null,null,null,null,null,null,null,null,null,"TIEMPO DE DESCANSO:",null,2.0833333333333332E-2,null,"T. MÍNIMO","1:15:00",null,null,null,"T. MÍNIMO","1:15:00",null,null,"2:30:00","T. MÍNIMO "]
[null,null,null,null,null,null,null,null,null,null,"PRIMERA ETAPA",null,null,null,null,null,null,"SEGUNDA ETAPA"]
["POSICION","CODIGO","NOMBRE DEL JINETE","CODIGO","NOMBRE DEL CABALLO","HORA DE SALIDA ","HORA FINAL","TIEMPO DE COMPETENCIA","TIEMPO MEDIO DE RECUPERACIÓN","PUNTAJE","HORA DE LLEGADA","HORA DE CHEQUEO","TIEMPO DE RECUPERACIÓN","TIEMPO DE LA ETAPA","VELOCI     DAD","HORA DE SALIDA",null,"HORA DE LLEGADA","HORA DE CHEQUEO","TIEMPO DE RECUPERACIÓN","TIEMPO DE LA ETAPA","VELOCI     DAD",null,"TIEMPO EN CARRERA","VELOCIDAD DE CARRERA"]
[null,null,null,null,null,null,null,null,null,80]
[null,"A001","VINTIMILLA PAULINO","C512","SA DREAMSHA","11:00:00","14:10:54",0.11173611111111113,"00:03:13.500",64,"12:17:49","12:21:15","00:03:26","01:21:15",15.420860998072385,"12:51:15",null,"14:07:53","14:10:54","00:03:01","01:19:39",15.658982166159191,null,"02:34:27",15.53900938815149,null,null,null,null,null,null,null,null,null,null,null,null,null,null,null,null,null,null,null,null,null,null,null,null,null,null,null,null,null,null,null,null,null,null,null,null,null,null,null,null,null,null,null,null,null,null,null,null,null,null,null,null,1,1]
[null,"A250","ESTRADA CARLOS","C473","SC SHADID","11:00:00","14:11:00",0.11180555555555559,"00:03:33",64,"12:17:16","12:21:21","00:04:05","01:21:21",15.530629853321805,"12:51:21",null,"14:07:59","14:11:00","00:03:01","01:19:39",15.658982166159191,null,"02:33:54",15.59454191033136,null,null,null,null,null,null,null,null,null,null,null,null,null,null,null,null,null,null,null,null,null,null,null,null,null,null,null,null,null,null,null,null,null,null,null,null,null,null,null,null,null,null,null,null,null,null,null,null,null,null,null,null,0.95,0.95]
[null,"A224","TUTIVEN LUIS FRANCISCO","C510","KAFER MB","11:00:00","",23,"E CLAUDICACIÓN","","","","","","","",null,"","","","","",null,"","",null,null,null,null,null,null,null,null,null,null,null,null,null,null,null,null,null,null,null,null,null,null,null,null,null,null,null,null,null,null,null,null,null,null,null,null,null,null,null,null,null,null,null,null,null,null,null,null,null,null,null,null,0.9,0.9]
[null,"A242","TATE JUNE","C513","MONTE SAU","11:00:00","",23,"DESCALIFICADO","","","","","","","",null,"","","","","",null,"","",null,null,null,null,null,null,null,null,null,null,null,null,null,null,null,null,null,null,null,null,null,null,null,null,null,null,null,null,null,null,null,null,null,null,null,null,null,null,null,null,null,null,null,null,null,null,null,null,null,null,null,null,0.85,0.85]
[null,"","","","","","","","","","","","","","","",null,"","","","","",null,"","",null,null,null,null,null,null,null,null,null,null,null,null,null,null,null,null,null,null,null,null,null,null,null,null,null,null,null,null,null,null,null,null,null,null,null,null,null,null,null,null,null,null,null,null,null,null,null,null,null,null,null,null,0.8,0.8]
[null,"","","","","","","","","","","","","","","",null,"","","","","",null,"","",null,null,null,null,null,null,null,null,null,null,null,null,null,null,null,null,null,null,null,null,null,null,null,null,null,null,null,null,null,null,null,null,null,null,null,null,null,null,null,null,null,null,null,null,null,null,null,null,null,null,null,null,0.75,0.75]
[null,"","","","","","","","","","","","","","","",null,"","","","","",null,"","",null,null,null,null,null,null,null,null,null,null,null,null,null,null,null,null,null,null,null,null,null,null,null,null,null,null,null,null,null,null,null,null,null,null,null,null,null,null,null,null,null,null,null,null,null,null,null,null,null,null,null,null,0.7,0.7]
[null,"","","","","","","","","","","","","","","",null,"","","","","",null,"","",null,null,null,null,null,null,null,null,null,null,null,null,null,null,null,null,null,null,null,null,null,null,null,null,null,null,null,null,null,null,null,null,null,null,null,null,null,null,null,null,null,null,null,null,null,null,null,null,null,null,null,null,0.65,0.65]
[null,"","","","","","","","","","","","","","","",null,"","","","","",null,"","",null,null,null,null,null,null,null,null,null,null,null,null,null,null,null,null,null,null,null,null,null,null,null,null,null,null,null,null,null,null,null,null,null,null,null,null,null,null,null,null,null,null,null,null,null,null,null,null,null,null,null,null,0.6,0.6]
[null,"","","","","","","","","","","","","","","",null,"","","","","",null,"","",null,null,null,null,null,null,null,null,null,null,null,null,null,null,null,null,null,null,null,null,null,null,null,null,null,null,null,null,null,null,null,null,null,null,null,null,null,null,null,null,null,null,null,null,null,null,null,null,null,null,null,null,0.55000000000000004,0.55000000000000004]
[null,"","","","","","","","","","","","","","","",null,"","","","","",null,"","",null,null,null,null,null,null,null,null,null,null,null,null,null,null,null,null,null,null,null,null,null,null,null,null,null,null,null,null,null,null,null,null,null,null,null,null,null,null,null,null,null,null,null,null,null,null,null,null,null,null,null,null,0.5,0.5]
[null,"","","","","","","","","","","","","","","",null,"","","","","",null,"","",null,null,null,null,null,null,null,null,null,null,null,null,null,null,null,null,null,null,null,null,null,null,null,null,null,null,null,null,null,null,null,null,null,null,null,null,null,null,null,null,null,null,null,null,null,null,null,null,null,null,null,null,0.5,0.5]
[null,"","","","","","","","","","","","","","","",null,"","","","","",null,"","",null,null,null,null,null,null,null,null,null,null,null,null,null,null,null,null,null,null,null,null,null,null,null,null,null,null,null,null,null,null,null,null,null,null,null,null,null,null,null,null,null,null,null,null,null,null,null,null,null,null,null,null,0.5,0.5]
[null,"","","","","","","","","","","","","","","",null,"","","","","",null,"","",null,null,null,null,null,null,null,null,null,null,null,null,null,null,null,null,null,null,null,null,null,null,null,null,null,null,null,null,null,null,null,null,null,null,null,null,null,null,null,null,null,null,null,null,null,null,null,null,null,null,null,null,0.5,0.5]
[null,"","","","","","","","","","","","","","","",null,"","","","","",null,"","",null,null,null,null,null,null,null,null,null,null,null,null,null,null,null,null,null,null,null,null,null,null,null,null,null,null,null,null,null,null,null,null,null,null,null,null,null,null,null,null,null,null,null,null,null,null,null,null,null,null,null,null,0.5,0.5]
[null,"","","","","","","","","","","","","","","",null,"","","","","",null,"","",null,null,null,null,null,null,null,null,null,null,null,null,null,null,null,null,null,null,null,null,null,null,null,null,null,null,null,null,null,null,null,null,null,null,null,null,null,null,null,null,null,null,null,null,null,null,null,null,null,null,null,null,0.5,0.5]
[null,"","","","","","","","","","","","","","","",null,"","","","","",null,"","",null,null,null,null,null,null,null,null,null,null,null,null,null,null,null,null,null,null,null,null,null,null,null,null,null,null,null,null,null,null,null,null,null,null,null,null,null,null,null,null,null,null,null,null,null,null,null,null,null,null,null,null,0.5,0.5]
[null,"","","","","","","","","","","","","","","",null,"","","","","",null,"","",null,null,null,null,null,null,null,null,null,null,null,null,null,null,null,null,null,null,null,null,null,null,null,null,null,null,null,null,null,null,null,null,null,null,null,null,null,null,null,null,null,null,null,null,null,null,null,null,null,null,null,null,0.5,0.5]
[null,"","","","","","","","","","","","","","","",null,"","","","","",null,"","",null,null,null,null,null,null,null,null,null,null,null,null,null,null,null,null,null,null,null,null,null,null,null,null,null,null,null,null,null,null,null,null,null,null,null,null,null,null,null,null,null,null,null,null,null,null,null,null,null,null,null,null,0.5,0.5]
[null,"","","","","","","","","","","","","","","",null,"","","","","",null,"","",null,null,null,null,null,null,null,null,null,null,null,null,null,null,null,null,null,null,null,null,null,null,null,null,null,null,null,null,null,null,null,null,null,null,null,null,null,null,null,null,null,null,null,null,null,null,null,null,null,null,null,null,0.5,0.5]
[null,"","","","","","","","","","","","","","","",null,"","","","","",null,"","",null,null,null,null,null,null,null,null,null,null,null,null,null,null,null,null,null,null,null,null,null,null,null,null,null,null,null,null,null,null,null,null,null,null,null,null,null,null,null,null,null,null,null,null,null,null,null,null,null,null,null,null,0.5,0.5]
[null,"","","","","","","","","","","","","","","",null,"","","","","",null,"","",null,null,null,null,null,null,null,null,null,null,null,null,null,null,null,null,null,null,null,null,null,null,null,null,null,null,null,null,null,null,null,null,null,null,null,null,null,null,null,null,null,null,null,null,null,null,null,null,null,null,null,null,0.5,0.5]
[null,"","","","","","","","","","","","","","","",null,"","","","","",null,"","",null,null,null,null,null,null,null,null,null,null,null,null,null,null,null,null,null,null,null,null,null,null,null,null,null,null,null,null,null,null,null,null,null,null,null,null,null,null,null,null,null,null,null,null,null,null,null,null,null,null,null,null,0.5,0.5]
[null,"","","","","","","","","","","","","","","",null,"","","","","",null,"","",null,null,null,null,null,null,null,null,null,null,null,null,null,null,null,null,null,null,null,null,null,null,null,null,null,null,null,null,null,null,null,null,null,null,null,null,null,null,null,null,null,null,null,null,null,null,null,null,null,null,null,null,0.5,0.5]
[null,"","","","","","","","","","","","","","","",null,"","","","","",null,"","",null,null,null,null,null,null,null,null,null,null,null,null,null,null,null,null,null,null,null,null,null,null,null,null,null,null,null,null,null,null,null,null,null,null,null,null,null,null,null,null,null,null,null,null,null,null,null,null,null,null,null,null,0.5,0.5]
[null,"","","","","","","","","","","","","","","",null,"","","","","",null,"","",null,null,null,null,null,null,null,null,null,null,null,null,null,null,null,null,null,null,null,null,null,null,null,null,null,null,null,null,null,null,null,null,null,null,null,null,null,null,null,null,null,null,null,null,null,null,null,null,null,null,null,null,0.5,0.5]
[null,"","","","","","","","","","","","","","","",null,"","","","","",null,"","",null,null,null,null,null,null,null,null,null,null,null,null,null,null,null,null,null,null,null,null,null,null,null,null,null,null,null,null,null,null,null,null,null,null,null,null,null,null,null,null,null,null,null,null,null,null,null,null,null,null,null,null,0.5,0.5]
[null,"","","","","","","","","","","","","","","",null,"","","","","",null,"","",null,null,null,null,null,null,null,null,null,null,null,null,null,null,null,null,null,null,null,null,null,null,null,null,null,null,null,null,null,null,null,null,null,null,null,null,null,null,null,null,null,null,null,null,null,null,null,null,null,null,null,null,0.5,0.5]
[null,"","","","","","","","","","","","","","","",null,"","","","","",null,"","",null,null,null,null,null,null,null,null,null,null,null,null,null,null,null,null,null,null,null,null,null,null,null,null,null,null,null,null,null,null,null,null,null,null,null,null,null,null,null,null,null,null,null,null,null,null,null,null,null,null,null,null,0.5,0.5]
[null,"","","","","","","","","","","","","","","",null,"","","","","",null,"","",null,null,null,null,null,null,null,null,null,null,null,null,null,null,null,null,null,null,null,null,null,null,null,null,null,null,null,null,null,null,null,null,null,null,null,null,null,null,null,null,null,null,null,null,null,null,null,null,null,null,null,null,0.5,0.5]
[null,"","","","","","","","","","","","","","","",null,"","","","","",null,"","",null,null,null,null,null,null,null,null,null,null,null,null,null,null,null,null,null,null,null,null,null,null,null,null,null,null,null,null,null,null,null,null,null,null,null,null,null,null,null,null,null,null,null,null,null,null,null,null,null,null,null,null,0.5,0.5]
[null,"","","","","","","","","","","","","","","",null,"","","","","",null,"","",null,null,null,null,null,null,null,null,null,null,null,null,null,null,null,null,null,null,null,null,null,null,null,null,null,null,null,null,null,null,null,null,null,null,null,null,null,null,null,null,null,null,null,null,null,null,null,null,null,null,null,null,0.5,0.5]
[null,"","","","","","","","","","","","","","","",null,"","","","","",null,"","",null,null,null,null,null,null,null,null,null,null,null,null,null,null,null,null,null,null,null,null,null,null,null,null,null,null,null,null,null,null,null,null,null,null,null,null,null,null,null,null,null,null,null,null,null,null,null,null,null,null,null,null,0.5,0.5]
[null,"","","","","","","","","","","","","","","",null,"","","","","",null,"","",null,null,null,null,null,null,null,null,null,null,null,null,null,null,null,null,null,null,null,null,null,null,null,null,null,null,null,null,null,null,null,null,null,null,null,null,null,null,null,null,null,null,null,null,null,null,null,null,null,null,null,null,0.5,0.5]
[null,"","","","","","","","","","","","","","","",null,"","","","","",null,"","",null,null,null,null,null,null,null,null,null,null,null,null,null,null,null,null,null,null,null,null,null,null,null,null,null,null,null,null,null,null,null,null,null,null,null,null,null,null,null,null,null,null,null,null,null,null,null,null,null,null,null,null,0.5,0.5]
[null,"","","","","","","","","","","","","","","",null,"","","","","",null,"","",null,null,null,null,null,null,null,null,null,null,null,null,null,null,null,null,null,null,null,null,null,null,null,null,null,null,null,null,null,null,null,null,null,null,null,null,null,null,null,null,null,null,null,null,null,null,null,null,null,null,null,null,0.5,0.5]
[null,"","","","","","","","","","","","","","","",null,"","","","","",null,"","",null,null,null,null,null,null,null,null,null,null,null,null,null,null,null,null,null,null,null,null,null,null,null,null,null,null,null,null,null,null,null,null,null,null,null,null,null,null,null,null,null,null,null,null,null,null,null,null,null,null,null,null,0.5,0.5]
[null,"","","","","","","","","","","","","","","",null,"","","","","",null,"","",null,null,null,null,null,null,null,null,null,null,null,null,null,null,null,null,null,null,null,null,null,null,null,null,null,null,null,null,null,null,null,null,null,null,null,null,null,null,null,null,null,null,null,null,null,null,null,null,null,null,null,null,0.5,0.5]
[null,"","","","","","","","","","","","","","","",null,"","","","","",null,"","",null,null,null,null,null,null,null,null,null,null,null,null,null,null,null,null,null,null,null,null,null,null,null,null,null,null,null,null,null,null,null,null,null,null,null,null,null,null,null,null,null,null,null,null,null,null,null,null,null,null,null,null,0.5,0.5]
[null,"","","","","","","","","","","","","","","",null,"","","","","",null,"","",null,null,null,null,null,null,null,null,null,null,null,null,null,null,null,null,null,null,null,null,null,null,null,null,null,null,null,null,null,null,null,null,null,null,null,null,null,null,null,null,null,null,null,null,null,null,null,null,null,null,null,null,0.5,0.5]
[null,"","","","","","","","","","","","","","","",null,"","","","","",null,"","",null,null,null,null,null,null,null,null,null,null,null,null,null,null,null,null,null,null,null,null,null,null,null,null,null,null,null,null,null,null,null,null,null,null,null,null,null,null,null,null,null,null,null,null,null,null,null,null,null,null,null,null,0.5,0.5]
[null,"","","","","","","","","","","","","","","",null,"","","","","",null,"","",null,null,null,null,null,null,null,null,null,null,null,null,null,null,null,null,null,null,null,null,null,null,null,null,null,null,null,null,null,null,null,null,null,null,null,null,null,null,null,null,null,null,null,null,null,null,null,null,null,null,null,null,0.5,0.5]
[null,"","","","","","","","","","","","","","","",null,"","","","","",null,"","",null,null,null,null,null,null,null,null,null,null,null,null,null,null,null,null,null,null,null,null,null,null,null,null,null,null,null,null,null,null,null,null,null,null,null,null,null,null,null,null,null,null,null,null,null,null,null,null,null,null,null,null,0.5,0.5]
[null,"","","","","","","","","","","","","","","",null,"","","","","",null,"","",null,null,null,null,null,null,null,null,null,null,null,null,null,null,null,null,null,null,null,null,null,null,null,null,null,null,null,null,null,null,null,null,null,null,null,null,null,null,null,null,null,null,null,null,null,null,null,null,null,null,null,null,0.5,0.5]
[null,"","","","","","","","","","","","","","","",null,"","","","","",null,"","",null,null,null,null,null,null,null,null,null,null,null,null,null,null,null,null,null,null,null,null,null,null,null,null,null,null,null,null,null,null,null,null,null,null,null,null,null,null,null,null,null,null,null,null,null,null,null,null,null,null,null,null,0.5,0.5]
[null,"","","","","","","","","","","","","","","",null,"","","","","",null,"","",null,null,null,null,null,null,null,null,null,null,null,null,null,null,null,null,null,null,null,null,null,null,null,null,null,null,null,null,null,null,null,null,null,null,null,null,null,null,null,null,null,null,null,null,null,null,null,null,null,null,null,null,0.5,0.5]
[null,"","","","","","","","","","","","","","","",null,"","","","","",null,"","",null,null,null,null,null,null,null,null,null,null,null,null,null,null,null,null,null,null,null,null,null,null,null,null,null,null,null,null,null,null,null,null,null,null,null,null,null,null,null,null,null,null,null,null,null,null,null,null,null,null,null,null,0.5,0.5]
[null,"","","","","","","","","","","","","","","",null,"","","","","",null,"","",null,null,null,null,null,null,null,null,null,null,null,null,null,null,null,null,null,null,null,null,null,null,null,null,null,null,null,null,null,null,null,null,null,null,null,null,null,null,null,null,null,null,null,null,null,null,null,null,null,null,null,null,0.5,0.5]
[null,"","","","","","","","","","","","","","","",null,"","","","","",null,"","",null,null,null,null,null,null,null,null,null,null,null,null,null,null,null,null,null,null,null,null,null,null,null,null,null,null,null,null,null,null,null,null,null,null,null,null,null,null,null,null,null,null,null,null,null,null,null,null,null,null,null,null,0.5,0.5]
[null,"","","","","","","","","","","","","","","",null,"","","","","",null,"","",null,null,null,null,null,null,null,null,null,null,null,null,null,null,null,null,null,null,null,null,null,null,null,null,null,null,null,null,null,null,null,null,null,null,null,null,null,null,null,null,null,null,null,null,null,null,null,null,null,null,null,null,0.5,0.5]
[null,"","","","","","","","","","","","","","","",null,"","","","","",null,"","",null,null,null,null,null,null,null,null,null,null,null,null,null,null,null,null,null,null,null,null,null,null,null,null,null,null,null,null,null,null,null,null,null,null,null,null,null,null,null,null,null,null,null,null,null,null,null,null,null,null,null,null,0.5,0.5]
[null,"","","","","","","","","","","","","","","",null,"","","","","",null,"","",null,null,null,null,null,null,null,null,null,null,null,null,null,null,null,null,null,null,null,null,null,null,null,null,null,null,null,null,null,null,null,null,null,null,null,null,null,null,null,null,null,null,null,null,null,null,null,null,null,null,null,null,0.5,0.5]
[null,"","","","","","","","","","","","","","","",null,"","","","","",null,"","",null,null,null,null,null,null,null,null,null,null,null,null,null,null,null,null,null,null,null,null,null,null,null,null,null,null,null,null,null,null,null,null,null,null,null,null,null,null,null,null,null,null,null,null,null,null,null,null,null,null,null,null,0.5,0.5]
[null,"","","","","","","","","","","","","","","",null,"","","","","",null,"","",null,null,null,null,null,null,null,null,null,null,null,null,null,null,null,null,null,null,null,null,null,null,null,null,null,null,null,null,null,null,null,null,null,null,null,null,null,null,null,null,null,null,null,null,null,null,null,null,null,null,null,null,0.5,0.5]
[null,"","","","","","","","","","","","","","","",null,"","","","","",null,"","",null,null,null,null,null,null,null,null,null,null,null,null,null,null,null,null,null,null,null,null,null,null,null,null,null,null,null,null,null,null,null,null,null,null,null,null,null,null,null,null,null,null,null,null,null,null,null,null,null,null,null,null,0.5,0.5]
[null,"","","","","","","","","","","","","","","",null,"","","","","",null,"","",null,null,null,null,null,null,null,null,null,null,null,null,null,null,null,null,null,null,null,null,null,null,null,null,null,null,null,null,null,null,null,null,null,null,null,null,null,null,null,null,null,null,null,null,null,null,null,null,null,null,null,null,0.5,0.5]
[null,"","","","","","","","","","","","","","","",null,"","","","","",null,"","",null,null,null,null,null,null,null,null,null,null,null,null,null,null,null,null,null,null,null,null,null,null,null,null,null,null,null,null,null,null,null,null,null,null,null,null,null,null,null,null,null,null,null,null,null,null,null,null,null,null,null,null,0.5,0.5]
[null,"","","","","","","","","","","","","","","",null,"","","","","",null,"","",null,null,null,null,null,null,null,null,null,null,null,null,null,null,null,null,null,null,null,null,null,null,null,null,null,null,null,null,null,null,null,null,null,null,null,null,null,null,null,null,null,null,null,null,null,null,null,null,null,null,null,null,0.5,0.5]
[null,"","","","","","","","","","","","","","","",null,"","","","","",null,"","",null,null,null,null,null,null,null,null,null,null,null,null,null,null,null,null,null,null,null,null,null,null,null,null,null,null,null,null,null,null,null,null,null,null,null,null,null,null,null,null,null,null,null,null,null,null,null,null,null,null,null,null,0.5,0.5]
[null,"","","","","","","","","","","","","","","",null,"","","","","",null,"","",null,null,null,null,null,null,null,null,null,null,null,null,null,null,null,null,null,null,null,null,null,null,null,null,null,null,null,null,null,null,null,null,null,null,null,null,null,null,null,null,null,null,null,null,null,null,null,null,null,null,null,null,0.5,0.5]
[null,"","","","","","","","","","","","","","","",null,"","","","","",null,"","",null,null,null,null,null,null,null,null,null,null,null,null,null,null,null,null,null,null,null,null,null,null,null,null,null,null,null,null,null,null,null,null,null,null,null,null,null,null,null,null,null,null,null,null,null,null,null,null,null,null,null,null,0.5,0.5]
[null,"","","","","","","","","","","","","","","",null,"","","","","",null,"","",null,null,null,null,null,null,null,null,null,null,null,null,null,null,null,null,null,null,null,null,null,null,null,null,null,null,null,null,null,null,null,null,null,null,null,null,null,null,null,null,null,null,null,null,null,null,null,null,null,null,null,null,0.5,0.5]
[null,"","","","","","","","","","","","","","","",null,"","","","","",null,"","",null,null,null,null,null,null,null,null,null,null,null,null,null,null,null,null,null,null,null,null,null,null,null,null,null,null,null,null,null,null,null,null,null,null,null,null,null,null,null,null,null,null,null,null,null,null,null,null,null,null,null,null,0.5,0.5]
[null,"","","","","","","","","","","","","","","",null,"","","","","",null,"","",null,null,null,null,null,null,null,null,null,null,null,null,null,null,null,null,null,null,null,null,null,null,null,null,null,null,null,null,null,null,null,null,null,null,null,null,null,null,null,null,null,null,null,null,null,null,null,null,null,null,null,null,0.5,0.5]
[null,"","","","","","","","","","","","","","","",null,"","","","","",null,"","",null,null,null,null,null,null,null,null,null,null,null,null,null,null,null,null,null,null,null,null,null,null,null,null,null,null,null,null,null,null,null,null,null,null,null,null,null,null,null,null,null,null,null,null,null,null,null,null,null,null,null,null,0.5,0.5]
[null,"","","","","","","","","","","","","","","",null,"","","","","",null,"","",null,null,null,null,null,null,null,null,null,null,null,null,null,null,null,null,null,null,null,null,null,null,null,null,null,null,null,null,null,null,null,null,null,null,null,null,null,null,null,null,null,null,null,null,null,null,null,null,null,null,null,null,0.5,0.5]
[null,"","","","","","","","","","","","","","","",null,"","","","","",null,"","",null,null,null,null,null,null,null,null,null,null,null,null,null,null,null,null,null,null,null,null,null,null,null,null,null,null,null,null,null,null,null,null,null,null,null,null,null,null,null,null,null,null,null,null,null,null,null,null,null,null,null,null,0.5,0.5]
[null,"","","","","","","","","","","","","","","",null,"","","","","",null,"","",null,null,null,null,null,null,null,null,null,null,null,null,null,null,null,null,null,null,null,null,null,null,null,null,null,null,null,null,null,null,null,null,null,null,null,null,null,null,null,null,null,null,null,null,null,null,null,null,null,null,null,null,0.5,0.5]
[null,"","","","","","","","","","","","","","","",null,"","","","","",null,"","",null,null,null,null,null,null,null,null,null,null,null,null,null,null,null,null,null,null,null,null,null,null,null,null,null,null,null,null,null,null,null,null,null,null,null,null,null,null,null,null,null,null,null,null,null,null,null,null,null,null,null,null,0.5,0.5]
[null,"","","","","","","","","","","","","","","",null,"","","","","",null,"","",null,null,null,null,null,null,null,null,null,null,null,null,null,null,null,null,null,null,null,null,null,null,null,null,null,null,null,null,null,null,null,null,null,null,null,null,null,null,null,null,null,null,null,null,null,null,null,null,null,null,null,null,0.5,0.5]
[null,"","","","","","","","","","","","","","","",null,"","","","","",null,"","",null,null,null,null,null,null,null,null,null,null,null,null,null,null,null,null,null,null,null,null,null,null,null,null,null,null,null,null,null,null,null,null,null,null,null,null,null,null,null,null,null,null,null,null,null,null,null,null,null,null,null,null,0.5,0.5]
[null,"","","","","","","","","","","","","","","",null,"","","","","",null,"","",null,null,null,null,null,null,null,null,null,null,null,null,null,null,null,null,null,null,null,null,null,null,null,null,null,null,null,null,null,null,null,null,null,null,null,null,null,null,null,null,null,null,null,null,null,null,null,null,null,null,null,null,0.5,0.5]
[null,"","","","","","","","","","","","","","","",null,"","","","","",null,"","",null,null,null,null,null,null,null,null,null,null,null,null,null,null,null,null,null,null,null,null,null,null,null,null,null,null,null,null,null,null,null,null,null,null,null,null,null,null,null,null,null,null,null,null,null,null,null,null,null,null,null,null,0.5,0.5]
[null,"","","","","","","","","","","","","","","",null,"","","","","",null,"","",null,null,null,null,null,null,null,null,null,null,null,null,null,null,null,null,null,null,null,null,null,null,null,null,null,null,null,null,null,null,null,null,null,null,null,null,null,null,null,null,null,null,null,null,null,null,null,null,null,null,null,null,0.5,0.5]
[null,"","","","","","","","","","","","","","","",null,"","","","","",null,"","",null,null,null,null,null,null,null,null,null,null,null,null,null,null,null,null,null,null,null,null,null,null,null,null,null,null,null,null,null,null,null,null,null,null,null,null,null,null,null,null,null,null,null,null,null,null,null,null,null,null,null,null,0.5,0.5]
[null,"","","","","","","","","","","","","","","",null,"","","","","",null,"","",null,null,null,null,null,null,null,null,null,null,null,null,null,null,null,null,null,null,null,null,null,null,null,null,null,null,null,null,null,null,null,null,null,null,null,null,null,null,null,null,null,null,null,null,null,null,null,null,null,null,null,null,0.5,0.5]
[null,"","","","","","","","","","","","","","","",null,"","","","","",null,"","",null,null,null,null,null,null,null,null,null,null,null,null,null,null,null,null,null,null,null,null,null,null,null,null,null,null,null,null,null,null,null,null,null,null,null,null,null,null,null,null,null,null,null,null,null,null,null,null,null,null,null,null,0.5,0.5]
[null,"","","","","","","","","","","","","","","",null,"","","","","",null,"","",null,null,null,null,null,null,null,null,null,null,null,null,null,null,null,null,null,null,null,null,null,null,null,null,null,null,null,null,null,null,null,null,null,null,null,null,null,null,null,null,null,null,null,null,null,null,null,null,null,null,null,null,0.5,0.5]
[null,"","","","","","","","","","","","","","","",null,"","","","","",null,"","",null,null,null,null,null,null,null,null,null,null,null,null,null,null,null,null,null,null,null,null,null,null,null,null,null,null,null,null,null,null,null,null,null,null,null,null,null,null,null,null,null,null,null,null,null,null,null,null,null,null,null,null,0.5,0.5]
[null,"","","","","","","","","","","","","","","",null,"","","","","",null,"","",null,null,null,null,null,null,null,null,null,null,null,null,null,null,null,null,null,null,null,null,null,null,null,null,null,null,null,null,null,null,null,null,null,null,null,null,null,null,null,null,null,null,null,null,null,null,null,null,null,null,null,null,0.5,0.5]
[null,"","","","","","","","","","","","","","","",null,"","","","","",null,"","",null,null,null,null,null,null,null,null,null,null,null,null,null,null,null,null,null,null,null,null,null,null,null,null,null,null,null,null,null,null,null,null,null,null,null,null,null,null,null,null,null,null,null,null,null,null,null,null,null,null,null,null,0.5,0.5]
[null,"","","","","","","","","","","","","","","",null,"","","","","",null,"","",null,null,null,null,null,null,null,null,null,null,null,null,null,null,null,null,null,null,null,null,null,null,null,null,null,null,null,null,null,null,null,null,null,null,null,null,null,null,null,null,null,null,null,null,null,null,null,null,null,null,null,null,0.5,0.5]
[null,"","","","","","","","","","","","","","","",null,"","","","","",null,"","",null,null,null,null,null,null,null,null,null,null,null,null,null,null,null,null,null,null,null,null,null,null,null,null,null,null,null,null,null,null,null,null,null,null,null,null,null,null,null,null,null,null,null,null,null,null,null,null,null,null,null,null,0.5,0.5]
[null,"","","","","","","","","","","","","","","",null,"","","","","",null,"","",null,null,null,null,null,null,null,null,null,null,null,null,null,null,null,null,null,null,null,null,null,null,null,null,null,null,null,null,null,null,null,null,null,null,null,null,null,null,null,null,null,null,null,null,null,null,null,null,null,null,null,null,0.5,0.5]
[null,"","","","","","","","","","","","","","","",null,"","","","","",null,"","",null,null,null,null,null,null,null,null,null,null,null,null,null,null,null,null,null,null,null,null,null,null,null,null,null,null,null,null,null,null,null,null,null,null,null,null,null,null,null,null,null,null,null,null,null,null,null,null,null,null,null,null,0.5,0.5]
[null,"","","","","","","","","","","","","","","",null,"","","","","",null,"","",null,null,null,null,null,null,null,null,null,null,null,null,null,null,null,null,null,null,null,null,null,null,null,null,null,null,null,null,null,null,null,null,null,null,null,null,null,null,null,null,null,null,null,null,null,null,null,null,null,null,null,null,0.5,0.5]
[null,"","","","","","","","","","","","","","","",null,"","","","","",null,"","",null,null,null,null,null,null,null,null,null,null,null,null,null,null,null,null,null,null,null,null,null,null,null,null,null,null,null,null,null,null,null,null,null,null,null,null,null,null,null,null,null,null,null,null,null,null,null,null,null,null,null,null,0.5,0.5]
[null,"","","","","","","","","","","","","","","",null,"","","","","",null,"","",null,null,null,null,null,null,null,null,null,null,null,null,null,null,null,null,null,null,null,null,null,null,null,null,null,null,null,null,null,null,null,null,null,null,null,null,null,null,null,null,null,null,null,null,null,null,null,null,null,null,null,null,0.5,0.5]
[null,"","","","","","","","","","","","","","","",null,"","","","","",null,"","",null,null,null,null,null,null,null,null,null,null,null,null,null,null,null,null,null,null,null,null,null,null,null,null,null,null,null,null,null,null,null,null,null,null,null,null,null,null,null,null,null,null,null,null,null,null,null,null,null,null,null,null,0.5,0.5]
[null,"","","","","","","","","","","","","","","",null,"","","","","",null,"","",null,null,null,null,null,null,null,null,null,null,null,null,null,null,null,null,null,null,null,null,null,null,null,null,null,null,null,null,null,null,null,null,null,null,null,null,null,null,null,null,null,null,null,null,null,null,null,null,null,null,null,null,0.5,0.5]
[null,"","","","","","","","","","","","","","","",null,"","","","","",null,"","",null,null,null,null,null,null,null,null,null,null,null,null,null,null,null,null,null,null,null,null,null,null,null,null,null,null,null,null,null,null,null,null,null,null,null,null,null,null,null,null,null,null,null,null,null,null,null,null,null,null,null,null,0.5,0.5]
[null,"","","","","","","","","","","","","","","",null,"","","","","",null,"","",null,null,null,null,null,null,null,null,null,null,null,null,null,null,null,null,null,null,null,null,null,null,null,null,null,null,null,null,null,null,null,null,null,null,null,null,null,null,null,null,null,null,null,null,null,null,null,null,null,null,null,null,0.5,0.5]
[null,"","","","","","","","","","","","","","","",null,"","","","","",null,"","",null,null,null,null,null,null,null,null,null,null,null,null,null,null,null,null,null,null,null,null,null,null,null,null,null,null,null,null,null,null,null,null,null,null,null,null,null,null,null,null,null,null,null,null,null,null,null,null,null,null,null,null,0.5,0.5]
[null,"","","","","","","","","","","","","","","",null,"","","","","",null,"","",null,null,null,null,null,null,null,null,null,null,null,null,null,null,null,null,null,null,null,null,null,null,null,null,null,null,null,null,null,null,null,null,null,null,null,null,null,null,null,null,null,null,null,null,null,null,null,null,null,null,null,null,0.5,0.5]
[null,"","","","","","","","","","","","","","","",null,"","","","","",null,"","",null,null,null,null,null,null,null,null,null,null,null,null,null,null,null,null,null,null,null,null,null,null,null,null,null,null,null,null,null,null,null,null,null,null,null,null,null,null,null,null,null,null,null,null,null,null,null,null,null,null,null,null,0.5,0.5]
[null,"","","","","","","","","","","","","","","",null,"","","","","",null,"","",null,null,null,null,null,null,null,null,null,null,null,null,null,null,null,null,null,null,null,null,null,null,null,null,null,null,null,null,null,null,null,null,null,null,null,null,null,null,null,null,null,null,null,null,null,null,null,null,null,null,null,null,0.5,0.5]
[null,"","","","","","","","","","","","","","","",null,"","","","","",null,"","",null,null,null,null,null,null,null,null,null,null,null,null,null,null,null,null,null,null,null,null,null,null,null,null,null,null,null,null,null,null,null,null,null,null,null,null,null,null,null,null,null,null,null,null,null,null,null,null,null,null,null,null,0.5,0.5]
[null,"","","","","","","","","","","","","","","",null,"","","","","",null,"","",null,null,null,null,null,null,null,null,null,null,null,null,null,null,null,null,null,null,null,null,null,null,null,null,null,null,null,null,null,null,null,null,null,null,null,null,null,null,null,null,null,null,null,null,null,null,null,null,null,null,null,null,0.5,0.5]
[null,"","","","","","","","","","","","","","","",null,"","","","","",null,"","",null,null,null,null,null,null,null,null,null,null,null,null,null,null,null,null,null,null,null,null,null,null,null,null,null,null,null,null,null,null,null,null,null,null,null,null,null,null,null,null,null,null,null,null,null,null,null,null,null,null,null,null,0.5,0.5]
[null,"","","","","","","","","","","","","","","",null,"","","","","",null,"","",null,null,null,null,null,null,null,null,null,null,null,null,null,null,null,null,null,null,null,null,null,null,null,null,null,null,null,null,null,null,null,null,null,null,null,null,null,null,null,null,null,null,null,null,null,null,null,null,null,null,null,null,0.5,0.5]
[null,"","","","","","","","","","","","","","","",null,"","","","","",null,"","",null,null,null,null,null,null,null,null,null,null,null,null,null,null,null,null,null,null,null,null,null,null,null,null,null,null,null,null,null,null,null,null,null,null,null,null,null,null,null,null,null,null,null,null,null,null,null,null,null,null,null,null,0.5,0.5]
[null,"","","","","","","","","","","","","","","",null,"","","","","",null,"","",null,null,null,null,null,null,null,null,null,null,null,null,null,null,null,null,null,null,null,null,null,null,null,null,null,null,null,null,null,null,null,null,null,null,null,null,null,null,null,null,null,null,null,null,null,null,null,null,null,null,null,null,0.5,0.5]
[null,"","","","","","","","","","","","","","","",null,"","","","","",null,"","",null,null,null,null,null,null,null,null,null,null,null,null,null,null,null,null,null,null,null,null,null,null,null,null,null,null,null,null,null,null,null,null,null,null,null,null,null,null,null,null,null,null,null,null,null,null,null,null,null,null,null,null,0.5,0.5]
[null,"","","","","","","","","","","","","","","",null,"","","","","",null,"","",null,null,null,null,null,null,null,null,null,null,null,null,null,null,null,null,null,null,null,null,null,null,null,null,null,null,null,null,null,null,null,null,null,null,null,null,null,null,null,null,null,null,null,null,null,null,null,null,null,null,null,null,0.5,0.5]
[null,"","","","","","","","","","","","","","","",null,"","","","","",null,"","",null,null,null,null,null,null,null,null,null,null,null,null,null,null,null,null,null,null,null,null,null,null,null,null,null,null,null,null,null,null,null,null,null,null,null,null,null,null,null,null,null,null,null,null,null,null,null,null,null,null,null,null,0.5,0.5]
[null,"","","","","","","","","","","","","","","",null,"","","","","",null,"","",null,null,null,null,null,null,null,null,null,null,null,null,null,null,null,null,null,null,null,null,null,null,null,null,null,null,null,null,null,null,null,null,null,null,null,null,null,null,null,null,null,null,null,null,null,null,null,null,null,null,null,null,0.5,0.5]
[null,"","","","","","","","","","","","","","","",null,"","","","","",null,"","",null,null,null,null,null,null,null,null,null,null,null,null,null,null,null,null,null,null,null,null,null,null,null,null,null,null,null,null,null,null,null,null,null,null,null,null,null,null,null,null,null,null,null,null,null,null,null,null,null,null,null,null,0.5,0.5]
[null,"","","","","","","","","","","","","","","",null,"","","","","",null,"","",null,null,null,null,null,null,null,null,null,null,null,null,null,null,null,null,null,null,null,null,null,null,null,null,null,null,null,null,null,null,null,null,null,null,null,null,null,null,null,null,null,null,null,null,null,null,null,null,null,null,null,null,0.5,0.5]
[null,"","","","","","","","","","","","","","","",null,"","","","","",null,"","",null,null,null,null,null,null,null,null,null,null,null,null,null,null,null,null,null,null,null,null,null,null,null,null,null,null,null,null,null,null,null,null,null,null,null,null,null,null,null,null,null,null,null,null,null,null,null,null,null,null,null,null,0.5,0.5]
[null,"","","","","","","","","","","","","","","",null,"","","","","",null,"","",null,null,null,null,null,null,null,null,null,null,null,null,null,null,null,null,null,null,null,null,null,null,null,null,null,null,null,null,null,null,null,null,null,null,null,null,null,null,null,null,null,null,null,null,null,null,null,null,null,null,null,null,0.5,0.5]
[null,"","","","","","","","","","","","","","","",null,"","","","","",null,"","",null,null,null,null,null,null,null,null,null,null,null,null,null,null,null,null,null,null,null,null,null,null,null,null,null,null,null,null,null,null,null,null,null,null,null,null,null,null,null,null,null,null,null,null,null,null,null,null,null,null,null,null,0.5,0.5]
[null,"","","","","","","","","","","","","","","",null,"","","","","",null,"","",null,null,null,null,null,null,null,null,null,null,null,null,null,null,null,null,null,null,null,null,null,null,null,null,null,null,null,null,null,null,null,null,null,null,null,null,null,null,null,null,null,null,null,null,null,null,null,null,null,null,null,null,0.5,0.5]
[null,"","","","","","","","","","","","","","","",null,"","","","","",null,"","",null,null,null,null,null,null,null,null,null,null,null,null,null,null,null,null,null,null,null,null,null,null,null,null,null,null,null,null,null,null,null,null,null,null,null,null,null,null,null,null,null,null,null,null,null,null,null,null,null,null,null,null,0.5,0.5]
[null,"","","","","","","","","","","","","","","",null,"","","","","",null,"","",null,null,null,null,null,null,null,null,null,null,null,null,null,null,null,null,null,null,null,null,null,null,null,null,null,null,null,null,null,null,null,null,null,null,null,null,null,null,null,null,null,null,null,null,null,null,null,null,null,null,null,null,0.5,0.5]
[null,"","","","","","","","","","","","","","","",null,"","","","","",null,"","",null,null,null,null,null,null,null,null,null,null,null,null,null,null,null,null,null,null,null,null,null,null,null,null,null,null,null,null,null,null,null,null,null,null,null,null,null,null,null,null,null,null,null,null,null,null,null,null,null,null,null,null,0.5,0.5]
[null,"","","","","","","","","","","","","","","",null,"","","","","",null,"","",null,null,null,null,null,null,null,null,null,null,null,null,null,null,null,null,null,null,null,null,null,null,null,null,null,null,null,null,null,null,null,null,null,null,null,null,null,null,null,null,null,null,null,null,null,null,null,null,null,null,null,null,0.5,0.5]
[null,"","","","","","","","","","","","","","","",null,"","","","","",null,"","",null,null,null,null,null,null,null,null,null,null,null,null,null,null,null,null,null,null,null,null,null,null,null,null,null,null,null,null,null,null,null,null,null,null,null,null,null,null,null,null,null,null,null,null,null,null,null,null,null,null,null,null,0.5,0.5]
[null,"","","","","","","","","","","","","","","",null,"","","","","",null,"","",null,null,null,null,null,null,null,null,null,null,null,null,null,null,null,null,null,null,null,null,null,null,null,null,null,null,null,null,null,null,null,null,null,null,null,null,null,null,null,null,null,null,null,null,null,null,null,null,null,null,null,null,0.5,0.5]
[null,"","","","","","","","","","","","","","","",null,"","","","","",null,"","",null,null,null,null,null,null,null,null,null,null,null,null,null,null,null,null,null,null,null,null,null,null,null,null,null,null,null,null,null,null,null,null,null,null,null,null,null,null,null,null,null,null,null,null,null,null,null,null,null,null,null,null,0.5,0.5]
[null,"","","","","","","","","","","","","","","",null,"","","","","",null,"","",null,null,null,null,null,null,null,null,null,null,null,null,null,null,null,null,null,null,null,null,null,null,null,null,null,null,null,null,null,null,null,null,null,null,null,null,null,null,null,null,null,null,null,null,null,null,null,null,null,null,null,null,0.5,0.5]
[null,"","","","","","","","","","","","","","","",null,"","","","","",null,"","",null,null,null,null,null,null,null,null,null,null,null,null,null,null,null,null,null,null,null,null,null,null,null,null,null,null,null,null,null,null,null,null,null,null,null,null,null,null,null,null,null,null,null,null,null,null,null,null,null,null,null,null,0.5,0.5]
[null,"","","","","","","","","","","","","","","",null,"","","","","",null,"","",null,null,null,null,null,null,null,null,null,null,null,null,null,null,null,null,null,null,null,null,null,null,null,null,null,null,null,null,null,null,null,null,null,null,null,null,null,null,null,null,null,null,null,null,null,null,null,null,null,null,null,null,0.5,0.5]
[null,"","","","","","","","","","","","","","","",null,"","","","","",null,"","",null,null,null,null,null,null,null,null,null,null,null,null,null,null,null,null,null,null,null,null,null,null,null,null,null,null,null,null,null,null,null,null,null,null,null,null,null,null,null,null,null,null,null,null,null,null,null,null,null,null,null,null,0.5,0.5]
[null,"","","","","","","","","","","","","","","",null,"","","","","",null,"","",null,null,null,null,null,null,null,null,null,null,null,null,null,null,null,null,null,null,null,null,null,null,null,null,null,null,null,null,null,null,null,null,null,null,null,null,null,null,null,null,null,null,null,null,null,null,null,null,null,null,null,null,0.5,0.5]
[null,"","","","","","","","","","","","","","","",null,"","","","","",null,"","",null,null,null,null,null,null,null,null,null,null,null,null,null,null,null,null,null,null,null,null,null,null,null,null,null,null,null,null,null,null,null,null,null,null,null,null,null,null,null,null,null,null,null,null,null,null,null,null,null,null,null,null,0.5,0.5]
[null,"","","","","","","","","","","","","","","",null,"","","","","",null,"","",null,null,null,null,null,null,null,null,null,null,null,null,null,null,null,null,null,null,null,null,null,null,null,null,null,null,null,null,null,null,null,null,null,null,null,null,null,null,null,null,null,null,null,null,null,null,null,null,null,null,null,null,0.5,0.5]
[null,"","","","","","","","","","","","","","","",null,"","","","","",null,"","",null,null,null,null,null,null,null,null,null,null,null,null,null,null,null,null,null,null,null,null,null,null,null,null,null,null,null,null,null,null,null,null,null,null,null,null,null,null,null,null,null,null,null,null,null,null,null,null,null,null,null,null,0.5,0.5]
[null,"","","","","","","","","","","","","","","",null,"","","","","",null,"","",null,null,null,null,null,null,null,null,null,null,null,null,null,null,null,null,null,null,null,null,null,null,null,null,null,null,null,null,null,null,null,null,null,null,null,null,null,null,null,null,null,null,null,null,null,null,null,null,null,null,null,null,0.5,0.5]
[null,"","","","","","","","","","","","","","","",null,"","","","","",null,"","",null,null,null,null,null,null,null,null,null,null,null,null,null,null,null,null,null,null,null,null,null,null,null,null,null,null,null,null,null,null,null,null,null,null,null,null,null,null,null,null,null,null,null,null,null,null,null,null,null,null,null,null,0.5,0.5]
[null,"","","","","","","","","","","","","","","",null,"","","","","",null,"","",null,null,null,null,null,null,null,null,null,null,null,null,null,null,null,null,null,null,null,null,null,null,null,null,null,null,null,null,null,null,null,null,null,null,null,null,null,null,null,null,null,null,null,null,null,null,null,null,null,null,null,null,0.5,0.5]
[null,"","","","","","","","","","","","","","","",null,"","","","","",null,"","",null,null,null,null,null,null,null,null,null,null,null,null,null,null,null,null,null,null,null,null,null,null,null,null,null,null,null,null,null,null,null,null,null,null,null,null,null,null,null,null,null,null,null,null,null,null,null,null,null,null,null,null,0.5,0.5]
[null,"","","","","","","","","","","","","","","",null,"","","","","",null,"","",null,null,null,null,null,null,null,null,null,null,null,null,null,null,null,null,null,null,null,null,null,null,null,null,null,null,null,null,null,null,null,null,null,null,null,null,null,null,null,null,null,null,null,null,null,null,null,null,null,null,null,null,0.5,0.5]
[null,"","","","","","","","","","","","","","","",null,"","","","","",null,"","",null,null,null,null,null,null,null,null,null,null,null,null,null,null,null,null,null,null,null,null,null,null,null,null,null,null,null,null,null,null,null,null,null,null,null,null,null,null,null,null,null,null,null,null,null,null,null,null,null,null,null,null,0.5,0.5]
[null,"","","","","","","","","","","","","","","",null,"","","","","",null,"","",null,null,null,null,null,null,null,null,null,null,null,null,null,null,null,null,null,null,null,null,null,null,null,null,null,null,null,null,null,null,null,null,null,null,null,null,null,null,null,null,null,null,null,null,null,null,null,null,null,null,null,null,0.5,0.5]
[null,"","","","","","","","","","","","","","","",null,"","","","","",null,"","",null,null,null,null,null,null,null,null,null,null,null,null,null,null,null,null,null,null,null,null,null,null,null,null,null,null,null,null,null,null,null,null,null,null,null,null,null,null,null,null,null,null,null,null,null,null,null,null,null,null,null,null,0.5,0.5]
[null,"","","","","","","","","","","","","","","",null,"","","","","",null,"","",null,null,null,null,null,null,null,null,null,null,null,null,null,null,null,null,null,null,null,null,null,null,null,null,null,null,null,null,null,null,null,null,null,null,null,null,null,null,null,null,null,null,null,null,null,null,null,null,null,null,null,null,0.5,0.5]
[null,"","","","","","","","","","","","","","","",null,"","","","","",null,"","",null,null,null,null,null,null,null,null,null,null,null,null,null,null,null,null,null,null,null,null,null,null,null,null,null,null,null,null,null,null,null,null,null,null,null,null,null,null,null,null,null,null,null,null,null,null,null,null,null,null,null,null,0.5,0.5]
[null,"","","","","","","","","","","","","","","",null,"","","","","",null,"","",null,null,null,null,null,null,null,null,null,null,null,null,null,null,null,null,null,null,null,null,null,null,null,null,null,null,null,null,null,null,null,null,null,null,null,null,null,null,null,null,null,null,null,null,null,null,null,null,null,null,null,null,0.5,0.5]
[null,"","","","","","","","","","","","","","","",null,"","","","","",null,"","",null,null,null,null,null,null,null,null,null,null,null,null,null,null,null,null,null,null,null,null,null,null,null,null,null,null,null,null,null,null,null,null,null,null,null,null,null,null,null,null,null,null,null,null,null,null,null,null,null,null,null,null,0.5,0.5]
[null,"","","","","","","","","","","","","","","",null,"","","","","",null,"","",null,null,null,null,null,null,null,null,null,null,null,null,null,null,null,null,null,null,null,null,null,null,null,null,null,null,null,null,null,null,null,null,null,null,null,null,null,null,null,null,null,null,null,null,null,null,null,null,null,null,null,null,0.5,0.5]
[null,"","","","","","","","","","","","","","","",null,"","","","","",null,"","",null,null,null,null,null,null,null,null,null,null,null,null,null,null,null,null,null,null,null,null,null,null,null,null,null,null,null,null,null,null,null,null,null,null,null,null,null,null,null,null,null,null,null,null,null,null,null,null,null,null,null,null,0.5,0.5]
[null,"","","","","","","","","","","","","","","",null,"","","","","",null,"","",null,null,null,null,null,null,null,null,null,null,null,null,null,null,null,null,null,null,null,null,null,null,null,null,null,null,null,null,null,null,null,null,null,null,null,null,null,null,null,null,null,null,null,null,null,null,null,null,null,null,null,null,0.5,0.5]
[null,"","","","","","","","","","","","","","","",null,"","","","","",null,"","",null,null,null,null,null,null,null,null,null,null,null,null,null,null,null,null,null,null,null,null,null,null,null,null,null,null,null,null,null,null,null,null,null,null,null,null,null,null,null,null,null,null,null,null,null,null,null,null,null,null,null,null,0.5,0.5]
[null,"","","","","","","","","","","","","","","",null,"","","","","",null,"","",null,null,null,null,null,null,null,null,null,null,null,null,null,null,null,null,null,null,null,null,null,null,null,null,null,null,null,null,null,null,null,null,null,null,null,null,null,null,null,null,null,null,null,null,null,null,null,null,null,null,null,null,0.5,0.5]
[null,"","","","","","","","","","","","","","","",null,"","","","","",null,"","",null,null,null,null,null,null,null,null,null,null,null,null,null,null,null,null,null,null,null,null,null,null,null,null,null,null,null,null,null,null,null,null,null,null,null,null,null,null,null,null,null,null,null,null,null,null,null,null,null,null,null,null,0.5,0.5]
[null,"","","","","","","","","","","","","","","",null,"","","","","",null,"","",null,null,null,null,null,null,null,null,null,null,null,null,null,null,null,null,null,null,null,null,null,null,null,null,null,null,null,null,null,null,null,null,null,null,null,null,null,null,null,null,null,null,null,null,null,null,null,null,null,null,null,null,0.5,0.5]
[null,"","","","","","","","","","","","","","","",null,"","","","","",null,"","",null,null,null,null,null,null,null,null,null,null,null,null,null,null,null,null,null,null,null,null,null,null,null,null,null,null,null,null,null,null,null,null,null,null,null,null,null,null,null,null,null,null,null,null,null,null,null,null,null,null,null,null,0.5,0.5]
[null,"","","","","","","","","","","","","","","",null,"","","","","",null,"","",null,null,null,null,null,null,null,null,null,null,null,null,null,null,null,null,null,null,null,null,null,null,null,null,null,null,null,null,null,null,null,null,null,null,null,null,null,null,null,null,null,null,null,null,null,null,null,null,null,null,null,null,0.5,0.5]
[null,"","","","","","","","","","","","","","","",null,"","","","","",null,"","",null,null,null,null,null,null,null,null,null,null,null,null,null,null,null,null,null,null,null,null,null,null,null,null,null,null,null,null,null,null,null,null,null,null,null,null,null,null,null,null,null,null,null,null,null,null,null,null,null,null,null,null,0.5,0.5]
[null,"","","","","","","","","","","","","","","",null,"","","","","",null,"","",null,null,null,null,null,null,null,null,null,null,null,null,null,null,null,null,null,null,null,null,null,null,null,null,null,null,null,null,null,null,null,null,null,null,null,null,null,null,null,null,null,null,null,null,null,null,null,null,null,null,null,null,0.5,0.5]
[null,"","","","","","","","","","","","","","","",null,"","","","","",null,"","",null,null,null,null,null,null,null,null,null,null,null,null,null,null,null,null,null,null,null,null,null,null,null,null,null,null,null,null,null,null,null,null,null,null,null,null,null,null,null,null,null,null,null,null,null,null,null,null,null,null,null,null,0.5,0.5]
[null,"","","","","","","","","","","","","","","",null,"","","","","",null,"","",null,null,null,null,null,null,null,null,null,null,null,null,null,null,null,null,null,null,null,null,null,null,null,null,null,null,null,null,null,null,null,null,null,null,null,null,null,null,null,null,null,null,null,null,null,null,null,null,null,null,null,null,0.5,0.5]
[null,"","","","","","","","","","","","","","","",null,"","","","","",null,"","",null,null,null,null,null,null,null,null,null,null,null,null,null,null,null,null,null,null,null,null,null,null,null,null,null,null,null,null,null,null,null,null,null,null,null,null,null,null,null,null,null,null,null,null,null,null,null,null,null,null,null,null,0.5,0.5]
[null,"","","","","","","","","","","","","","","",null,"","","","","",null,"","",null,null,null,null,null,null,null,null,null,null,null,null,null,null,null,null,null,null,null,null,null,null,null,null,null,null,null,null,null,null,null,null,null,null,null,null,null,null,null,null,null,null,null,null,null,null,null,null,null,null,null,null,0.5,0.5]
[null,"","","","","","","","","","","","","","","",null,"","","","","",null,"","",null,null,null,null,null,null,null,null,null,null,null,null,null,null,null,null,null,null,null,null,null,null,null,null,null,null,null,null,null,null,null,null,null,null,null,null,null,null,null,null,null,null,null,null,null,null,null,null,null,null,null,null,0.5,0.5]
[null,"","","","","","","","","","","","","","","",null,"","","","","",null,"","",null,null,null,null,null,null,null,null,null,null,null,null,null,null,null,null,null,null,null,null,null,null,null,null,null,null,null,null,null,null,null,null,null,null,null,null,null,null,null,null,null,null,null,null,null,null,null,null,null,null,null,null,0.5,0.5]
[null,"","","","","","","","","","","","","","","",null,"","","","","",null,"","",null,null,null,null,null,null,null,null,null,null,null,null,null,null,null,null,null,null,null,null,null,null,null,null,null,null,null,null,null,null,null,null,null,null,null,null,null,null,null,null,null,null,null,null,null,null,null,null,null,null,null,null,0.5,0.5]
[null,"","","","","","","","","","","","","","","",null,"","","","","",null,"","",null,null,null,null,null,null,null,null,null,null,null,null,null,null,null,null,null,null,null,null,null,null,null,null,null,null,null,null,null,null,null,null,null,null,null,null,null,null,null,null,null,null,null,null,null,null,null,null,null,null,null,null,0.5,0.5]
[null,"","","","","","","","","","","","","","","",null,"","","","","",null,"","",null,null,null,null,null,null,null,null,null,null,null,null,null,null,null,null,null,null,null,null,null,null,null,null,null,null,null,null,null,null,null,null,null,null,null,null,null,null,null,null,null,null,null,null,null,null,null,null,null,null,null,null,0.5,0.5]
[null,"","","","","","","","","","","","","","","",null,"","","","","",null,"","",null,null,null,null,null,null,null,null,null,null,null,null,null,null,null,null,null,null,null,null,null,null,null,null,null,null,null,null,null,null,null,null,null,null,null,null,null,null,null,null,null,null,null,null,null,null,null,null,null,null,null,null,0.5,0.5]
[null,"","","","","","","","","","","","","","","",null,"","","","","",null,"","",null,null,null,null,null,null,null,null,null,null,null,null,null,null,null,null,null,null,null,null,null,null,null,null,null,null,null,null,null,null,null,null,null,null,null,null,null,null,null,null,null,null,null,null,null,null,null,null,null,null,null,null,0.5,0.5]
[null,"","","","","","","","","","","","","","","",null,"","","","","",null,"","",null,null,null,null,null,null,null,null,null,null,null,null,null,null,null,null,null,null,null,null,null,null,null,null,null,null,null,null,null,null,null,null,null,null,null,null,null,null,null,null,null,null,null,null,null,null,null,null,null,null,null,null,0.5,0.5]
[null,"","","","","","","","","","","","","","","",null,"","","","","",null,"","",null,null,null,null,null,null,null,null,null,null,null,null,null,null,null,null,null,null,null,null,null,null,null,null,null,null,null,null,null,null,null,null,null,null,null,null,null,null,null,null,null,null,null,null,null,null,null,null,null,null,null,null,0.5,0.5]
[null,"","","","","","","","","","","","","","","",null,"","","","","",null,"","",null,null,null,null,null,null,null,null,null,null,null,null,null,null,null,null,null,null,null,null,null,null,null,null,null,null,null,null,null,null,null,null,null,null,null,null,null,null,null,null,null,null,null,null,null,null,null,null,null,null,null,null,0.5,0.5]
[null,"","","","","","","","","","","","","","","",null,"","","","","",null,"","",null,null,null,null,null,null,null,null,null,null,null,null,null,null,null,null,null,null,null,null,null,null,null,null,null,null,null,null,null,null,null,null,null,null,null,null,null,null,null,null,null,null,null,null,null,null,null,null,null,null,null,null,0.5,0.5]
[null,"","","","","","","","","","","","","","","",null,"","","","","",null,"","",null,null,null,null,null,null,null,null,null,null,null,null,null,null,null,null,null,null,null,null,null,null,null,null,null,null,null,null,null,null,null,null,null,null,null,null,null,null,null,null,null,null,null,null,null,null,null,null,null,null,null,null,0.5,0.5]
[null,"","","","","","","","","","","","","","","",null,"","","","","",null,"","",null,null,null,null,null,null,null,null,null,null,null,null,null,null,null,null,null,null,null,null,null,null,null,null,null,null,null,null,null,null,null,null,null,null,null,null,null,null,null,null,null,null,null,null,null,null,null,null,null,null,null,null,0.5,0.5]
[null,"","","","","","","","","","","","","","","",null,"","","","","",null,"","",null,null,null,null,null,null,null,null,null,null,null,null,null,null,null,null,null,null,null,null,null,null,null,null,null,null,null,null,null,null,null,null,null,null,null,null,null,null,null,null,null,null,null,null,null,null,null,null,null,null,null,null,0.5,0.5]
[null,"","","","","","","","","","","","","","","",null,"","","","","",null,"","",null,null,null,null,null,null,null,null,null,null,null,null,null,null,null,null,null,null,null,null,null,null,null,null,null,null,null,null,null,null,null,null,null,null,null,null,null,null,null,null,null,null,null,null,null,null,null,null,null,null,null,null,0.5,0.5]
[null,"","","","","","","","","","","","","","","",null,"","","","","",null,"","",null,null,null,null,null,null,null,null,null,null,null,null,null,null,null,null,null,null,null,null,null,null,null,null,null,null,null,null,null,null,null,null,null,null,null,null,null,null,null,null,null,null,null,null,null,null,null,null,null,null,null,null,0.5,0.5]
[null,"","","","","","","","","","","","","","","",null,"","","","","",null,"","",null,null,null,null,null,null,null,null,null,null,null,null,null,null,null,null,null,null,null,null,null,null,null,null,null,null,null,null,null,null,null,null,null,null,null,null,null,null,null,null,null,null,null,null,null,null,null,null,null,null,null,null,0.5,0.5]
[null,"","","","","","","","","","","","","","","",null,"","","","","",null,"","",null,null,null,null,null,null,null,null,null,null,null,null,null,null,null,null,null,null,null,null,null,null,null,null,null,null,null,null,null,null,null,null,null,null,null,null,null,null,null,null,null,null,null,null,null,null,null,null,null,null,null,null,0.5,0.5]
[null,"","","","","","","","","","","","","","","",null,"","","","","",null,"","",null,null,null,null,null,null,null,null,null,null,null,null,null,null,null,null,null,null,null,null,null,null,null,null,null,null,null,null,null,null,null,null,null,null,null,null,null,null,null,null,null,null,null,null,null,null,null,null,null,null,null,null,0.5,0.5]
[null,"","","","","","","","","","","","","","","",null,"","","","","",null,"","",null,null,null,null,null,null,null,null,null,null,null,null,null,null,null,null,null,null,null,null,null,null,null,null,null,null,null,null,null,null,null,null,null,null,null,null,null,null,null,null,null,null,null,null,null,null,null,null,null,null,null,null,0.5,0.5]
[null,"","","","","","","","","","","","","","","",null,"","","","","",null,"","",null,null,null,null,null,null,null,null,null,null,null,null,null,null,null,null,null,null,null,null,null,null,null,null,null,null,null,null,null,null,null,null,null,null,null,null,null,null,null,null,null,null,null,null,null,null,null,null,null,null,null,null,0.5,0.5]
[null,"","","","","","","","","","","","","","","",null,"","","","","",null,"","",null,null,null,null,null,null,null,null,null,null,null,null,null,null,null,null,null,null,null,null,null,null,null,null,null,null,null,null,null,null,null,null,null,null,null,null,null,null,null,null,null,null,null,null,null,null,null,null,null,null,null,null,0.5,0.5]
[null,"","","","","","","","","","","","","","","",null,"","","","","",null,"","",null,null,null,null,null,null,null,null,null,null,null,null,null,null,null,null,null,null,null,null,null,null,null,null,null,null,null,null,null,null,null,null,null,null,null,null,null,null,null,null,null,null,null,null,null,null,null,null,null,null,null,null,0.5,0.5]
[null,"","","","","","","","","","","","","","","",null,"","","","","",null,"","",null,null,null,null,null,null,null,null,null,null,null,null,null,null,null,null,null,null,null,null,null,null,null,null,null,null,null,null,null,null,null,null,null,null,null,null,null,null,null,null,null,null,null,null,null,null,null,null,null,null,null,null,0.5,0.5]
[null,"","","","","","","","","","","","","","","",null,"","","","","",null,"","",null,null,null,null,null,null,null,null,null,null,null,null,null,null,null,null,null,null,null,null,null,null,null,null,null,null,null,null,null,null,null,null,null,null,null,null,null,null,null,null,null,null,null,null,null,null,null,null,null,null,null,null,0.5,0.5]
[null,"","","","","","","","","","","","","","","",null,"","","","","",null,"","",null,null,null,null,null,null,null,null,null,null,null,null,null,null,null,null,null,null,null,null,null,null,null,null,null,null,null,null,null,null,null,null,null,null,null,null,null,null,null,null,null,null,null,null,null,null,null,null,null,null,null,null,0.5,0.5]
[null,"","","","","","","","","","","","","","","",null,"","","","","",null,"","",null,null,null,null,null,null,null,null,null,null,null,null,null,null,null,null,null,null,null,null,null,null,null,null,null,null,null,null,null,null,null,null,null,null,null,null,null,null,null,null,null,null,null,null,null,null,null,null,null,null,null,null,0.5,0.5]
[null,"","","","","","","","","","","","","","","",null,"","","","","",null,"","",null,null,null,null,null,null,null,null,null,null,null,null,null,null,null,null,null,null,null,null,null,null,null,null,null,null,null,null,null,null,null,null,null,null,null,null,null,null,null,null,null,null,null,null,null,null,null,null,null,null,null,null,0.5,0.5]
[null,"","","","","","","","","","","","","","","",null,"","","","","",null,"","",null,null,null,null,null,null,null,null,null,null,null,null,null,null,null,null,null,null,null,null,null,null,null,null,null,null,null,null,null,null,null,null,null,null,null,null,null,null,null,null,null,null,null,null,null,null,null,null,null,null,null,null,0.5,0.5]
[null,"","","","","","","","","","","","","","","",null,"","","","","",null,"","",null,null,null,null,null,null,null,null,null,null,null,null,null,null,null,null,null,null,null,null,null,null,null,null,null,null,null,null,null,null,null,null,null,null,null,null,null,null,null,null,null,null,null,null,null,null,null,null,null,null,null,null,0.5,0.5]
[null,"","","","","","","","","","","","","","","",null,"","","","","",null,"","",null,null,null,null,null,null,null,null,null,null,null,null,null,null,null,null,null,null,null,null,null,null,null,null,null,null,null,null,null,null,null,null,null,null,null,null,null,null,null,null,null,null,null,null,null,null,null,null,null,null,null,null,0.5,0.5]
[null,"","","","","","","","","","","","","","","",null,"","","","","",null,"","",null,null,null,null,null,null,null,null,null,null,null,null,null,null,null,null,null,null,null,null,null,null,null,null,null,null,null,null,null,null,null,null,null,null,null,null,null,null,null,null,null,null,null,null,null,null,null,null,null,null,null,null,0.5,0.5]
[null,"","","","","","","","","","","","","","","",null,"","","","","",null,"","",null,null,null,null,null,null,null,null,null,null,null,null,null,null,null,null,null,null,null,null,null,null,null,null,null,null,null,null,null,null,null,null,null,null,null,null,null,null,null,null,null,null,null,null,null,null,null,null,null,null,null,null,0.5,0.5]
[null,"","","","","","","","","","","","","","","",null,"","","","","",null,"","",null,null,null,null,null,null,null,null,null,null,null,null,null,null,null,null,null,null,null,null,null,null,null,null,null,null,null,null,null,null,null,null,null,null,null,null,null,null,null,null,null,null,null,null,null,null,null,null,null,null,null,null,0.5,0.5]
[null,"","","","","","","","","","","","","","","",null,"","","","","",null,"","",null,null,null,null,null,null,null,null,null,null,null,null,null,null,null,null,null,null,null,null,null,null,null,null,null,null,null,null,null,null,null,null,null,null,null,null,null,null,null,null,null,null,null,null,null,null,null,null,null,null,null,null,0.5,0.5]
[null,"","","","","","","","","","","","","","","",null,"","","","","",null,"","",null,null,null,null,null,null,null,null,null,null,null,null,null,null,null,null,null,null,null,null,null,null,null,null,null,null,null,null,null,null,null,null,null,null,null,null,null,null,null,null,null,null,null,null,null,null,null,null,null,null,null,null,0.5,0.5]
[null,"","","","","","","","","","","","","","","",null,"","","","","",null,"","",null,null,null,null,null,null,null,null,null,null,null,null,null,null,null,null,null,null,null,null,null,null,null,null,null,null,null,null,null,null,null,null,null,null,null,null,null,null,null,null,null,null,null,null,null,null,null,null,null,null,null,null,0.5,0.5]
[null,"","","","","","","","","","","","","","","",null,"","","","","",null,"","",null,null,null,null,null,null,null,null,null,null,null,null,null,null,null,null,null,null,null,null,null,null,null,null,null,null,null,null,null,null,null,null,null,null,null,null,null,null,null,null,null,null,null,null,null,null,null,null,null,null,null,null,0.5,0.5]
[null,"","","","","","","","","","","","","","","",null,"","","","","",null,"","",null,null,null,null,null,null,null,null,null,null,null,null,null,null,null,null,null,null,null,null,null,null,null,null,null,null,null,null,null,null,null,null,null,null,null,null,null,null,null,null,null,null,null,null,null,null,null,null,null,null,null,null,0.5,0.5]
[null,"","","","","","","","","","","","","","","",null,"","","","","",null,"","",null,null,null,null,null,null,null,null,null,null,null,null,null,null,null,null,null,null,null,null,null,null,null,null,null,null,null,null,null,null,null,null,null,null,null,null,null,null,null,null,null,null,null,null,null,null,null,null,null,null,null,null,0.5,0.5]
[null,"","","","","","","","","","","","","","","",null,"","","","","",null,"","",null,null,null,null,null,null,null,null,null,null,null,null,null,null,null,null,null,null,null,null,null,null,null,null,null,null,null,null,null,null,null,null,null,null,null,null,null,null,null,null,null,null,null,null,null,null,null,null,null,null,null,null,0.5,0.5]
[null,"","","","","","","","","","","","","","","",null,"","","","","",null,"","",null,null,null,null,null,null,null,null,null,null,null,null,null,null,null,null,null,null,null,null,null,null,null,null,null,null,null,null,null,null,null,null,null,null,null,null,null,null,null,null,null,null,null,null,null,null,null,null,null,null,null,null,0.5,0.5]
[null,"","","","","","","","","","","","","","","",null,"","","","","",null,"","",null,null,null,null,null,null,null,null,null,null,null,null,null,null,null,null,null,null,null,null,null,null,null,null,null,null,null,null,null,null,null,null,null,null,null,null,null,null,null,null,null,null,null,null,null,null,null,null,null,null,null,null,0.5,0.5]
[null,"","","","","","","","","","","","","","","",null,"","","","","",null,"","",null,null,null,null,null,null,null,null,null,null,null,null,null,null,null,null,null,null,null,null,null,null,null,null,null,null,null,null,null,null,null,null,null,null,null,null,null,null,null,null,null,null,null,null,null,null,null,null,null,null,null,null,0.5,0.5]
[null,"","","","","","","","","","","","","","","",null,"","","","","",null,"","",null,null,null,null,null,null,null,null,null,null,null,null,null,null,null,null,null,null,null,null,null,null,null,null,null,null,null,null,null,null,null,null,null,null,null,null,null,null,null,null,null,null,null,null,null,null,null,null,null,null,null,null,0.5,0.5]
[null,"","","","","","","","","","","","","","","",null,"","","","","",null,"","",null,null,null,null,null,null,null,null,null,null,null,null,null,null,null,null,null,null,null,null,null,null,null,null,null,null,null,null,null,null,null,null,null,null,null,null,null,null,null,null,null,null,null,null,null,null,null,null,null,null,null,null,0.5,0.5]
[null,"","","","","","","","","","","","","","","",null,"","","","","",null,"","",null,null,null,null,null,null,null,null,null,null,null,null,null,null,null,null,null,null,null,null,null,null,null,null,null,null,null,null,null,null,null,null,null,null,null,null,null,null,null,null,null,null,null,null,null,null,null,null,null,null,null,null,0.5,0.5]
["REPARACIÓN","","","","","","","","","","","","","","","",null,"","","","","",null,"","",null,null,null,null,null,null,null,null,null,null,null,null,null,null,null,null,null,null,null,null,null,null,null,null,null,null,null,null,null,null,null,null,null,null,null,null,null,null,null,null,null,null,null,null,null,null,null,null,null,null,null,null,0.5,0.5]
[null,null,null,null,null,null,null,null,null,null,null,null,null,null,null,null,null,null,null,""]
[null,null,null,null,null,null,null,null,null,null,null,null,null,null,null,null,null,null,null,""]
[null,null,null,null,null,null,null,null,null,null,null,null,null,null,null,null,null,null,null,""]
[null,null,null,null,null,null,null,null,null,null,null,null,null,null,null,null,null,null,null,""]
[null,null,null,null,null,null,null,null,null,null,null,null,null,null,null,null,null,null,null,""]
[null,null,null,null,null,null,null,null,null,null,null,null,null,null,null,null,null,null,null,""]
[null,null,null,null,null,null,null,null,null,null,null,null,null,null,null,null,null,null,null,""]
[null,null,null,null,null,null,null,null,null,null,null,null,null,null,null,null,null,null,null,""]
[null,null,null,null,null,null,null,null,null,null,null,null,null,null,null,null,null,null,null,""]
[null,null,null,null,null,null,null,null,null,null,null,null,null,null,null,null,null,null,null,""]
[null,null,null,null,null,null,null,null,null,null,null,null,null,null,null,null,null,null,null,""]
[null,null,null,null,null,null,null,null,null,null,null,null,null,null,null,null,null,null,null,""]
[null,null,null,null,null,null,null,null,null,null,null,null,null,null,null,null,null,null,null,""]
[null,null,null,null,null,null,null,null,null,null,null,null,null,null,null,null,null,null,null,""]
[null,null,null,null,null,null,null,null,null,null,null,null,null,null,null,null,null,null,null,""]
[null,null,null,null,null,null,null,null,null,null,null,null,null,null,null,null,null,null,null,""]
[null,null,null,null,null,null,null,null,null,null,null,null,null,null,null,null,null,null,null,""]
[null,null,null,null,null,null,null,null,null,null,null,null,null,null,null,null,null,null,null,""]
[null,null,null,null,null,null,null,null,null,null,null,null,null,null,null,null,null,null,null,""]
[null,null,null,null,null,null,null,null,null,null,null,null,null,null,null,null,null,null,null,""]
[null,null,null,null,null,null,null,null,null,null,null,null,null,null,null,null,null,null,null,""]
[null,null,null,null,null,null,null,null,null,null,null,null,null,null,null,null,null,null,null,""]
[null,null,null,null,null,null,null,null,null,null,null,null,null,null,null,null,null,null,null,""]
[null,null,null,null,null,null,null,null,null,null,null,null,null,null,null,null,null,null,null,""]
[null,null,null,null,null,null,null,null,null,null,null,null,null,null,null,null,null,null,null,""]
[null,null,null,null,null,null,null,null,null,null,null,null,null,null,null,null,null,null,null,""]
[null,null,null,null,null,null,null,null,null,null,null,null,null,null,null,null,null,null,null,""]
[null,null,null,null,null,null,null,null,null,null,null,null,null,null,null,null,null,null,null,""]
[null,null,null,null,null,null,null,null,null,null,null,null,null,null,null,null,null,null,null,""]
[null,null,null,null,null,null,null,null,null,null,null,null,null,null,null,null,null,null,null,""]
[null,null,null,null,null,null,null,null,null,null,null,null,null,null,null,null,null,null,null,""]
[null,null,null,null,null,null,null,null,null,null,null,null,null,null,null,null,null,null,null,""]
[null,null,null,null,null,null,null,null,null,null,null,null,null,null,null,null,null,null,null,""]
[null,null,null,null,null,null,null,null,null,null,null,null,null,null,null,null,null,null,null,""]
[null,null,null,null,null,null,null,null,null,null,null,null,null,null,null,null,null,null,null,""]
[null,null,null,null,null,null,null,null,null,null,null,null,null,null,null,null,null,null,null,""]
[null,null,null,null,null,null,null,null,null,null,null,null,null,null,null,null,null,null,null,""]
[null,null,null,null,null,null,null,null,null,null,null,null,null,null,null,null,null,null,null,""]
[null,null,null,null,null,null,null,null,null,null,null,null,null,null,null,null,null,null,null,""]
[null,null,null,null,null,null,null,null,null,null,null,null,null,null,null,null,null,null,null,""]
[null,null,null,null,null,null,null,null,null,null,null,null,null,null,null,null,null,null,null,""]
[null,null,null,null,null,null,null,null,null,null,null,null,null,null,null,null,null,null,null,""]
[null,null,null,null,null,null,null,null,null,null,null,null,null,null,null,null,null,null,null,""]
[null,null,null,null,null,null,null,null,null,null,null,null,null,null,null,null,null,null,null,""]
[null,null,null,null,null,null,null,null,null,null,null,null,null,null,null,null,null,null,null,""]
[null,null,null,null,null,null,null,null,null,null,null,null,null,null,null,null,null,null,null,""]
[null,null,null,null,null,null,null,null,null,null,null,null,null,null,null,null,null,null,null,""]
[null,null,null,null,null,null,null,null,null,null,null,null,null,null,null,null,null,null,null,""]
[null,null,null,null,null,null,null,null,null,null,null,null,null,null,null,null,null,null,null,""]
[null,null,null,null,null,null,null,null,null,null,null,null,null,null,null,null,null,null,null,""]
[null,null,null,null,null,null,null,null,null,null,null,null,null,null,null,null,null,null,null,""]
[null,null,null,null,null,null,null,null,null,null,null,null,null,null,null,null,null,null,null,""]
[null,null,null,null,null,null,null,null,null,null,null,null,null,null,null,null,null,null,null,""]
[null,null,null,null,null,null,null,null,null,null,null,null,null,null,null,null,null,null,null,""]
[null,null,null,null,null,null,null,null,null,null,null,null,null,null,null,null,null,null,null,""]
[null,null,null,null,null,null,null,null,null,null,null,null,null,null,null,null,null,null,null,""]
[null,null,null,null,null,null,null,null,null,null,null,null,null,null,null,null,null,null,null,""]
[null,null,null,null,null,null,null,null,null,null,null,null,null,null,null,null,null,null,null,""]
[null,null,null,null,null,null,null,null,null,null,null,null,null,null,null,null,null,null,null,""]
[null,null,null,null,null,null,null,null,null,null,null,null,null,null,null,null,null,null,null,""]
[null,null,null,null,null,null,null,null,null,null,null,null,null,null,null,null,null,null,null,""]
[null,null,null,null,null,null,null,null,null,null,null,null,null,null,null,null,null,null,null,""]
[null,null,null,null,null,null,null,null,null,null,null,null,null,null,null,null,null,null,null,""]
[null,null,null,null,null,null,null,null,null,null,null,null,null,null,null,null,null,null,null,""]
[null,null,null,null,null,null,null,null,null,null,null,null,null,null,null,null,null,null,null,""]
[null,null,null,null,null,null,null,null,null,null,null,null,null,null,null,null,null,null,null,""]
[null,null,null,null,null,null,null,null,null,null,null,null,null,null,null,null,null,null,null,""]
[null,null,null,null,null,null,null,null,null,null,null,null,null,null,null,null,null,null,null,""]
[null,null,null,null,null,null,null,null,null,null,null,null,null,null,null,null,null,null,null,""]
[null,null,null,null,null,null,null,null,null,null,null,null,null,null,null,null,null,null,null,""]
[null,null,null,null,null,null,null,null,null,null,null,null,null,null,null,null,null,null,null,""]
[null,null,null,null,null,null,null,null,null,null,null,null,null,null,null,null,null,null,null,""]
[null,null,null,null,null,null,null,null,null,null,null,null,null,null,null,null,null,null,null,""]
[null,null,null,null,null,null,null,null,null,null,null,null,null,null,null,null,null,null,null,""]
[null,null,null,null,null,null,null,null,null,null,null,null,null,null,null,null,null,null,null,""]
[null,null,null,null,null,null,null,null,null,null,null,null,null,null,null,null,null,null,null,""]
[null,null,null,null,null,null,null,null,null,null,null,null,null,null,null,null,null,null,null,""]
[null,null,null,null,null,null,null,null,null,null,null,null,null,null,null,null,null,null,null,""]
[null,null,null,null,null,null,null,null,null,null,null,null,null,null,null,null,null,null,null,""]
[null,null,null,null,null,null,null,null,null,null,null,null,null,null,null,null,null,null,null,""]
[null,null,null,null,null,null,null,null,null,null,null,null,null,null,null,null,null,null,null,""]
[null,null,null,null,null,null,null,null,null,null,null,null,null,null,null,null,null,null,null,""]
[null,null,null,null,null,null,null,null,null,null,null,null,null,null,null,null,null,null,null,""]
[null,null,null,null,null,null,null,null,null,null,null,null,null,null,null,null,null,null,null,""]
[null,null,null,null,null,null,null,null,null,null,null,null,null,null,null,null,null,null,null,""]
[null,null,null,null,null,null,null,null,null,null,null,null,null,null,null,null,null,null,null,""]
[null,null,null,null,null,null,null,null,null,null,null,null,null,null,null,null,null,null,null,""]
[null,null,null,null,null,null,null,null,null,null,null,null,null,null,null,null,null,null,null,""]
[null,null,null,null,null,null,null,null,null,null,null,null,null,null,null,null,null,null,null,""]
[null,null,null,null,null,null,null,null,null,null,null,null,null,null,null,null,null,null,null,""]
[null,null,null,null,null,null,null,null,null,null,null,null,null,null,null,null,null,null,null,""]
[null,null,null,null,null,null,null,null,null,null,null,null,null,null,null,null,null,null,null,""]
[null,null,null,null,null,null,null,null,null,null,null,null,null,null,null,null,null,null,null,""]
[null,null,null,null,null,null,null,null,null,null,null,null,null,null,null,null,null,null,null,""]
[null,null,null,null,null,null,null,null,null,null,null,null,null,null,null,null,null,null,null,""]
[null,null,null,null,null,null,null,null,null,null,null,null,null,null,null,null,null,null,null,""]
[null,null,null,null,null,null,null,null,null,null,null,null,null,null,null,null,null,null,null,""]
[null,null,null,null,null,null,null,null,null,null,null,null,null,null,null,null,null,null,null,""]
[null,null,null,null,null,null,null,null,null,null,null,null,null,null,null,null,null,null,null,""]
[null,null,null,null,null,null,null,null,null,null,null,null,null,null,null,null,null,null,null,""]
[null,null,null,null,null,null,null,null,null,null,null,null,null,null,null,null,null,null,null,""]
[null,null,null,null,null,null,null,null,null,null,null,null,null,null,null,null,null,null,null,""]
[null,null,null,null,null,null,null,null,null,null,null,null,null,null,null,null,null,null,null,""]
[null,null,null,null,null,null,null,null,null,null,null,null,null,null,null,null,null,null,null,""]
[null,null,null,null,null,null,null,null,null,null,null,null,null,null,null,null,null,null,null,""]
[null,null,null,null,null,null,null,null,null,null,null,null,null,null,null,null,null,null,null,""]
[null,null,null,null,null,null,null,null,null,null,null,null,null,null,null,null,null,null,null,""]
[null,null,null,null,null,null,null,null,null,null,null,null,null,null,null,null,null,null,null,""]
[null,null,null,null,null,null,null,null,null,null,null,null,null,null,null,null,null,null,null,""]
[null,null,null,null,null,null,null,null,null,null,null,null,null,null,null,null,null,null,null,""]
[null,null,null,null,null,null,null,null,null,null,null,null,null,null,null,null,null,null,null,""]
[null,null,null,null,null,null,null,null,null,null,null,null,null,null,null,null,null,null,null,""]
[null,null,null,null,null,null,null,null,null,null,null,null,null,null,null,null,null,null,null,""]
[null,null,null,null,null,null,null,null,null,null,null,null,null,null,null,null,null,null,null,""]
[null,null,null,null,null,null,null,null,null,null,null,null,null,null,null,null,null,null,null,""]
[null,null,null,null,null,null,null,null,null,null,null,null,null,null,null,null,null,null,null,""]
[null,null,null,null,null,null,null,null,null,null,null,null,null,null,null,null,null,null,null,""]
[null,null,null,null,null,null,null,null,null,null,null,null,null,null,null,null,null,null,null,""]
[null,null,null,null,null,null,null,null,null,null,null,null,null,null,null,null,null,null,null,""]
[null,null,null,null,null,null,null,null,null,null,null,null,null,null,null,null,null,null,null,""]
[null,null,null,null,null,null,null,null,null,null,null,null,null,null,null,null,null,null,null,""]
[null,null,null,null,null,null,null,null,null,null,null,null,null,null,null,null,null,null,null,""]
[null,null,null,null,null,null,null,null,null,null,null,null,null,null,null,null,null,null,null,""]
[null,null,null,null,null,null,null,null,null,null,null,null,null,null,null,null,null,null,null,""]
[null,null,null,null,null,null,null,null,null,null,null,null,null,null,null,null,null,null,null,""]
[null,null,null,null,null,null,null,null,null,null,null,null,null,null,null,null,null,null,null,""]
[null,null,null,null,null,null,null,null,null,null,null,null,null,null,null,null,null,null,null,""]
[null,null,null,null,null,null,null,null,null,null,null,null,null,null,null,null,null,null,null,""]
[null,null,null,null,null,null,null,null,null,null,null,null,null,null,null,null,null,null,null,""]
[null,null,null,null,null,null,null,null,null,null,null,null,null,null,null,null,null,null,null,""]
[null,null,null,null,null,null,null,null,null,null,null,null,null,null,null,null,null,null,null,""]
[null,null,null,null,null,null,null,null,null,null,null,null,null,null,null,null,null,null,null,""]
[null,null,null,null,null,null,null,null,null,null,null,null,null,null,null,null,null,null,null,""]
[null,null,null,null,null,null,null,null,null,null,null,null,null,null,null,null,null,null,null,""]
[null,null,null,null,null,null,null,null,null,null,null,null,null,null,null,null,null,null,null,""]
[null,null,null,null,null,null,null,null,null,null,null,null,null,null,null,null,null,null,null,""]
[null,null,null,null,null,null,null,null,null,null,null,null,null,null,null,null,null,null,null,""]
[null,null,null,null,null,null,null,null,null,null,null,null,null,null,null,null,null,null,null,""]
[null,null,null,null,null,null,null,null,null,null,null,null,null,null,null,null,null,null,null,""]
[null,null,null,null,null,null,null,null,null,null,null,null,null,null,null,null,null,null,null,""]
[null,null,null,null,null,null,null,null,null,null,null,null,null,null,null,null,null,null,null,""]
[null,null,null,null,null,null,null,null,null,null,null,null,null,null,null,null,null,null,null,""]
[null,null,null,null,null,null,null,null,null,null,null,null,null,null,null,null,null,null,null,""]
[null,null,null,null,null,null,null,null,null,null,null,null,null,null,null,null,null,null,null,""]
[null,null,null,null,null,null,null,null,null,null,null,null,null,null,null,null,null,null,null,""]
[null,null,null,null,null,null,null,null,null,null,null,null,null,null,null,null,null,null,null,""]
[null,null,null,null,null,null,null,null,null,null,null,null,null,null,null,null,null,null,null,""]
[null,null,null,null,null,null,null,null,null,null,null,null,null,null,null,null,null,null,null,""]
[null,null,null,null,null,null,null,null,null,null,null,null,null,null,null,null,null,null,null,""]
[null,null,null,null,null,null,null,null,null,null,null,null,null,null,null,null,null,null,null,""]
[null,null,null,null,null,null,null,null,null,null,null,null,null,null,null,null,null,null,null,""]
[null,null,null,null,null,null,null,null,null,null,null,null,null,null,null,null,null,null,null,""]
[null,null,null,null,null,null,null,null,null,null,null,null,null,null,null,null,null,null,null,""]
[null,null,null,null,null,null,null,null,null,null,null,null,null,null,null,null,null,null,null,""]
[null,null,null,null,null,null,null,null,null,null,null,null,null,null,null,null,null,null,null,""]
[null,null,null,null,null,null,null,null,null,null,null,null,null,null,null,null,null,null,null,""]
[null,null,null,null,null,null,null,null,null,null,null,null,null,null,null,null,null,null,null,""]
[null,null,null,null,null,null,null,null,null,null,null,null,null,null,null,null,null,null,null,""]
[null,null,null,null,null,null,null,null,null,null,null,null,null,null,null,null,null,null,null,""]
[null,null,null,null,null,null,null,null,null,null,null,null,null,null,null,null,null,null,null,""]
[null,null,null,null,null,null,null,null,null,null,null,null,null,null,null,null,null,null,null,""]
[null,null,null,null,null,null,null,null,null,null,null,null,null,null,null,null,null,null,null,""]
[null,null,null,null,null,null,null,null,null,null,null,null,null,null,null,null,null,null,null,""]
[null,null,null,null,null,null,null,null,null,null,null,null,null,null,null,null,null,null,null,""]
[null,null,null,null,null,null,null,null,null,null,null,null,null,null,null,null,null,null,null,""]
[null,null,null,null,null,null,null,null,null,null,null,null,null,null,null,null,null,null,null,""]
[null,null,null,null,null,null,null,null,null,null,null,null,null,null,null,null,null,null,null,""]
[null,null,null,null,null,null,null,null,null,null,null,null,null,null,null,null,null,null,null,""]
[null,null,null,null,null,null,null,null,null,null,null,null,null,null,null,null,null,null,null,""]
[null,null,null,null,null,null,null,null,null,null,null,null,null,null,null,null,null,null,null,""]
[null,null,null,null,null,null,null,null,null,null,null,null,null,null,null,null,null,null,null,""]
[null,null,null,null,null,null,null,null,null,null,null,null,null,null,null,null,null,null,null,""]
[null,null,null,null,null,null,null,null,null,null,null,null,null,null,null,null,null,null,null,""]
[null,null,null,null,null,null,null,null,null,null,null,null,null,null,null,null,null,null,null,""]
[null,null,null,null,null,null,null,null,null,null,null,null,null,null,null,null,null,null,null,""]
[null,null,null,null,null,null,null,null,null,null,null,null,null,null,null,null,null,null,null,""]
[null,null,null,null,null,null,null,null,null,null,null,null,null,null,null,null,null,null,null,""]
[null,null,null,null,null,null,null,null,null,null,null,null,null,null,null,null,null,null,null,""]
[null,null,null,null,null,null,null,null,null,null,null,null,null,null,null,null,null,null,null,""]
[null,null,null,null,null,null,null,null,null,null,null,null,null,null,null,null,null,null,null,""]

{"sheet":"C1 A L","index":4,"n_rows":388,"n_cols":62,"rows_kept":388,"cut":false,"hidden":false,"merged":[[3,23,3,25],[0,0,0,8],[1,0,1,8],[2,0,2,8],[3,17,3,21],[1,11,1,12],[3,10,3,15]]}
["COPA CENTRO AGRICOLA",null,null,null,null,null,null,null,null,null,null,null,null,null,20,"Km",null,null,null,null,20,"Km",null,40,"Km"]
["I CHONE 11/02/2017, HCDA. SAN BERNARDO",null,null,null,null,null,null,null,null,null,"FECHA:","2017-02-13T16:07:15.160",null,null,"T. MÁXIMO","LIBRE",null,null,null,"T. MÁXIMO","LIBRE",null,null,"3:20:00","T. MÁXIMO "]
["CHASQUI 1  (40 a 59 Km) ABIERTA VELOCIDAD LIBRE",null,null,null,null,null,null,null,null,null,null,"TIEMPO DE DESCANSO:",2.0833333333333332E-2,null,"T. MÍNIMO","LIBRE",null,null,null,"T. MÍNIMO","LIBRE"]
[null,null,null,null,null,null,null,null,null,null,"PRIMERA ETAPA",null,null,null,null,null,null,"SEGUNDA ETAPA",null,null,null,null,null,"TOTAL"]
["POSICION","CODIGO","NOMBRE DEL JINETE","CODIGO","NOMBRE DEL CABALLO","HORA DE SALIDA ","HORA FINAL","TIEMPO DE COMPETENCIA","TIEMPO MEDIO DE RECUPERACIÓN","PUNTAJE","HORA DE LLEGADA","HORA DE CHEQUEO","TIEMPO DE RECUPERACIÓN","TIEMPO DE LA ETAPA","VELOCI     DAD","HORA DE SALIDA",null,"HORA DE LLEGADA","HORA DE CHEQUEO","TIEMPO DE RECUPERACIÓN","TIEMPO DE LA ETAPA","VELOCI     DAD",null,"TIEMPO EN CARRERA","VELOCIDAD DE COMPETENCIA","VELOCIDAD DE CARRERA"]
[null,null,null,null,null,null,null,null,null,80]
[1,"A248","LOYOLA MARIA CLAUDIA","C197","PATACON","11:30:00","13:55:26",8.0162037037037046E-2,"00:12:45.500",80,"12:20:23","12:36:59","00:16:36","01:06:59",17.914904205026154,"13:06:59",null,"13:55:26","14:04:21","00:08:55","00:48:27",24.767801857585109,null,"01:38:50",20.791221484262199,24.28330522765599,null,null,null,null,null,null,null,null,null,null,null,null,null,null,null,null,null,null,null,null,null,null,null,null,null,null,null,null,null,null,null,null,null,null,null,1]
[2,"A192","LOZADA JOSE ARMANDO","C497","ABUDABI","11:30:00","13:57:56",8.1898148148148095E-2,"00:06:11.500",76,"12:30:21","12:36:59","00:06:38","01:06:59",17.914904205026154,"13:06:59",null,"13:57:56","14:03:41","00:05:45","00:50:57",23.552502453385685,null,"01:51:18",20.350480497456203,21.563342318059338,null,null,null,null,null,null,null,null,null,null,null,null,null,null,null,null,null,null,null,null,null,null,null,null,null,null,null,null,null,null,null,null,null,null,null,0.95]
[3,"","","","","","","","","","","","","","","",null,"","","","","",null,"","","",null,null,null,null,null,null,null,null,null,null,null,null,null,null,null,null,null,null,null,null,null,null,null,null,null,null,null,null,null,null,null,null,null,null,null,0.9]
[4,"","","","","","","","","","","","","","","",null,"","","","","",null,"","","",null,null,null,null,null,null,null,null,null,null,null,null,null,null,null,null,null,null,null,null,null,null,null,null,null,null,null,null,null,null,null,null,null,null,null,0.85]
[5,"","","","","","","","","","","","","","","",null,"","","","","",null,"","","",null,null,null,null,null,null,null,null,null,null,null,null,null,null,null,null,null,null,null,null,null,null,null,null,null,null,null,null,null,null,null,null,null,null,null,0.8]
[6,"","","","","","","","","","","","","","","",null,"","","","","",null,"","","",null,null,null,null,null,null,null,null,null,null,null,null,null,null,null,null,null,null,null,null,null,null,null,null,null,null,null,null,null,null,null,null,null,null,null,0.75]
[7,"","","","","","","","","","","","","","","",null,"","","","","",null,"","","",null,null,null,null,null,null,null,null,null,null,null,null,null,null,null,null,null,null,null,null,null,null,null,null,null,null,null,null,null,null,null,null,null,null,null,0.7]
[8,"","","","","","","","","","","","","","","",null,"","","","","",null,"","","",null,null,null,null,null,null,null,null,null,null,null,null,null,null,null,null,null,null,null,null,null,null,null,null,null,null,null,null,null,null,null,null,null,null,null,0.65]
[9,"","","","","","","","","","","","","","","",null,"","","","","",null,"","","",null,null,null,null,null,null,null,null,null,null,null,null,null,null,null,null,null,null,null,null,null,null,null,null,null,null,null,null,null,null,null,null,null,null,null,0.6]
[10,"","","","","","","","","","","","","","","",null,"","","","","",null,"","","",null,null,null,null,null,null,null,null,null,null,null,null,null,null,null,null,null,null,null,null,null,null,null,null,null,null,null,null,null,null,null,null,null,null,null,0.55000000000000004]
[11,"","","","","","","","","","","","","","","",null,"","","","","",null,"","","",null,null,null,null,null,null,null,null,null,null,null,null,null,null,null,null,null,null,null,null,null,null,null,null,null,null,null,null,null,null,null,null,null,null,null,0.5]
[12,"","","","","","","","","","","","","","","",null,"","","","","",null,"","","",null,null,null,null,null,null,null,null,null,null,null,null,null,null,null,null,null,null,null,null,null,null,null,null,null,null,null,null,null,null,null,null,null,null,null,0.5]
[13,"","","","","","","","","","","","","","","",null,"","","","","",null,"","","",null,null,null,null,null,null,null,null,null,null,null,null,null,null,null,null,null,null,null,null,null,null,null,null,null,null,null,null,null,null,null,null,null,null,null,0.5]
[14,"","","","","","","","","","","","","","","",null,"","","","","",null,"","","",null,null,null,null,null,null,null,null,null,null,null,null,null,null,null,null,null,null,null,null,null,null,null,null,null,null,null,null,null,null,null,null,null,null,null,0.5]
[15,"","","","","","","","","","","","","","","",null,"","","","","",null,"","","",null,null,null,null,null,null,null,null,null,null,null,null,null,null,null,null,null,null,null,null,null,null,null,null,null,null,null,null,null,null,null,null,null,null,null,0.5]
[16,"","","","","","","","","","","","","","","",null,"","","","","",null,"","","",null,null,null,null,null,null,null,null,null,null,null,null,null,null,null,null,null,null,null,null,null,null,null,null,null,null,null,null,null,null,null,null,null,null,null,0.5]
[17,"","","","","","","","","","","","","","","",null,"","","","","",null,"","","",null,null,null,null,null,null,null,null,null,null,null,null,null,null,null,null,null,null,null,null,null,null,null,null,null,null,null,null,null,null,null,null,null,null,null,0.5]
[18,"","","","","","","","","","","","","","","",null,"","","","","",null,"","","",null,null,null,null,null,null,null,null,null,null,null,null,null,null,null,null,null,null,null,null,null,null,null,null,null,null,null,null,null,null,null,null,null,null,null,0.5]
[19,"","","","","","","","","","","","","","","",null,"","","","","",null,"","","",null,null,null,null,null,null,null,null,null,null,null,null,null,null,null,null,null,null,null,null,null,null,null,null,null,null,null,null,null,null,null,null,null,null,null,0.5]
[20,"","","","","","","","","","","","","","","",null,"","","","","",null,"","","",null,null,null,null,null,null,null,null,null,null,null,null,null,null,null,null,null,null,null,null,null,null,null,null,null,null,null,null,null,null,null,null,null,null,null,0.5]
[21,"","","","","","","","","","","","","","","",null,"","","","","",null,"","","",null,null,null,null,null,null,null,null,null,null,null,null,null,null,null,null,null,null,null,null,null,null,null,null,null,null,null,null,null,null,null,null,null,null,null,0.5]
[22,"","","","","","","","","","","","","","","",null,"","","","","",null,"","","",null,null,null,null,null,null,null,null,null,null,null,null,null,null,null,null,null,null,null,null,null,null,null,null,null,null,null,null,null,null,null,null,null,null,null,0.5]
[23,"","","","","","","","","","","","","","","",null,"","","","","",null,"","","",null,null,null,null,null,null,null,null,null,null,null,null,null,null,null,null,null,null,null,null,null,null,null,null,null,null,null,null,null,null,null,null,null,null,null,0.5]
[24,"","","","","","","","","","","","","","","",null,"","","","","",null,"","","",null,null,null,null,null,null,null,null,null,null,null,null,null,null,null,null,null,null,null,null,null,null,null,null,null,null,null,null,null,null,null,null,null,null,null,0.5]
[25,"","","","","","","","","","","","","","","",null,"","","","","",null,"","","",null,null,null,null,null,null,null,null,null,null,null,null,null,null,null,null,null,null,null,null,null,null,null,null,null,null,null,null,null,null,null,null,null,null,null,0.5]
[26,"","","","","","","","","","","","","","","",null,"","","","","",null,"","","",null,null,null,null,null,null,null,null,null,null,null,null,null,null,null,null,null,null,null,null,null,null,null,null,null,null,null,null,null,null,null,null,null,null,null,0.5]
[27,"","","","","","","","","","","","","","","",null,"","","","","",null,"","","",null,null,null,null,null,null,null,null,null,null,null,null,null,null,null,null,null,null,null,null,null,null,null,null,null,null,null,null,null,null,null,null,null,null,null,0.5]
[28,"","","","","","","","","","","","","","","",null,"","","","","",null,"","","",null,null,null,null,null,null,null,null,null,null,null,null,null,null,null,null,null,null,null,null,null,null,null,null,null,null,null,null,null,null,null,null,null,null,null,0.5]
[29,"","","","","","","","","","","","","","","",null,"","","","","",null,"","","",null,null,null,null,null,null,null,null,null,null,null,null,null,null,null,null,null,null,null,null,null,null,null,null,null,null,null,null,null,null,null,null,null,null,null,0.5]
[30,"","","","","","","","","","","","","","","",null,"","","","","",null,"","","",null,null,null,null,null,null,null,null,null,null,null,null,null,null,null,null,null,null,null,null,null,null,null,null,null,null,null,null,null,null,null,null,null,null,null,0.5]
[31,"","","","","","","","","","","","","","","",null,"","","","","",null,"","","",null,null,null,null,null,null,null,null,null,null,null,null,null,null,null,null,null,null,null,null,null,null,null,null,null,null,null,null,null,null,null,null,null,null,null,0.5]
[32,"","","","","","","","","","","","","","","",null,"","","","","",null,"","","",null,null,null,null,null,null,null,null,null,null,null,null,null,null,null,null,null,null,null,null,null,null,null,null,null,null,null,null,null,null,null,null,null,null,null,0.5]
[33,"","","","","","","","","","","","","","","",null,"","","","","",null,"","","",null,null,null,null,null,null,null,null,null,null,null,null,null,null,null,null,null,null,null,null,null,null,null,null,null,null,null,null,null,null,null,null,null,null,null,0.5]
[34,"","","","","","","","","","","","","","","",null,"","","","","",null,"","","",null,null,null,null,null,null,null,null,null,null,null,null,null,null,null,null,null,null,null,null,null,null,null,null,null,null,null,null,null,null,null,null,null,null,null,0.5]
[35,"","","","","","","","","","","","","","","",null,"","","","","",null,"","","",null,null,null,null,null,null,null,null,null,null,null,null,null,null,null,null,null,null,null,null,null,null,null,null,null,null,null,null,null,null,null,null,null,null,null,0.5]
[36,"","","","","","","","","","","","","","","",null,"","","","","",null,"","","",null,null,null,null,null,null,null,null,null,null,null,null,null,null,null,null,null,null,null,null,null,null,null,null,null,null,null,null,null,null,null,null,null,null,null,0.5]
[37,"","","","","","","","","","","","","","","",null,"","","","","",null,"","","",null,null,null,null,null,null,null,null,null,null,null,null,null,null,null,null,null,null,null,null,null,null,null,null,null,null,null,null,null,null,null,null,null,null,null,0.5]
[38,"","","","","","","","","","","","","","","",null,"","","","","",null,"","","",null,null,null,null,null,null,null,null,null,null,null,null,null,null,null,null,null,null,null,null,null,null,null,null,null,null,null,null,null,null,null,null,null,null,null,0.5]
[39,"","","","","","","","","","","","","","","",null,"","","","","",null,"","","",null,null,null,null,null,null,null,null,null,null,null,null,null,null,null,null,null,null,null,null,null,null,null,null,null,null,null,null,null,null,null,null,null,null,null,0.5]
[40,"","","","","","","","","","","","","","","",null,"","","","","",null,"","","",null,null,null,null,null,null,null,null,null,null,null,null,null,null,null,null,null,null,null,null,null,null,null,null,null,null,null,null,null,null,null,null,null,null,null,0.5]
[41,"","","","","","","","","","","","","","","",null,"","","","","",null,"","","",null,null,null,null,null,null,null,null,null,null,null,null,null,null,null,null,null,null,null,null,null,null,null,null,null,null,null,null,null,null,null,null,null,null,null,0.5]
[42,"","","","","","","","","","","","","","","",null,"","","","","",null,"","","",null,null,null,null,null,null,null,null,null,null,null,null,null,null,null,null,null,null,null,null,null,null,null,null,null,null,null,null,null,null,null,null,null,null,null,0.5]
[43,"","","","","","","","","","","","","","","",null,"","","","","",null,"","","",null,null,null,null,null,null,null,null,null,null,null,null,null,null,null,null,null,null,null,null,null,null,null,null,null,null,null,null,null,null,null,null,null,null,null,0.5]
[44,"","","","","","","","","","","","","","","",null,"","","","","",null,"","","",null,null,null,null,null,null,null,null,null,null,null,null,null,null,null,null,null,null,null,null,null,null,null,null,null,null,null,null,null,null,null,null,null,null,null,0.5]
[45,"","","","","","","","","","","","","","","",null,"","","","","",null,"","","",null,null,null,null,null,null,null,null,null,null,null,null,null,null,null,null,null,null,null,null,null,null,null,null,null,null,null,null,null,null,null,null,null,null,null,0.5]
[46,"","","","","","","","","","","","","","","",null,"","","","","",null,"","","",null,null,null,null,null,null,null,null,null,null,null,null,null,null,null,null,null,null,null,null,null,null,null,null,null,null,null,null,null,null,null,null,null,null,null,0.5]
[47,"","","","","","","","","","","","","","","",null,"","","","","",null,"","","",null,null,null,null,null,null,null,null,null,null,null,null,null,null,null,null,null,null,null,null,null,null,null,null,null,null,null,null,null,null,null,null,null,null,null,0.5]
[48,"","","","","","","","","","","","","","","",null,"","","","","",null,"","","",null,null,null,null,null,null,null,null,null,null,null,null,null,null,null,null,null,null,null,null,null,null,null,null,null,null,null,null,null,null,null,null,null,null,null,0.5]
[49,"","","","","","","","","","","","","","","",null,"","","","","",null,"","","",null,null,null,null,null,null,null,null,null,null,null,null,null,null,null,null,null,null,null,null,null,null,null,null,null,null,null,null,null,null,null,null,null,null,null,0.5]
[50,"","","","","","","","","","","","","","","",null,"","","","","",null,"","","",null,null,null,null,null,null,null,null,null,null,null,null,null,null,null,null,null,null,null,null,null,null,null,null,null,null,null,null,null,null,null,null,null,null,null,0.5]
[51,"","","","","","","","","","","","","","","",null,"","","","","",null,"","","",null,null,null,null,null,null,null,null,null,null,null,null,null,null,null,null,null,null,null,null,null,null,null,null,null,null,null,null,null,null,null,null,null,null,null,0.5]
[52,"","","","","","","","","","","","","","","",null,"","","","","",null,"","","",null,null,null,null,null,null,null,null,null,null,null,null,null,null,null,null,null,null,null,null,null,null,null,null,null,null,null,null,null,null,null,null,null,null,null,0.5]
[53,"","","","","","","","","","","","","","","",null,"","","","","",null,"","","",null,null,null,null,null,null,null,null,null,null,null,null,null,null,null,null,null,null,null,null,null,null,null,null,null,null,null,null,null,null,null,null,null,null,null,0.5]
[54,"","","","","","","","","","","","","","","",null,"","","","","",null,"","","",null,null,null,null,null,null,null,null,null,null,null,null,null,null,null,null,null,null,null,null,null,null,null,null,null,null,null,null,null,null,null,null,null,null,null,0.5]
[55,"","","","","","","","","","","","","","","",null,"","","","","",null,"","","",null,null,null,null,null,null,null,null,null,null,null,null,null,null,null,null,null,null,null,null,null,null,null,null,null,null,null,null,null,null,null,null,null,null,null,0.5]
[56,"","","","","","","","","","","","","","","",null,"","","","","",null,"","","",null,null,null,null,null,null,null,null,null,null,null,null,null,null,null,null,null,null,null,null,null,null,null,null,null,null,null,null,null,null,null,null,null,null,null,0.5]
[57,"","","","","","","","","","","","","","","",null,"","","","","",null,"","","",null,null,null,null,null,null,null,null,null,null,null,null,null,null,null,null,null,null,null,null,null,null,null,null,null,null,null,null,null,null,null,null,null,null,null,0.5]
[58,"","","","","","","","","","","","","","","",null,"","","","","",null,"","","",null,null,null,null,null,null,null,null,null,null,null,null,null,null,null,null,null,null,null,null,null,null,null,null,null,null,null,null,null,null,null,null,null,null,null,0.5]
[59,"","","","","","","","","","","","","","","",null,"","","","","",null,"","","",null,null,null,null,null,null,null,null,null,null,null,null,null,null,null,null,null,null,null,null,null,null,null,null,null,null,null,null,null,null,null,null,null,null,null,0.5]
[60,"","","","","","","","","","","","","","","",null,"","","","","",null,"","","",null,null,null,null,null,null,null,null,null,null,null,null,null,null,null,null,null,null,null,null,null,null,null,null,null,null,null,null,null,null,null,null,null,null,null,0.5]
[61,"","","","","","","","","","","","","","","",null,"","","","","",null,"","","",null,null,null,null,null,null,null,null,null,null,null,null,null,null,null,null,null,null,null,null,null,null,null,null,null,null,null,null,null,null,null,null,null,null,null,0.5]
[62,"","","","","","","","","","","","","","","",null,"","","","","",null,"","","",null,null,null,null,null,null,null,null,null,null,null,null,null,null,null,null,null,null,null,null,null,null,null,null,null,null,null,null,null,null,null,null,null,null,null,0.5]
[63,"","","","","","","","","","","","","","","",null,"","","","","",null,"","","",null,null,null,null,null,null,null,null,null,null,null,null,null,null,null,null,null,null,null,null,null,null,null,null,null,null,null,null,null,null,null,null,null,null,null,0.5]
[64,"","","","","","","","","","","","","","","",null,"","","","","",null,"","","",null,null,null,null,null,null,null,null,null,null,null,null,null,null,null,null,null,null,null,null,null,null,null,null,null,null,null,null,null,null,null,null,null,null,null,0.5]
[65,"","","","","","","","","","","","","","","",null,"","","","","",null,"","","",null,null,null,null,null,null,null,null,null,null,null,null,null,null,null,null,null,null,null,null,null,null,null,null,null,null,null,null,null,null,null,null,null,null,null,0.5]
[66,"","","","","","","","","","","","","","","",null,"","","","","",null,"","","",null,null,null,null,null,null,null,null,null,null,null,null,null,null,null,null,null,null,null,null,null,null,null,null,null,null,null,null,null,null,null,null,null,null,null,0.5]
[67,"","","","","","","","","","","","","","","",null,"","","","","",null,"","","",null,null,null,null,null,null,null,null,null,null,null,null,null,null,null,null,null,null,null,null,null,null,null,null,null,null,null,null,null,null,null,null,null,null,null,0.5]
[68,"","","","","","","","","","","","","","","",null,"","","","","",null,"","","",null,null,null,null,null,null,null,null,null,null,null,null,null,null,null,null,null,null,null,null,null,null,null,null,null,null,null,null,null,null,null,null,null,null,null,0.5]
[69,"","","","","","","","","","","","","","","",null,"","","","","",null,"","","",null,null,null,null,null,null,null,null,null,null,null,null,null,null,null,null,null,null,null,null,null,null,null,null,null,null,null,null,null,null,null,null,null,null,null,0.5]
[70,"","","","","","","","","","","","","","","",null,"","","","","",null,"","","",null,null,null,null,null,null,null,null,null,null,null,null,null,null,null,null,null,null,null,null,null,null,null,null,null,null,null,null,null,null,null,null,null,null,null,0.5]
[71,"","","","","","","","","","","","","","","",null,"","","","","",null,"","","",null,null,null,null,null,null,null,null,null,null,null,null,null,null,null,null,null,null,null,null,null,null,null,null,null,null,null,null,null,null,null,null,null,null,null,0.5]
[72,"","","","","","","","","","","","","","","",null,"","","","","",null,"","","",null,null,null,null,null,null,null,null,null,null,null,null,null,null,null,null,null,null,null,null,null,null,null,null,null,null,null,null,null,null,null,null,null,null,null,0.5]
[73,"","","","","","","","","","","","","","","",null,"","","","","",null,"","","",null,null,null,null,null,null,null,null,null,null,null,null,null,null,null,null,null,null,null,null,null,null,null,null,null,null,null,null,null,null,null,null,null,null,null,0.5]
[74,"","","","","","","","","","","","","","","",null,"","","","","",null,"","","",null,null,null,null,null,null,null,null,null,null,null,null,null,null,null,null,null,null,null,null,null,null,null,null,null,null,null,null,null,null,null,null,null,null,null,0.5]
[75,"","","","","","","","","","","","","","","",null,"","","","","",null,"","","",null,null,null,null,null,null,null,null,null,null,null,null,null,null,null,null,null,null,null,null,null,null,null,null,null,null,null,null,null,null,null,null,null,null,null,0.5]
[76,"","","","","","","","","","","","","","","",null,"","","","","",null,"","","",null,null,null,null,null,null,null,null,null,null,null,null,null,null,null,null,null,null,null,null,null,null,null,null,null,null,null,null,null,null,null,null,null,null,null,0.5]
[77,"","","","","","","","","","","","","","","",null,"","","","","",null,"","","",null,null,null,null,null,null,null,null,null,null,null,null,null,null,null,null,null,null,null,null,null,null,null,null,null,null,null,null,null,null,null,null,null,null,null,0.5]
[78,"","","","","","","","","","","","","","","",null,"","","","","",null,"","","",null,null,null,null,null,null,null,null,null,null,null,null,null,null,null,null,null,null,null,null,null,null,null,null,null,null,null,null,null,null,null,null,null,null,null,0.5]
[79,"","","","","","","","","","","","","","","",null,"","","","","",null,"","","",null,null,null,null,null,null,null,null,null,null,null,null,null,null,null,null,null,null,null,null,null,null,null,null,null,null,null,null,null,null,null,null,null,null,null,0.5]
[80,"","","","","","","","","","","","","","","",null,"","","","","",null,"","","",null,null,null,null,null,null,null,null,null,null,null,null,null,null,null,null,null,null,null,null,null,null,null,null,null,null,null,null,null,null,null,null,null,null,null,0.5]
[81,"","","","","","","","","","","","","","","",null,"","","","","",null,"","","",null,null,null,null,null,null,null,null,null,null,null,null,null,null,null,null,null,null,null,null,null,null,null,null,null,null,null,null,null,null,null,null,null,null,null,0.5]
[82,"","","","","","","","","","","","","","","",null,"","","","","",null,"","","",null,null,null,null,null,null,null,null,null,null,null,null,null,null,null,null,null,null,null,null,null,null,null,null,null,null,null,null,null,null,null,null,null,null,null,0.5]
[83,"","","","","","","","","","","","","","","",null,"","","","","",null,"","","",null,null,null,null,null,null,null,null,null,null,null,null,null,null,null,null,null,null,null,null,null,null,null,null,null,null,null,null,null,null,null,null,null,null,null,0.5]
[84,"","","","","","","","","","","","","","","",null,"","","","","",null,"","","",null,null,null,null,null,null,null,null,null,null,null,null,null,null,null,null,null,null,null,null,null,null,null,null,null,null,null,null,null,null,null,null,null,null,null,0.5]
[85,"","","","","","","","","","","","","","","",null,"","","","","",null,"","","",null,null,null,null,null,null,null,null,null,null,null,null,null,null,null,null,null,null,null,null,null,null,null,null,null,null,null,null,null,null,null,null,null,null,null,0.5]
[86,"","","","","","","","","","","","","","","",null,"","","","","",null,"","","",null,null,null,null,null,null,null,null,null,null,null,null,null,null,null,null,null,null,null,null,null,null,null,null,null,null,null,null,null,null,null,null,null,null,null,0.5]
[87,"","","","","","","","","","","","","","","",null,"","","","","",null,"","","",null,null,null,null,null,null,null,null,null,null,null,null,null,null,null,null,null,null,null,null,null,null,null,null,null,null,null,null,null,null,null,null,null,null,null,0.5]
[88,"","","","","","","","","","","","","","","",null,"","","","","",null,"","","",null,null,null,null,null,null,null,null,null,null,null,null,null,null,null,null,null,null,null,null,null,null,null,null,null,null,null,null,null,null,null,null,null,null,null,0.5]
[89,"","","","","","","","","","","","","","","",null,"","","","","",null,"","","",null,null,null,null,null,null,null,null,null,null,null,null,null,null,null,null,null,null,null,null,null,null,null,null,null,null,null,null,null,null,null,null,null,null,null,0.5]
[90,"","","","","","","","","","","","","","","",null,"","","","","",null,"","","",null,null,null,null,null,null,null,null,null,null,null,null,null,null,null,null,null,null,null,null,null,null,null,null,null,null,null,null,null,null,null,null,null,null,null,0.5]
[91,"","","","","","","","","","","","","","","",null,"","","","","",null,"","","",null,null,null,null,null,null,null,null,null,null,null,null,null,null,null,null,null,null,null,null,null,null,null,null,null,null,null,null,null,null,null,null,null,null,null,0.5]
[92,"","","","","","","","","","","","","","","",null,"","","","","",null,"","","",null,null,null,null,null,null,null,null,null,null,null,null,null,null,null,null,null,null,null,null,null,null,null,null,null,null,null,null,null,null,null,null,null,null,null,0.5]
[93,"","","","","","","","","","","","","","","",null,"","","","","",null,"","","",null,null,null,null,null,null,null,null,null,null,null,null,null,null,null,null,null,null,null,null,null,null,null,null,null,null,null,null,null,null,null,null,null,null,null,0.5]
[94,"","","","","","","","","","","","","","","",null,"","","","","",null,"","","",null,null,null,null,null,null,null,null,null,null,null,null,null,null,null,null,null,null,null,null,null,null,null,null,null,null,null,null,null,null,null,null,null,null,null,0.5]
[95,"","","","","","","","","","","","","","","",null,"","","","","",null,"","","",null,null,null,null,null,null,null,null,null,null,null,null,null,null,null,null,null,null,null,null,null,null,null,null,null,null,null,null,null,null,null,null,null,null,null,0.5]
[96,"","","","","","","","","","","","","","","",null,"","","","","",null,"","","",null,null,null,null,null,null,null,null,null,null,null,null,null,null,null,null,null,null,null,null,null,null,null,null,null,null,null,null,null,null,null,null,null,null,null,0.5]
[97,"","","","","","","","","","","","","","","",null,"","","","","",null,"","","",null,null,null,null,null,null,null,null,null,null,null,null,null,null,null,null,null,null,null,null,null,null,null,null,null,null,null,null,null,null,null,null,null,null,null,0.5]
[98,"","","","","","","","","","","","","","","",null,"","","","","",null,"","","",null,null,null,null,null,null,null,null,null,null,null,null,null,null,null,null,null,null,null,null,null,null,null,null,null,null,null,null,null,null,null,null,null,null,null,0.5]
[99,"","","","","","","","","","","","","","","",null,"","","","","",null,"","","",null,null,null,null,null,null,null,null,null,null,null,null,null,null,null,null,null,null,null,null,null,null,null,null,null,null,null,null,null,null,null,null,null,null,null,0.5]
[100,"","","","","","","","","","","","","","","",null,"","","","","",null,"","","",null,null,null,null,null,null,null,null,null,null,null,null,null,null,null,null,null,null,null,null,null,null,null,null,null,null,null,null,null,null,null,null,null,null,null,0.5]
[101,"","","","","","","","","","","","","","","",null,"","","","","",null,"","","",null,null,null,null,null,null,null,null,null,null,null,null,null,null,null,null,null,null,null,null,null,null,null,null,null,null,null,null,null,null,null,null,null,null,null,0.5]
[102,"","","","","","","","","","","","","","","",null,"","","","","",null,"","","",null,null,null,null,null,null,null,null,null,null,null,null,null,null,null,null,null,null,null,null,null,null,null,null,null,null,null,null,null,null,null,null,null,null,null,0.5]
[103,"","","","","","","","","","","","","","","",null,"","","","","",null,"","","",null,null,null,null,null,null,null,null,null,null,null,null,null,null,null,null,null,null,null,null,null,null,null,null,null,null,null,null,null,null,null,null,null,null,null,0.5]
[104,"","","","","","","","","","","","","","","",null,"","","","","",null,"","","",null,null,null,null,null,null,null,null,null,null,null,null,null,null,null,null,null,null,null,null,null,null,null,null,null,null,null,null,null,null,null,null,null,null,null,0.5]
[105,"","","","","","","","","","","","","","","",null,"","","","","",null,"","","",null,null,null,null,null,null,null,null,null,null,null,null,null,null,null,null,null,null,null,null,null,null,null,null,null,null,null,null,null,null,null,null,null,null,null,0.5]
[106,"","","","","","","","","","","","","","","",null,"","","","","",null,"","","",null,null,null,null,null,null,null,null,null,null,null,null,null,null,null,null,null,null,null,null,null,null,null,null,null,null,null,null,null,null,null,null,null,null,null,0.5]
[107,"","","","","","","","","","","","","","","",null,"","","","","",null,"","","",null,null,null,null,null,null,null,null,null,null,null,null,null,null,null,null,null,null,null,null,null,null,null,null,null,null,null,null,null,null,null,null,null,null,null,0.5]
[108,"","","","","","","","","","","","","","","",null,"","","","","",null,"","","",null,null,null,null,null,null,null,null,null,null,null,null,null,null,null,null,null,null,null,null,null,null,null,null,null,null,null,null,null,null,null,null,null,null,null,0.5]
[109,"","","","","","","","","","","","","","","",null,"","","","","",null,"","","",null,null,null,null,null,null,null,null,null,null,null,null,null,null,null,null,null,null,null,null,null,null,null,null,null,null,null,null,null,null,null,null,null,null,null,0.5]
[110,"","","","","","","","","","","","","","","",null,"","","","","",null,"","","",null,null,null,null,null,null,null,null,null,null,null,null,null,null,null,null,null,null,null,null,null,null,null,null,null,null,null,null,null,null,null,null,null,null,null,0.5]
[111,"","","","","","","","","","","","","","","",null,"","","","","",null,"","","",null,null,null,null,null,null,null,null,null,null,null,null,null,null,null,null,null,null,null,null,null,null,null,null,null,null,null,null,null,null,null,null,null,null,null,0.5]
[112,"","","","","","","","","","","","","","","",null,"","","","","",null,"","","",null,null,null,null,null,null,null,null,null,null,null,null,null,null,null,null,null,null,null,null,null,null,null,null,null,null,null,null,null,null,null,null,null,null,null,0.5]
[113,"","","","","","","","","","","","","","","",null,"","","","","",null,"","","",null,null,null,null,null,null,null,null,null,null,null,null,null,null,null,null,null,null,null,null,null,null,null,null,null,null,null,null,null,null,null,null,null,null,null,0.5]
[114,"","","","","","","","","","","","","","","",null,"","","","","",null,"","","",null,null,null,null,null,null,null,null,null,null,null,null,null,null,null,null,null,null,null,null,null,null,null,null,null,null,null,null,null,null,null,null,null,null,null,0.5]
[115,"","","","","","","","","","","","","","","",null,"","","","","",null,"","","",null,null,null,null,null,null,null,null,null,null,null,null,null,null,null,null,null,null,null,null,null,null,null,null,null,null,null,null,null,null,null,null,null,null,null,0.5]
[116,"","","","","","","","","","","","","","","",null,"","","","","",null,"","","",null,null,null,null,null,null,null,null,null,null,null,null,null,null,null,null,null,null,null,null,null,null,null,null,null,null,null,null,null,null,null,null,null,null,null,0.5]
[117,"","","","","","","","","","","","","","","",null,"","","","","",null,"","","",null,null,null,null,null,null,null,null,null,null,null,null,null,null,null,null,null,null,null,null,null,null,null,null,null,null,null,null,null,null,null,null,null,null,null,0.5]
[118,"","","","","","","","","","","","","","","",null,"","","","","",null,"","","",null,null,null,null,null,null,null,null,null,null,null,null,null,null,null,null,null,null,null,null,null,null,null,null,null,null,null,null,null,null,null,null,null,null,null,0.5]
[119,"","","","","","","","","","","","","","","",null,"","","","","",null,"","","",null,null,null,null,null,null,null,null,null,null,null,null,null,null,null,null,null,null,null,null,null,null,null,null,null,null,null,null,null,null,null,null,null,null,null,0.5]
[120,"","","","","","","","","","","","","","","",null,"","","","","",null,"","","",null,null,null,null,null,null,null,null,null,null,null,null,null,null,null,null,null,null,null,null,null,null,null,null,null,null,null,null,null,null,null,null,null,null,null,0.5]
[121,"","","","","","","","","","","","","","","",null,"","","","","",null,"","","",null,null,null,null,null,null,null,null,null,null,null,null,null,null,null,null,null,null,null,null,null,null,null,null,null,null,null,null,null,null,null,null,null,null,null,0.5]
[122,"","","","","","","","","","","","","","","",null,"","","","","",null,"","","",null,null,null,null,null,null,null,null,null,null,null,null,null,null,null,null,null,null,null,null,null,null,null,null,null,null,null,null,null,null,null,null,null,null,null,0.5]
[123,"","","","","","","","","","","","","","","",null,"","","","","",null,"","","",null,null,null,null,null,null,null,null,null,null,null,null,null,null,null,null,null,null,null,null,null,null,null,null,null,null,null,null,null,null,null,null,null,null,null,0.5]
[124,"","","","","","","","","","","","","","","",null,"","","","","",null,"","","",null,null,null,null,null,null,null,null,null,null,null,null,null,null,null,null,null,null,null,null,null,null,null,null,null,null,null,null,null,null,null,null,null,null,null,0.5]
[125,"","","","","","","","","","","","","","","",null,"","","","","",null,"","","",null,null,null,null,null,null,null,null,null,null,null,null,null,null,null,null,null,null,null,null,null,null,null,null,null,null,null,null,null,null,null,null,null,null,null,0.5]
[126,"","","","","","","","","","","","","","","",null,"","","","","",null,"","","",null,null,null,null,null,null,null,null,null,null,null,null,null,null,null,null,null,null,null,null,null,null,null,null,null,null,null,null,null,null,null,null,null,null,null,0.5]
[127,"","","","","","","","","","","","","","","",null,"","","","","",null,"","","",null,null,null,null,null,null,null,null,null,null,null,null,null,null,null,null,null,null,null,null,null,null,null,null,null,null,null,null,null,null,null,null,null,null,null,0.5]
[128,"","","","","","","","","","","","","","","",null,"","","","","",null,"","","",null,null,null,null,null,null,null,null,null,null,null,null,null,null,null,null,null,null,null,null,null,null,null,null,null,null,null,null,null,null,null,null,null,null,null,0.5]
[129,"","","","","","","","","","","","","","","",null,"","","","","",null,"","","",null,null,null,null,null,null,null,null,null,null,null,null,null,null,null,null,null,null,null,null,null,null,null,null,null,null,null,null,null,null,null,null,null,null,null,0.5]
[130,"","","","","","","","","","","","","","","",null,"","","","","",null,"","","",null,null,null,null,null,null,null,null,null,null,null,null,null,null,null,null,null,null,null,null,null,null,null,null,null,null,null,null,null,null,null,null,null,null,null,0.5]
[131,"","","","","","","","","","","","","","","",null,"","","","","",null,"","","",null,null,null,null,null,null,null,null,null,null,null,null,null,null,null,null,null,null,null,null,null,null,null,null,null,null,null,null,null,null,null,null,null,null,null,0.5]
[132,"","","","","","","","","","","","","","","",null,"","","","","",null,"","","",null,null,null,null,null,null,null,null,null,null,null,null,null,null,null,null,null,null,null,null,null,null,null,null,null,null,null,null,null,null,null,null,null,null,null,0.5]
[133,"","","","","","","","","","","","","","","",null,"","","","","",null,"","","",null,null,null,null,null,null,null,null,null,null,null,null,null,null,null,null,null,null,null,null,null,null,null,null,null,null,null,null,null,null,null,null,null,null,null,0.5]
[134,"","","","","","","","","","","","","","","",null,"","","","","",null,"","","",null,null,null,null,null,null,null,null,null,null,null,null,null,null,null,null,null,null,null,null,null,null,null,null,null,null,null,null,null,null,null,null,null,null,null,0.5]
[135,"","","","","","","","","","","","","","","",null,"","","","","",null,"","","",null,null,null,null,null,null,null,null,null,null,null,null,null,null,null,null,null,null,null,null,null,null,null,null,null,null,null,null,null,null,null,null,null,null,null,0.5]
[136,"","","","","","","","","","","","","","","",null,"","","","","",null,"","","",null,null,null,null,null,null,null,null,null,null,null,null,null,null,null,null,null,null,null,null,null,null,null,null,null,null,null,null,null,null,null,null,null,null,null,0.5]
[137,"","","","","","","","","","","","","","","",null,"","","","","",null,"","","",null,null,null,null,null,null,null,null,null,null,null,null,null,null,null,null,null,null,null,null,null,null,null,null,null,null,null,null,null,null,null,null,null,null,null,0.5]
[138,"","","","","","","","","","","","","","","",null,"","","","","",null,"","","",null,null,null,null,null,null,null,null,null,null,null,null,null,null,null,null,null,null,null,null,null,null,null,null,null,null,null,null,null,null,null,null,null,null,null,0.5]
[139,"","","","","","","","","","","","","","","",null,"","","","","",null,"","","",null,null,null,null,null,null,null,null,null,null,null,null,null,null,null,null,null,null,null,null,null,null,null,null,null,null,null,null,null,null,null,null,null,null,null,0.5]
[140,"","","","","","","","","","","","","","","",null,"","","","","",null,"","","",null,null,null,null,null,null,null,null,null,null,null,null,null,null,null,null,null,null,null,null,null,null,null,null,null,null,null,null,null,null,null,null,null,null,null,0.5]
[141,"","","","","","","","","","","","","","","",null,"","","","","",null,"","","",null,null,null,null,null,null,null,null,null,null,null,null,null,null,null,null,null,null,null,null,null,null,null,null,null,null,null,null,null,null,null,null,null,null,null,0.5]
[142,"","","","","","","","","","","","","","","",null,"","","","","",null,"","","",null,null,null,null,null,null,null,null,null,null,null,null,null,null,null,null,null,null,null,null,null,null,null,null,null,null,null,null,null,null,null,null,null,null,null,0.5]
[143,"","","","","","","","","","","","","","","",null,"","","","","",null,"","","",null,null,null,null,null,null,null,null,null,null,null,null,null,null,null,null,null,null,null,null,null,null,null,null,null,null,null,null,null,null,null,null,null,null,null,0.5]
[144,"","","","","","","","","","","","","","","",null,"","","","","",null,"","","",null,null,null,null,null,null,null,null,null,null,null,null,null,null,null,null,null,null,null,null,null,null,null,null,null,null,null,null,null,null,null,null,null,null,null,0.5]
[145,"","","","","","","","","","","","","","","",null,"","","","","",null,"","","",null,null,null,null,null,null,null,null,null,null,null,null,null,null,null,null,null,null,null,null,null,null,null,null,null,null,null,null,null,null,null,null,null,null,null,0.5]
[146,"","","","","","","","","","","","","","","",null,"","","","","",null,"","","",null,null,null,null,null,null,null,null,null,null,null,null,null,null,null,null,null,null,null,null,null,null,null,null,null,null,null,null,null,null,null,null,null,null,null,0.5]
[147,"","","","","","","","","","","","","","","",null,"","","","","",null,"","","",null,null,null,null,null,null,null,null,null,null,null,null,null,null,null,null,null,null,null,null,null,null,null,null,null,null,null,null,null,null,null,null,null,null,null,0.5]
[148,"","","","","","","","","","","","","","","",null,"","","","","",null,"","","",null,null,null,null,null,null,null,null,null,null,null,null,null,null,null,null,null,null,null,null,null,null,null,null,null,null,null,null,null,null,null,null,null,null,null,0.5]
[149,"","","","","","","","","","","","","","","",null,"","","","","",null,"","","",null,null,null,null,null,null,null,null,null,null,null,null,null,null,null,null,null,null,null,null,null,null,null,null,null,null,null,null,null,null,null,null,null,null,null,0.5]
[150,"","","","","","","","","","","","","","","",null,"","","","","",null,"","","",null,null,null,null,null,null,null,null,null,null,null,null,null,null,null,null,null,null,null,null,null,null,null,null,null,null,null,null,null,null,null,null,null,null,null,0.5]
[151,"","","","","","","","","","","","","","","",null,"","","","","",null,"","","",null,null,null,null,null,null,null,null,null,null,null,null,null,null,null,null,null,null,null,null,null,null,null,null,null,null,null,null,null,null,null,null,null,null,null,0.5]
[152,"","","","","","","","","","","","","","","",null,"","","","","",null,"","","",null,null,null,null,null,null,null,null,null,null,null,null,null,null,null,null,null,null,null,null,null,null,null,null,null,null,null,null,null,null,null,null,null,null,null,0.5]
[153,"","","","","","","","","","","","","","","",null,"","","","","",null,"","","",null,null,null,null,null,null,null,null,null,null,null,null,null,null,null,null,null,null,null,null,null,null,null,null,null,null,null,null,null,null,null,null,null,null,null,0.5]
[154,"","","","","","","","","","","","","","","",null,"","","","","",null,"","","",null,null,null,null,null,null,null,null,null,null,null,null,null,null,null,null,null,null,null,null,null,null,null,null,null,null,null,null,null,null,null,null,null,null,null,0.5]
[155,"","","","","","","","","","","","","","","",null,"","","","","",null,"","","",null,null,null,null,null,null,null,null,null,null,null,null,null,null,null,null,null,null,null,null,null,null,null,null,null,null,null,null,null,null,null,null,null,null,null,0.5]
[156,"","","","","","","","","","","","","","","",null,"","","","","",null,"","","",null,null,null,null,null,null,null,null,null,null,null,null,null,null,null,null,null,null,null,null,null,null,null,null,null,null,null,null,null,null,null,null,null,null,null,0.5]
[157,"","","","","","","","","","","","","","","",null,"","","","","",null,"","","",null,null,null,null,null,null,null,null,null,null,null,null,null,null,null,null,null,null,null,null,null,null,null,null,null,null,null,null,null,null,null,null,null,null,null,0.5]
[158,"","","","","","","","","","","","","","","",null,"","","","","",null,"","","",null,null,null,null,null,null,null,null,null,null,null,null,null,null,null,null,null,null,null,null,null,null,null,null,null,null,null,null,null,null,null,null,null,null,null,0.5]
[159,"","","","","","","","","","","","","","","",null,"","","","","",null,"","","",null,null,null,null,null,null,null,null,null,null,null,null,null,null,null,null,null,null,null,null,null,null,null,null,null,null,null,null,null,null,null,null,null,null,null,0.5]
[160,"","","","","","","","","","","","","","","",null,"","","","","",null,"","","",null,null,null,null,null,null,null,null,null,null,null,null,null,null,null,null,null,null,null,null,null,null,null,null,null,null,null,null,null,null,null,null,null,null,null,0.5]
[161,"","","","","","","","","","","","","","","",null,"","","","","",null,"","","",null,null,null,null,null,null,null,null,null,null,null,null,null,null,null,null,null,null,null,null,null,null,null,null,null,null,null,null,null,null,null,null,null,null,null,0.5]
[162,"","","","","","","","","","","","","","","",null,"","","","","",null,"","","",null,null,null,null,null,null,null,null,null,null,null,null,null,null,null,null,null,null,null,null,null,null,null,null,null,null,null,null,null,null,null,null,null,null,null,0.5]
[163,"","","","","","","","","","","","","","","",null,"","","","","",null,"","","",null,null,null,null,null,null,null,null,null,null,null,null,null,null,null,null,null,null,null,null,null,null,null,null,null,null,null,null,null,null,null,null,null,null,null,0.5]
[164,"","","","","","","","","","","","","","","",null,"","","","","",null,"","","",null,null,null,null,null,null,null,null,null,null,null,null,null,null,null,null,null,null,null,null,null,null,null,null,null,null,null,null,null,null,null,null,null,null,null,0.5]
[165,"","","","","","","","","","","","","","","",null,"","","","","",null,"","","",null,null,null,null,null,null,null,null,null,null,null,null,null,null,null,null,null,null,null,null,null,null,null,null,null,null,null,null,null,null,null,null,null,null,null,0.5]
[166,"","","","","","","","","","","","","","","",null,"","","","","",null,"","","",null,null,null,null,null,null,null,null,null,null,null,null,null,null,null,null,null,null,null,null,null,null,null,null,null,null,null,null,null,null,null,null,null,null,null,0.5]
[167,"","","","","","","","","","","","","","","",null,"","","","","",null,"","","",null,null,null,null,null,null,null,null,null,null,null,null,null,null,null,null,null,null,null,null,null,null,null,null,null,null,null,null,null,null,null,null,null,null,null,0.5]
[168,"","","","","","","","","","","","","","","",null,"","","","","",null,"","","",null,null,null,null,null,null,null,null,null,null,null,null,null,null,null,null,null,null,null,null,null,null,null,null,null,null,null,null,null,null,null,null,null,null,null,0.5]
[169,"","","","","","","","","","","","","","","",null,"","","","","",null,"","","",null,null,null,null,null,null,null,null,null,null,null,null,null,null,null,null,null,null,null,null,null,null,null,null,null,null,null,null,null,null,null,null,null,null,null,0.5]
[170,"","","","","","","","","","","","","","","",null,"","","","","",null,"","","",null,null,null,null,null,null,null,null,null,null,null,null,null,null,null,null,null,null,null,null,null,null,null,null,null,null,null,null,null,null,null,null,null,null,null,0.5]
[171,"","","","","","","","","","","","","","","",null,"","","","","",null,"","","",null,null,null,null,null,null,null,null,null,null,null,null,null,null,null,null,null,null,null,null,null,null,null,null,null,null,null,null,null,null,null,null,null,null,null,0.5]
[172,"","","","","","","","","","","","","","","",null,"","","","","",null,"","","",null,null,null,null,null,null,null,null,null,null,null,null,null,null,null,null,null,null,null,null,null,null,null,null,null,null,null,null,null,null,null,null,null,null,null,0.5]
[173,"","","","","","","","","","","","","","","",null,"","","","","",null,"","","",null,null,null,null,null,null,null,null,null,null,null,null,null,null,null,null,null,null,null,null,null,null,null,null,null,null,null,null,null,null,null,null,null,null,null,0.5]
[174,"","","","","","","","","","","","","","","",null,"","","","","",null,"","","",null,null,null,null,null,null,null,null,null,null,null,null,null,null,null,null,null,null,null,null,null,null,null,null,null,null,null,null,null,null,null,null,null,null,null,0.5]
[175,"","","","","","","","","","","","","","","",null,"","","","","",null,"","","",null,null,null,null,null,null,null,null,null,null,null,null,null,null,null,null,null,null,null,null,null,null,null,null,null,null,null,null,null,null,null,null,null,null,null,0.5]
[176,"","","","","","","","","","","","","","","",null,"","","","","",null,"","","",null,null,null,null,null,null,null,null,null,null,null,null,null,null,null,null,null,null,null,null,null,null,null,null,null,null,null,null,null,null,null,null,null,null,null,0.5]
[177,"","","","","","","","","","","","","","","",null,"","","","","",null,"","","",null,null,null,null,null,null,null,null,null,null,null,null,null,null,null,null,null,null,null,null,null,null,null,null,null,null,null,null,null,null,null,null,null,null,null,0.5]
[178,"","","","","","","","","","","","","","","",null,"","","","","",null,"","","",null,null,null,null,null,null,null,null,null,null,null,null,null,null,null,null,null,null,null,null,null,null,null,null,null,null,null,null,null,null,null,null,null,null,null,0.5]
[179,"","","","","","","","","","","","","","","",null,"","","","","",null,"","","",null,null,null,null,null,null,null,null,null,null,null,null,null,null,null,null,null,null,null,null,null,null,null,null,null,null,null,null,null,null,null,null,null,null,null,0.5]
[180,"","","","","","","","","","","","","","","",null,"","","","","",null,"","","",null,null,null,null,null,null,null,null,null,null,null,null,null,null,null,null,null,null,null,null,null,null,null,null,null,null,null,null,null,null,null,null,null,null,null,0.5]
[181,"","","","","","","","","","","","","","","",null,"","","","","",null,"","","",null,null,null,null,null,null,null,null,null,null,null,null,null,null,null,null,null,null,null,null,null,null,null,null,null,null,null,null,null,null,null,null,null,null,null,0.5]
[182,"","","","","","","","","","","","","","","",null,"","","","","",null,"","","",null,null,null,null,null,null,null,null,null,null,null,null,null,null,null,null,null,null,null,null,null,null,null,null,null,null,null,null,null,null,null,null,null,null,null,0.5]
[183,"","","","","","","","","","","","","","","",null,"","","","","",null,"","","",null,null,null,null,null,null,null,null,null,null,null,null,null,null,null,null,null,null,null,null,null,null,null,null,null,null,null,null,null,null,null,null,null,null,null,0.5]
[184,"","","","","","","","","","","","","","","",null,"","","","","",null,"","","",null,null,null,null,null,null,null,null,null,null,null,null,null,null,null,null,null,null,null,null,null,null,null,null,null,null,null,null,null,null,null,null,null,null,null,0.5]
[185,"","","","","","","","","","","","","","","",null,"","","","","",null,"","","",null,null,null,null,null,null,null,null,null,null,null,null,null,null,null,null,null,null,null,null,null,null,null,null,null,null,null,null,null,null,null,null,null,null,null,0.5]
[186,"","","","","","","","","","","","","","","",null,"","","","","",null,"","","",null,null,null,null,null,null,null,null,null,null,null,null,null,null,null,null,null,null,null,null,null,null,null,null,null,null,null,null,null,null,null,null,null,null,null,0.5]
[187,"","","","","","","","","","","","","","","",null,"","","","","",null,"","","",null,null,null,null,null,null,null,null,null,null,null,null,null,null,null,null,null,null,null,null,null,null,null,null,null,null,null,null,null,null,null,null,null,null,null,0.5]
[188,"","","","","","","","","","","","","","","",null,"","","","","",null,"","","",null,null,null,null,null,null,null,null,null,null,null,null,null,null,null,null,null,null,null,null,null,null,null,null,null,null,null,null,null,null,null,null,null,null,null,0.5]
[189,"","","","","","","","","","","","","","","",null,"","","","","",null,"","","",null,null,null,null,null,null,null,null,null,null,null,null,null,null,null,null,null,null,null,null,null,null,null,null,null,null,null,null,null,null,null,null,null,null,null,0.5]
[190,"","","","","","","","","","","","","","","",null,"","","","","",null,"","","",null,null,null,null,null,null,null,null,null,null,null,null,null,null,null,null,null,null,null,null,null,null,null,null,null,null,null,null,null,null,null,null,null,null,null,0.5]
[191,"","","","","","","","","","","","","","","",null,"","","","","",null,"","","",null,null,null,null,null,null,null,null,null,null,null,null,null,null,null,null,null,null,null,null,null,null,null,null,null,null,null,null,null,null,null,null,null,null,null,0.5]
[192,"","","","","","","","","","","","","","","",null,"","","","","",null,"","","",null,null,null,null,null,null,null,null,null,null,null,null,null,null,null,null,null,null,null,null,null,null,null,null,null,null,null,null,null,null,null,null,null,null,null,0.5]
[193,"","","","","","","","","","","","","","","",null,"","","","","",null,"","","",null,null,null,null,null,null,null,null,null,null,null,null,null,null,null,null,null,null,null,null,null,null,null,null,null,null,null,null,null,null,null,null,null,null,null,0.5]
[194,"","","","","","","","","","","","","","","",null,"","","","","",null,"","","",null,null,null,null,null,null,null,null,null,null,null,null,null,null,null,null,null,null,null,null,null,null,null,null,null,null,null,null,null,null,null,null,null,null,null,0.5]
[195,"","","","","","","","","","","","","","","",null,"","","","","",null,"","","",null,null,null,null,null,null,null,null,null,null,null,null,null,null,null,null,null,null,null,null,null,null,null,null,null,null,null,null,null,null,null,null,null,null,null,0.5]
[196,"","","","","","","","","","","","","","","",null,"","","","","",null,"","","",null,null,null,null,null,null,null,null,null,null,null,null,null,null,null,null,null,null,null,null,null,null,null,null,null,null,null,null,null,null,null,null,null,null,null,0.5]
[197,"","","","","","","","","","","","","","","",null,"","","","","",null,"","","",null,null,null,null,null,null,null,null,null,null,null,null,null,null,null,null,null,null,null,null,null,null,null,null,null,null,null,null,null,null,null,null,null,null,null,0.5]
[198,"","","","","","","","","","","","","","","",null,"","","","","",null,"","","",null,null,null,null,null,null,null,null,null,null,null,null,null,null,null,null,null,null,null,null,null,null,null,null,null,null,null,null,null,null,null,null,null,null,null,0.5]
[199,"","","","","","","","","","","","","","","",null,"","","","","",null,"","","",null,null,null,null,null,null,null,null,null,null,null,null,null,null,null,null,null,null,null,null,null,null,null,null,null,null,null,null,null,null,null,null,null,null,null,0.5]
[200,"","","","","","","","","","","","","","","",null,"","","","","",null,"","","",null,null,null,null,null,null,null,null,null,null,null,null,null,null,null,null,null,null,null,null,null,null,null,null,null,null,null,null,null,null,null,null,null,null,null,0.5]
[201,"","","","","","","","","","","","","","","",null,"","","","","",null,"","","",null,null,null,null,null,null,null,null,null,null,null,null,null,null,null,null,null,null,null,null,null,null,null,null,null,null,null,null,null,null,null,null,null,null,null,0.5]
["REPARACIÓN","","","","","","","","","","","","","","","",null,"","","","","",null,"","","",null,null,null,null,null,null,null,null,null,null,null,null,null,null,null,null,null,null,null,null,null,null,null,null,null,null,null,null,null,null,null,null,null,null,null,0.5]
[null,null,null,null,null,null,null,null,null,null,null,null,null,null,null,null,null,null,null,""]
[null,null,null,null,null,null,null,null,null,null,null,null,null,null,null,null,null,null,null,""]
[null,null,null,null,null,null,null,null,null,null,null,null,null,null,null,null,null,null,null,""]
[null,null,null,null,null,null,null,null,null,null,null,null,null,null,null,null,null,null,null,""]
[null,null,null,null,null,null,null,null,null,null,null,null,null,null,null,null,null,null,null,""]
[null,null,null,null,null,null,null,null,null,null,null,null,null,null,null,null,null,null,null,""]
[null,null,null,null,null,null,null,null,null,null,null,null,null,null,null,null,null,null,null,""]
[null,null,null,null,null,null,null,null,null,null,null,null,null,null,null,null,null,null,null,""]
[null,null,null,null,null,null,null,null,null,null,null,null,null,null,null,null,null,null,null,""]
[null,null,null,null,null,null,null,null,null,null,null,null,null,null,null,null,null,null,null,""]
[null,null,null,null,null,null,null,null,null,null,null,null,null,null,null,null,null,null,null,""]
[null,null,null,null,null,null,null,null,null,null,null,null,null,null,null,null,null,null,null,""]
[null,null,null,null,null,null,null,null,null,null,null,null,null,null,null,null,null,null,null,""]
[null,null,null,null,null,null,null,null,null,null,null,null,null,null,null,null,null,null,null,""]
[null,null,null,null,null,null,null,null,null,null,null,null,null,null,null,null,null,null,null,""]
[null,null,null,null,null,null,null,null,null,null,null,null,null,null,null,null,null,null,null,""]
[null,null,null,null,null,null,null,null,null,null,null,null,null,null,null,null,null,null,null,""]
[null,null,null,null,null,null,null,null,null,null,null,null,null,null,null,null,null,null,null,""]
[null,null,null,null,null,null,null,null,null,null,null,null,null,null,null,null,null,null,null,""]
[null,null,null,null,null,null,null,null,null,null,null,null,null,null,null,null,null,null,null,""]
[null,null,null,null,null,null,null,null,null,null,null,null,null,null,null,null,null,null,null,""]
[null,null,null,null,null,null,null,null,null,null,null,null,null,null,null,null,null,null,null,""]
[null,null,null,null,null,null,null,null,null,null,null,null,null,null,null,null,null,null,null,""]
[null,null,null,null,null,null,null,null,null,null,null,null,null,null,null,null,null,null,null,""]
[null,null,null,null,null,null,null,null,null,null,null,null,null,null,null,null,null,null,null,""]
[null,null,null,null,null,null,null,null,null,null,null,null,null,null,null,null,null,null,null,""]
[null,null,null,null,null,null,null,null,null,null,null,null,null,null,null,null,null,null,null,""]
[null,null,null,null,null,null,null,null,null,null,null,null,null,null,null,null,null,null,null,""]
[null,null,null,null,null,null,null,null,null,null,null,null,null,null,null,null,null,null,null,""]
[null,null,null,null,null,null,null,null,null,null,null,null,null,null,null,null,null,null,null,""]
[null,null,null,null,null,null,null,null,null,null,null,null,null,null,null,null,null,null,null,""]
[null,null,null,null,null,null,null,null,null,null,null,null,null,null,null,null,null,null,null,""]
[null,null,null,null,null,null,null,null,null,null,null,null,null,null,null,null,null,null,null,""]
[null,null,null,null,null,null,null,null,null,null,null,null,null,null,null,null,null,null,null,""]
[null,null,null,null,null,null,null,null,null,null,null,null,null,null,null,null,null,null,null,""]
[null,null,null,null,null,null,null,null,null,null,null,null,null,null,null,null,null,null,null,""]
[null,null,null,null,null,null,null,null,null,null,null,null,null,null,null,null,null,null,null,""]
[null,null,null,null,null,null,null,null,null,null,null,null,null,null,null,null,null,null,null,""]
[null,null,null,null,null,null,null,null,null,null,null,null,null,null,null,null,null,null,null,""]
[null,null,null,null,null,null,null,null,null,null,null,null,null,null,null,null,null,null,null,""]
[null,null,null,null,null,null,null,null,null,null,null,null,null,null,null,null,null,null,null,""]
[null,null,null,null,null,null,null,null,null,null,null,null,null,null,null,null,null,null,null,""]
[null,null,null,null,null,null,null,null,null,null,null,null,null,null,null,null,null,null,null,""]
[null,null,null,null,null,null,null,null,null,null,null,null,null,null,null,null,null,null,null,""]
[null,null,null,null,null,null,null,null,null,null,null,null,null,null,null,null,null,null,null,""]
[null,null,null,null,null,null,null,null,null,null,null,null,null,null,null,null,null,null,null,""]
[null,null,null,null,null,null,null,null,null,null,null,null,null,null,null,null,null,null,null,""]
[null,null,null,null,null,null,null,null,null,null,null,null,null,null,null,null,null,null,null,""]
[null,null,null,null,null,null,null,null,null,null,null,null,null,null,null,null,null,null,null,""]
[null,null,null,null,null,null,null,null,null,null,null,null,null,null,null,null,null,null,null,""]
[null,null,null,null,null,null,null,null,null,null,null,null,null,null,null,null,null,null,null,""]
[null,null,null,null,null,null,null,null,null,null,null,null,null,null,null,null,null,null,null,""]
[null,null,null,null,null,null,null,null,null,null,null,null,null,null,null,null,null,null,null,""]
[null,null,null,null,null,null,null,null,null,null,null,null,null,null,null,null,null,null,null,""]
[null,null,null,null,null,null,null,null,null,null,null,null,null,null,null,null,null,null,null,""]
[null,null,null,null,null,null,null,null,null,null,null,null,null,null,null,null,null,null,null,""]
[null,null,null,null,null,null,null,null,null,null,null,null,null,null,null,null,null,null,null,""]
[null,null,null,null,null,null,null,null,null,null,null,null,null,null,null,null,null,null,null,""]
[null,null,null,null,null,null,null,null,null,null,null,null,null,null,null,null,null,null,null,""]
[null,null,null,null,null,null,null,null,null,null,null,null,null,null,null,null,null,null,null,""]
[null,null,null,null,null,null,null,null,null,null,null,null,null,null,null,null,null,null,null,""]
[null,null,null,null,null,null,null,null,null,null,null,null,null,null,null,null,null,null,null,""]
[null,null,null,null,null,null,null,null,null,null,null,null,null,null,null,null,null,null,null,""]
[null,null,null,null,null,null,null,null,null,null,null,null,null,null,null,null,null,null,null,""]
[null,null,null,null,null,null,null,null,null,null,null,null,null,null,null,null,null,null,null,""]
[null,null,null,null,null,null,null,null,null,null,null,null,null,null,null,null,null,null,null,""]
[null,null,null,null,null,null,null,null,null,null,null,null,null,null,null,null,null,null,null,""]
[null,null,null,null,null,null,null,null,null,null,null,null,null,null,null,null,null,null,null,""]
[null,null,null,null,null,null,null,null,null,null,null,null,null,null,null,null,null,null,null,""]
[null,null,null,null,null,null,null,null,null,null,null,null,null,null,null,null,null,null,null,""]
[null,null,null,null,null,null,null,null,null,null,null,null,null,null,null,null,null,null,null,""]
[null,null,null,null,null,null,null,null,null,null,null,null,null,null,null,null,null,null,null,""]
[null,null,null,null,null,null,null,null,null,null,null,null,null,null,null,null,null,null,null,""]
[null,null,null,null,null,null,null,null,null,null,null,null,null,null,null,null,null,null,null,""]
[null,null,null,null,null,null,null,null,null,null,null,null,null,null,null,null,null,null,null,""]
[null,null,null,null,null,null,null,null,null,null,null,null,null,null,null,null,null,null,null,""]
[null,null,null,null,null,null,null,null,null,null,null,null,null,null,null,null,null,null,null,""]
[null,null,null,null,null,null,null,null,null,null,null,null,null,null,null,null,null,null,null,""]
[null,null,null,null,null,null,null,null,null,null,null,null,null,null,null,null,null,null,null,""]
[null,null,null,null,null,null,null,null,null,null,null,null,null,null,null,null,null,null,null,""]
[null,null,null,null,null,null,null,null,null,null,null,null,null,null,null,null,null,null,null,""]
[null,null,null,null,null,null,null,null,null,null,null,null,null,null,null,null,null,null,null,""]
[null,null,null,null,null,null,null,null,null,null,null,null,null,null,null,null,null,null,null,""]
[null,null,null,null,null,null,null,null,null,null,null,null,null,null,null,null,null,null,null,""]
[null,null,null,null,null,null,null,null,null,null,null,null,null,null,null,null,null,null,null,""]
[null,null,null,null,null,null,null,null,null,null,null,null,null,null,null,null,null,null,null,""]
[null,null,null,null,null,null,null,null,null,null,null,null,null,null,null,null,null,null,null,""]
[null,null,null,null,null,null,null,null,null,null,null,null,null,null,null,null,null,null,null,""]
[null,null,null,null,null,null,null,null,null,null,null,null,null,null,null,null,null,null,null,""]
[null,null,null,null,null,null,null,null,null,null,null,null,null,null,null,null,null,null,null,""]
[null,null,null,null,null,null,null,null,null,null,null,null,null,null,null,null,null,null,null,""]
[null,null,null,null,null,null,null,null,null,null,null,null,null,null,null,null,null,null,null,""]
[null,null,null,null,null,null,null,null,null,null,null,null,null,null,null,null,null,null,null,""]
[null,null,null,null,null,null,null,null,null,null,null,null,null,null,null,null,null,null,null,""]
[null,null,null,null,null,null,null,null,null,null,null,null,null,null,null,null,null,null,null,""]
[null,null,null,null,null,null,null,null,null,null,null,null,null,null,null,null,null,null,null,""]
[null,null,null,null,null,null,null,null,null,null,null,null,null,null,null,null,null,null,null,""]
[null,null,null,null,null,null,null,null,null,null,null,null,null,null,null,null,null,null,null,""]
[null,null,null,null,null,null,null,null,null,null,null,null,null,null,null,null,null,null,null,""]
[null,null,null,null,null,null,null,null,null,null,null,null,null,null,null,null,null,null,null,""]
[null,null,null,null,null,null,null,null,null,null,null,null,null,null,null,null,null,null,null,""]
[null,null,null,null,null,null,null,null,null,null,null,null,null,null,null,null,null,null,null,""]
[null,null,null,null,null,null,null,null,null,null,null,null,null,null,null,null,null,null,null,""]
[null,null,null,null,null,null,null,null,null,null,null,null,null,null,null,null,null,null,null,""]
[null,null,null,null,null,null,null,null,null,null,null,null,null,null,null,null,null,null,null,""]
[null,null,null,null,null,null,null,null,null,null,null,null,null,null,null,null,null,null,null,""]
[null,null,null,null,null,null,null,null,null,null,null,null,null,null,null,null,null,null,null,""]
[null,null,null,null,null,null,null,null,null,null,null,null,null,null,null,null,null,null,null,""]
[null,null,null,null,null,null,null,null,null,null,null,null,null,null,null,null,null,null,null,""]
[null,null,null,null,null,null,null,null,null,null,null,null,null,null,null,null,null,null,null,""]
[null,null,null,null,null,null,null,null,null,null,null,null,null,null,null,null,null,null,null,""]
[null,null,null,null,null,null,null,null,null,null,null,null,null,null,null,null,null,null,null,""]
[null,null,null,null,null,null,null,null,null,null,null,null,null,null,null,null,null,null,null,""]
[null,null,null,null,null,null,null,null,null,null,null,null,null,null,null,null,null,null,null,""]
[null,null,null,null,null,null,null,null,null,null,null,null,null,null,null,null,null,null,null,""]
[null,null,null,null,null,null,null,null,null,null,null,null,null,null,null,null,null,null,null,""]
[null,null,null,null,null,null,null,null,null,null,null,null,null,null,null,null,null,null,null,""]
[null,null,null,null,null,null,null,null,null,null,null,null,null,null,null,null,null,null,null,""]
[null,null,null,null,null,null,null,null,null,null,null,null,null,null,null,null,null,null,null,""]
[null,null,null,null,null,null,null,null,null,null,null,null,null,null,null,null,null,null,null,""]
[null,null,null,null,null,null,null,null,null,null,null,null,null,null,null,null,null,null,null,""]
[null,null,null,null,null,null,null,null,null,null,null,null,null,null,null,null,null,null,null,""]
[null,null,null,null,null,null,null,null,null,null,null,null,null,null,null,null,null,null,null,""]
[null,null,null,null,null,null,null,null,null,null,null,null,null,null,null,null,null,null,null,""]
[null,null,null,null,null,null,null,null,null,null,null,null,null,null,null,null,null,null,null,""]
[null,null,null,null,null,null,null,null,null,null,null,null,null,null,null,null,null,null,null,""]
[null,null,null,null,null,null,null,null,null,null,null,null,null,null,null,null,null,null,null,""]
[null,null,null,null,null,null,null,null,null,null,null,null,null,null,null,null,null,null,null,""]
[null,null,null,null,null,null,null,null,null,null,null,null,null,null,null,null,null,null,null,""]
[null,null,null,null,null,null,null,null,null,null,null,null,null,null,null,null,null,null,null,""]
[null,null,null,null,null,null,null,null,null,null,null,null,null,null,null,null,null,null,null,""]
[null,null,null,null,null,null,null,null,null,null,null,null,null,null,null,null,null,null,null,""]
[null,null,null,null,null,null,null,null,null,null,null,null,null,null,null,null,null,null,null,""]
[null,null,null,null,null,null,null,null,null,null,null,null,null,null,null,null,null,null,null,""]
[null,null,null,null,null,null,null,null,null,null,null,null,null,null,null,null,null,null,null,""]
[null,null,null,null,null,null,null,null,null,null,null,null,null,null,null,null,null,null,null,""]
[null,null,null,null,null,null,null,null,null,null,null,null,null,null,null,null,null,null,null,""]
[null,null,null,null,null,null,null,null,null,null,null,null,null,null,null,null,null,null,null,""]
[null,null,null,null,null,null,null,null,null,null,null,null,null,null,null,null,null,null,null,""]
[null,null,null,null,null,null,null,null,null,null,null,null,null,null,null,null,null,null,null,""]
[null,null,null,null,null,null,null,null,null,null,null,null,null,null,null,null,null,null,null,""]
[null,null,null,null,null,null,null,null,null,null,null,null,null,null,null,null,null,null,null,""]
[null,null,null,null,null,null,null,null,null,null,null,null,null,null,null,null,null,null,null,""]
[null,null,null,null,null,null,null,null,null,null,null,null,null,null,null,null,null,null,null,""]
[null,null,null,null,null,null,null,null,null,null,null,null,null,null,null,null,null,null,null,""]
[null,null,null,null,null,null,null,null,null,null,null,null,null,null,null,null,null,null,null,""]
[null,null,null,null,null,null,null,null,null,null,null,null,null,null,null,null,null,null,null,""]
[null,null,null,null,null,null,null,null,null,null,null,null,null,null,null,null,null,null,null,""]
[null,null,null,null,null,null,null,null,null,null,null,null,null,null,null,null,null,null,null,""]
[null,null,null,null,null,null,null,null,null,null,null,null,null,null,null,null,null,null,null,""]
[null,null,null,null,null,null,null,null,null,null,null,null,null,null,null,null,null,null,null,""]
[null,null,null,null,null,null,null,null,null,null,null,null,null,null,null,null,null,null,null,""]
[null,null,null,null,null,null,null,null,null,null,null,null,null,null,null,null,null,null,null,""]
[null,null,null,null,null,null,null,null,null,null,null,null,null,null,null,null,null,null,null,""]
[null,null,null,null,null,null,null,null,null,null,null,null,null,null,null,null,null,null,null,""]
[null,null,null,null,null,null,null,null,null,null,null,null,null,null,null,null,null,null,null,""]
[null,null,null,null,null,null,null,null,null,null,null,null,null,null,null,null,null,null,null,""]
[null,null,null,null,null,null,null,null,null,null,null,null,null,null,null,null,null,null,null,""]
[null,null,null,null,null,null,null,null,null,null,null,null,null,null,null,null,null,null,null,""]
[null,null,null,null,null,null,null,null,null,null,null,null,null,null,null,null,null,null,null,""]
[null,null,null,null,null,null,null,null,null,null,null,null,null,null,null,null,null,null,null,""]
[null,null,null,null,null,null,null,null,null,null,null,null,null,null,null,null,null,null,null,""]
[null,null,null,null,null,null,null,null,null,null,null,null,null,null,null,null,null,null,null,""]
[null,null,null,null,null,null,null,null,null,null,null,null,null,null,null,null,null,null,null,""]
[null,null,null,null,null,null,null,null,null,null,null,null,null,null,null,null,null,null,null,""]
[null,null,null,null,null,null,null,null,null,null,null,null,null,null,null,null,null,null,null,""]
[null,null,null,null,null,null,null,null,null,null,null,null,null,null,null,null,null,null,null,""]
[null,null,null,null,null,null,null,null,null,null,null,null,null,null,null,null,null,null,null,""]
[null,null,null,null,null,null,null,null,null,null,null,null,null,null,null,null,null,null,null,""]
[null,null,null,null,null,null,null,null,null,null,null,null,null,null,null,null,null,null,null,""]
[null,null,null,null,null,null,null,null,null,null,null,null,null,null,null,null,null,null,null,""]
[null,null,null,null,null,null,null,null,null,null,null,null,null,null,null,null,null,null,null,""]
[null,null,null,null,null,null,null,null,null,null,null,null,null,null,null,null,null,null,null,""]
[null,null,null,null,null,null,null,null,null,null,null,null,null,null,null,null,null,null,null,""]
[null,null,null,null,null,null,null,null,null,null,null,null,null,null,null,null,null,null,null,""]
[null,null,null,null,null,null,null,null,null,null,null,null,null,null,null,null,null,null,null,""]
[null,null,null,null,null,null,null,null,null,null,null,null,null,null,null,null,null,null,null,""]
[null,null,null,null,null,null,null,null,null,null,null,null,null,null,null,null,null,null,null,""]
[null,null,null,null,null,null,null,null,null,null,null,null,null,null,null,null,null,null,null,""]
[null,null,null,null,null,null,null,null,null,null,null,null,null,null,null,null,null,null,null,""]

{"sheet":"C1 A L S","index":5,"n_rows":208,"n_cols":61,"rows_kept":208,"cut":false,"hidden":false,"merged":[[3,24,3,28],[0,0,0,8],[1,0,1,8],[2,0,2,8],[3,17,3,22],[1,11,1,12],[2,10,2,11],[3,10,3,15]]}
["COPA CENTRO AGRICOLA",null,null,null,null,null,null,null,null,null,null,null,null,null,20,"Km",null,null,null,null,null,20,"Km",null,null,null,"DISTANCIA",20,"Km",null,60,"Km"]
["I CHONE 11/02/2017, HCDA. SAN BERNARDO",null,null,null,null,null,null,null,null,null,"FECHA:","2017-02-13T16:07:17.390",null,null,"T. MÁXIMO","LIBRE",null,null,null,null,"T. MÁXIMO","LIBRE",null,null,null,null,"T. MÁXIMO","LIBRE",null,null,"5:00:00","T. MÁXIMO "]
["CHASQUI 1 (60 a 79 Km) ABIERTA VELOCIDAD LIBRE",null,null,null,null,null,null,null,null,null,"TIEMPO DE DESCANSO:",null,4.1666666666666664E-2,null,"T. MÍNIMO","LIBRE",null,null,null,null,"T. MÍNIMO","LIBRE",null,null,null,null,"T. MÍNIMO","LIBRE"]
[null,null,null,null,null,null,null,null,null,null,"PRIMERA ETAPA",null,null,null,null,null,null,"SEGUNDA ETAPA",null,null,null,null,null,null,"TERCERA ETAPA",null,null,null,null,null,"TOTAL"]
["POSICION","CODIGO","NOMBRE DEL JINETE","CODIGO","NOMBRE DEL CABALLO","HORA DE SALIDA ","HORA FINAL","TIEMPO DE COMPETENCIA","TIEMPO MEDIO DE RECUPERACIÓN","PUNTAJE","HORA DE LLEGADA","HORA DE CHEQUEO","TIEMPO DE RECUPERACIÓN","TIEMPO DE LA ETAPA","VELOCI     DAD","HORA DE SALIDA",null,"HORA DE LLEGADA","HORA DE CHEQUEO","TIEMPO DE RECUPERACIÓN","TIEMPO DE LA ETAPA","VELOCI     DAD","HORA DE SALIDA",null,"HORA DE LLEGADA","HORA DE CHEQUEO","TIEMPO DE RECUPERACIÓN","TIEMPO DE LA ETAPA","VELOCI     DAD",null,"TIEMPO EN CARRERA","VELOCIDAD DE COMPETENCIA","VELOCIDAD DE CARRERA"]
[null,null,null,null,null,null,null,null,null,120,null,null,null,null,null,""]
[1,"A171","VELEZ MENA MARIA CONSUELO","C209","AISHA","10:00:00","14:08:02",0.13057870370370364,"00:05:20",120,"10:58:37","11:03:37","00:05:00","01:03:37",20.471993176002275,"11:33:37",null,"12:33:37","12:39:17","00:05:40","01:05:40",20.000000000000018,"13:09:17",null,"14:08:02","14:15:52","00:07:50","00:58:45",20.42553191489365,null,"02:57:22",19.145541570643513,20.296936666040235,null,null,null,null,null,null,null,null,null,null,null,null,null,null,null,null,null,null,null,null,null,null,null,null,null,null,null,1]
[2,"A097","MALO ANDREA","C441","SANTOO","10:00:00","14:08:03",0.13059027777777779,"00:05:25.500",114,"10:58:38","11:03:47","00:05:09","01:03:47",20.466173962478699,"11:33:47",null,"12:33:38","12:39:20","00:05:42","01:05:33",20.050125313283178,"13:09:20",null,"14:08:03","14:16:28","00:08:25","00:58:43",20.437127448197554,null,"02:57:12",19.143844722148362,20.316027088036112,null,null,null,null,null,null,null,null,null,null,null,null,null,null,null,null,null,null,null,null,null,null,null,null,null,null,null,0.95]
[3,"","","","","","","","","","","","","","","",null,"","","","","","",null,"","","","","",null,"","","",null,null,null,null,null,null,null,null,null,null,null,null,null,null,null,null,null,null,null,null,null,null,null,null,null,null,null,0.9]
[4,"","","","","","","","","","","","","","","",null,"","","","","","",null,"","","","","",null,"","","",null,null,null,null,null,null,null,null,null,null,null,null,null,null,null,null,null,null,null,null,null,null,null,null,null,null,null,0.85]
[5,"","","","","","","","","","","","","","","",null,"","","","","","",null,"","","","","",null,"","","",null,null,null,null,null,null,null,null,null,null,null,null,null,null,null,null,null,null,null,null,null,null,null,null,null,null,null,0.8]
[6,"","","","","","","","","","","","","","","",null,"","","","","","",null,"","","","","",null,"","","",null,null,null,null,null,null,null,null,null,null,null,null,null,null,null,null,null,null,null,null,null,null,null,null,null,null,null,0.75]
[7,"","","","","","","","","","","","","","","",null,"","","","","","",null,"","","","","",null,"","","",null,null,null,null,null,null,null,null,null,null,null,null,null,null,null,null,null,null,null,null,null,null,null,null,null,null,null,0.7]
[8,"","","","","","","","","","","","","","","",null,"","","","","","",null,"","","","","",null,"","","",null,null,null,null,null,null,null,null,null,null,null,null,null,null,null,null,null,null,null,null,null,null,null,null,null,null,null,0.65]
[9,"","","","","","","","","","","","","","","",null,"","","","","","",null,"","","","","",null,"","","",null,null,null,null,null,null,null,null,null,null,null,null,null,null,null,null,null,null,null,null,null,null,null,null,null,null,null,0.6]
[10,"","","","","","","","","","","","","","","",null,"","","","","","",null,"","","","","",null,"","","",null,null,null,null,null,null,null,null,null,null,null,null,null,null,null,null,null,null,null,null,null,null,null,null,null,null,null,0.55000000000000004]
[11,"","","","","","","","","","","","","","","",null,"","","","","","",null,"","","","","",null,"","","",null,null,null,null,null,null,null,null,null,null,null,null,null,null,null,null,null,null,null,null,null,null,null,null,null,null,null,0.5]
[12,"","","","","","","","","","","","","","","",null,"","","","","","",null,"","","","","",null,"","","",null,null,null,null,null,null,null,null,null,null,null,null,null,null,null,null,null,null,null,null,null,null,null,null,null,null,null,0.5]
[13,"","","","","","","","","","","","","","","",null,"","","","","","",null,"","","","","",null,"","","",null,null,null,null,null,null,null,null,null,null,null,null,null,null,null,null,null,null,null,null,null,null,null,null,null,null,null,0.5]
[14,"","","","","","","","","","","","","","","",null,"","","","","","",null,"","","","","",null,"","","",null,null,null,null,null,null,null,null,null,null,null,null,null,null,null,null,null,null,null,null,null,null,null,null,null,null,null,0.5]
[15,"","","","","","","","","","","","","","","",null,"","","","","","",null,"","","","","",null,"","","",null,null,null,null,null,null,null,null,null,null,null,null,null,null,null,null,null,null,null,null,null,null,null,null,null,null,null,0.5]
[16,"","","","","","","","","","","","","","","",null,"","","","","","",null,"","","","","",null,"","","",null,null,null,null,null,null,null,null,null,null,null,null,null,null,null,null,null,null,null,null,null,null,null,null,null,null,null,0.5]
[17,"","","","","","","","","","","","","","","",null,"","","","","","",null,"","","","","",null,"","","",null,null,null,null,null,null,null,null,null,null,null,null,null,null,null,null,null,null,null,null,null,null,null,null,null,null,null,0.5]
[18,"","","","","","","","","","","","","","","",null,"","","","","","",null,"","","","","",null,"","","",null,null,null,null,null,null,null,null,null,null,null,null,null,null,null,null,null,null,null,null,null,null,null,null,null,null,null,0.5]
[19,"","","","","","","","","","","","","","","",null,"","","","","","",null,"","","","","",null,"","","",null,null,null,null,null,null,null,null,null,null,null,null,null,null,null,null,null,null,null,null,null,null,null,null,null,null,null,0.5]
[20,"","","","","","","","","","","","","","","",null,"","","","","","",null,"","","","","",null,"","","",null,null,null,null,null,null,null,null,null,null,null,null,null,null,null,null,null,null,null,null,null,null,null,null,null,null,null,0.5]
[21,"","","","","","","","","","","","","","","",null,"","","","","","",null,"","","","","",null,"","","",null,null,null,null,null,null,null,null,null,null,null,null,null,null,null,null,null,null,null,null,null,null,null,null,null,null,null,0.5]
[22,"","","","","","","","","","","","","","","",null,"","","","","","",null,"","","","","",null,"","","",null,null,null,null,null,null,null,null,null,null,null,null,null,null,null,null,null,null,null,null,null,null,null,null,null,null,null,0.5]
[23,"","","","","","","","","","","","","","","",null,"","","","","","",null,"","","","","",null,"","","",null,null,null,null,null,null,null,null,null,null,null,null,null,null,null,null,null,null,null,null,null,null,null,null,null,null,null,0.5]
[24,"","","","","","","","","","","","","","","",null,"","","","","","",null,"","","","","",null,"","","",null,null,null,null,null,null,null,null,null,null,null,null,null,null,null,null,null,null,null,null,null,null,null,null,null,null,null,0.5]
[25,"","","","","","","","","","","","","","","",null,"","","","","","",null,"","","","","",null,"","","",null,null,null,null,null,null,null,null,null,null,null,null,null,null,null,null,null,null,null,null,null,null,null,null,null,null,null,0.5]
[26,"","","","","","","","","","","","","","","",null,"","","","","","",null,"","","","","",null,"","","",null,null,null,null,null,null,null,null,null,null,null,null,null,null,null,null,null,null,null,null,null,null,null,null,null,null,null,0.5]
[27,"","","","","","","","","","","","","","","",null,"","","","","","",null,"","","","","",null,"","","",null,null,null,null,null,null,null,null,null,null,null,null,null,null,null,null,null,null,null,null,null,null,null,null,null,null,null,0.5]
[28,"","","","","","","","","","","","","","","",null,"","","","","","",null,"","","","","",null,"","","",null,null,null,null,null,null,null,null,null,null,null,null,null,null,null,null,null,null,null,null,null,null,null,null,null,null,null,0.5]
[29,"","","","","","","","","","","","","","","",null,"","","","","","",null,"","","","","",null,"","","",null,null,null,null,null,null,null,null,null,null,null,null,null,null,null,null,null,null,null,null,null,null,null,null,null,null,null,0.5]
[30,"","","","","","","","","","","","","","","",null,"","","","","","",null,"","","","","",null,"","","",null,null,null,null,null,null,null,null,null,null,null,null,null,null,null,null,null,null,null,null,null,null,null,null,null,null,null,0.5]
[31,"","","","","","","","","","","","","","","",null,"","","","","","",null,"","","","","",null,"","","",null,null,null,null,null,null,null,null,null,null,null,null,null,null,null,null,null,null,null,null,null,null,null,null,null,null,null,0.5]
[32,"","","","","","","","","","","","","","","",null,"","","","","","",null,"","","","","",null,"","","",null,null,null,null,null,null,null,null,null,null,null,null,null,null,null,null,null,null,null,null,null,null,null,null,null,null,null,0.5]
[33,"","","","","","","","","","","","","","","",null,"","","","","","",null,"","","","","",null,"","","",null,null,null,null,null,null,null,null,null,null,null,null,null,null,null,null,null,null,null,null,null,null,null,null,null,null,null,0.5]
[34,"","","","","","","","","","","","","","","",null,"","","","","","",null,"","","","","",null,"","","",null,null,null,null,null,null,null,null,null,null,null,null,null,null,null,null,null,null,null,null,null,null,null,null,null,null,null,0.5]
[35,"","","","","","","","","","","","","","","",null,"","","","","","",null,"","","","","",null,"","","",null,null,null,null,null,null,null,null,null,null,null,null,null,null,null,null,null,null,null,null,null,null,null,null,null,null,null,0.5]
[36,"","","","","","","","","","","","","","","",null,"","","","","","",null,"","","","","",null,"","","",null,null,null,null,null,null,null,null,null,null,null,null,null,null,null,null,null,null,null,null,null,null,null,null,null,null,null,0.5]
[37,"","","","","","","","","","","","","","","",null,"","","","","","",null,"","","","","",null,"","","",null,null,null,null,null,null,null,null,null,null,null,null,null,null,null,null,null,null,null,null,null,null,null,null,null,null,null,0.5]
[38,"","","","","","","","","","","","","","","",null,"","","","","","",null,"","","","","",null,"","","",null,null,null,null,null,null,null,null,null,null,null,null,null,null,null,null,null,null,null,null,null,null,null,null,null,null,null,0.5]
[39,"","","","","","","","","","","","","","","",null,"","","","","","",null,"","","","","",null,"","","",null,null,null,null,null,null,null,null,null,null,null,null,null,null,null,null,null,null,null,null,null,null,null,null,null,null,null,0.5]
[40,"","","","","","","","","","","","","","","",null,"","","","","","",null,"","","","","",null,"","","",null,null,null,null,null,null,null,null,null,null,null,null,null,null,null,null,null,null,null,null,null,null,null,null,null,null,null,0.5]
[41,"","","","","","","","","","","","","","","",null,"","","","","","",null,"","","","","",null,"","","",null,null,null,null,null,null,null,null,null,null,null,null,null,null,null,null,null,null,null,null,null,null,null,null,null,null,null,0.5]
[42,"","","","","","","","","","","","","","","",null,"","","","","","",null,"","","","","",null,"","","",null,null,null,null,null,null,null,null,null,null,null,null,null,null,null,null,null,null,null,null,null,null,null,null,null,null,null,0.5]
[43,"","","","","","","","","","","","","","","",null,"","","","","","",null,"","","","","",null,"","","",null,null,null,null,null,null,null,null,null,null,null,null,null,null,null,null,null,null,null,null,null,null,null,null,null,null,null,0.5]
[44,"","","","","","","","","","","","","","","",null,"","","","","","",null,"","","","","",null,"","","",null,null,null,null,null,null,null,null,null,null,null,null,null,null,null,null,null,null,null,null,null,null,null,null,null,null,null,0.5]
[45,"","","","","","","","","","","","","","","",null,"","","","","","",null,"","","","","",null,"","","",null,null,null,null,null,null,null,null,null,null,null,null,null,null,null,null,null,null,null,null,null,null,null,null,null,null,null,0.5]
[46,"","","","","","","","","","","","","","","",null,"","","","","","",null,"","","","","",null,"","","",null,null,null,null,null,null,null,null,null,null,null,null,null,null,null,null,null,null,null,null,null,null,null,null,null,null,null,0.5]
[47,"","","","","","","","","","","","","","","",null,"","","","","","",null,"","","","","",null,"","","",null,null,null,null,null,null,null,null,null,null,null,null,null,null,null,null,null,null,null,null,null,null,null,null,null,null,null,0.5]
[48,"","","","","","","","","","","","","","","",null,"","","","","","",null,"","","","","",null,"","","",null,null,null,null,null,null,null,null,null,null,null,null,null,null,null,null,null,null,null,null,null,null,null,null,null,null,null,0.5]
[49,"","","","","","","","","","","","","","","",null,"","","","","","",null,"","","","","",null,"","","",null,null,null,null,null,null,null,null,null,null,null,null,null,null,null,null,null,null,null,null,null,null,null,null,null,null,null,0.5]
[50,"","","","","","","","","","","","","","","",null,"","","","","","",null,"","","","","",null,"","","",null,null,null,null,null,null,null,null,null,null,null,null,null,null,null,null,null,null,null,null,null,null,null,null,null,null,null,0.5]
[51,"","","","","","","","","","","","","","","",null,"","","","","","",null,"","","","","",null,"","","",null,null,null,null,null,null,null,null,null,null,null,null,null,null,null,null,null,null,null,null,null,null,null,null,null,null,null,0.5]
[52,"","","","","","","","","","","","","","","",null,"","","","","","",null,"","","","","",null,"","","",null,null,null,null,null,null,null,null,null,null,null,null,null,null,null,null,null,null,null,null,null,null,null,null,null,null,null,0.5]
[53,"","","","","","","","","","","","","","","",null,"","","","","","",null,"","","","","",null,"","","",null,null,null,null,null,null,null,null,null,null,null,null,null,null,null,null,null,null,null,null,null,null,null,null,null,null,null,0.5]
[54,"","","","","","","","","","","","","","","",null,"","","","","","",null,"","","","","",null,"","","",null,null,null,null,null,null,null,null,null,null,null,null,null,null,null,null,null,null,null,null,null,null,null,null,null,null,null,0.5]
[55,"","","","","","","","","","","","","","","",null,"","","","","","",null,"","","","","",null,"","","",null,null,null,null,null,null,null,null,null,null,null,null,null,null,null,null,null,null,null,null,null,null,null,null,null,null,null,0.5]
[56,"","","","","","","","","","","","","","","",null,"","","","","","",null,"","","","","",null,"","","",null,null,null,null,null,null,null,null,null,null,null,null,null,null,null,null,null,null,null,null,null,null,null,null,null,null,null,0.5]
[57,"","","","","","","","","","","","","","","",null,"","","","","","",null,"","","","","",null,"","","",null,null,null,null,null,null,null,null,null,null,null,null,null,null,null,null,null,null,null,null,null,null,null,null,null,null,null,0.5]
[58,"","","","","","","","","","","","","","","",null,"","","","","","",null,"","","","","",null,"","","",null,null,null,null,null,null,null,null,null,null,null,null,null,null,null,null,null,null,null,null,null,null,null,null,null,null,null,0.5]
[59,"","","","","","","","","","","","","","","",null,"","","","","","",null,"","","","","",null,"","","",null,null,null,null,null,null,null,null,null,null,null,null,null,null,null,null,null,null,null,null,null,null,null,null,null,null,null,0.5]
[60,"","","","","","","","","","","","","","","",null,"","","","","","",null,"","","","","",null,"","","",null,null,null,null,null,null,null,null,null,null,null,null,null,null,null,null,null,null,null,null,null,null,null,null,null,null,null,0.5]
[61,"","","","","","","","","","","","","","","",null,"","","","","","",null,"","","","","",null,"","","",null,null,null,null,null,null,null,null,null,null,null,null,null,null,null,null,null,null,null,null,null,null,null,null,null,null,null,0.5]
[62,"","","","","","","","","","","","","","","",null,"","","","","","",null,"","","","","",null,"","","",null,null,null,null,null,null,null,null,null,null,null,null,null,null,null,null,null,null,null,null,null,null,null,null,null,null,null,0.5]
[63,"","","","","","","","","","","","","","","",null,"","","","","","",null,"","","","","",null,"","","",null,null,null,null,null,null,null,null,null,null,null,null,null,null,null,null,null,null,null,null,null,null,null,null,null,null,null,0.5]
[64,"","","","","","","","","","","","","","","",null,"","","","","","",null,"","","","","",null,"","","",null,null,null,null,null,null,null,null,null,null,null,null,null,null,null,null,null,null,null,null,null,null,null,null,null,null,null,0.5]
[65,"","","","","","","","","","","","","","","",null,"","","","","","",null,"","","","","",null,"","","",null,null,null,null,null,null,null,null,null,null,null,null,null,null,null,null,null,null,null,null,null,null,null,null,null,null,null,0.5]
[66,"","","","","","","","","","","","","","","",null,"","","","","","",null,"","","","","",null,"","","",null,null,null,null,null,null,null,null,null,null,null,null,null,null,null,null,null,null,null,null,null,null,null,null,null,null,null,0.5]
[67,"","","","","","","","","","","","","","","",null,"","","","","","",null,"","","","","",null,"","","",null,null,null,null,null,null,null,null,null,null,null,null,null,null,null,null,null,null,null,null,null,null,null,null,null,null,null,0.5]
[68,"","","","","","","","","","","","","","","",null,"","","","","","",null,"","","","","",null,"","","",null,null,null,null,null,null,null,null,null,null,null,null,null,null,null,null,null,null,null,null,null,null,null,null,null,null,null,0.5]
[69,"","","","","","","","","","","","","","","",null,"","","","","","",null,"","","","","",null,"","","",null,null,null,null,null,null,null,null,null,null,null,null,null,null,null,null,null,null,null,null,null,null,null,null,null,null,null,0.5]
[70,"","","","","","","","","","","","","","","",null,"","","","","","",null,"","","","","",null,"","","",null,null,null,null,null,null,null,null,null,null,null,null,null,null,null,null,null,null,null,null,null,null,null,null,null,null,null,0.5]
[71,"","","","","","","","","","","","","","","",null,"","","","","","",null,"","","","","",null,"","","",null,null,null,null,null,null,null,null,null,null,null,null,null,null,null,null,null,null,null,null,null,null,null,null,null,null,null,0.5]
[72,"","","","","","","","","","","","","","","",null,"","","","","","",null,"","","","","",null,"","","",null,null,null,null,null,null,null,null,null,null,null,null,null,null,null,null,null,null,null,null,null,null,null,null,null,null,null,0.5]
[73,"","","","","","","","","","","","","","","",null,"","","","","","",null,"","","","","",null,"","","",null,null,null,null,null,null,null,null,null,null,null,null,null,null,null,null,null,null,null,null,null,null,null,null,null,null,null,0.5]
[74,"","","","","","","","","","","","","","","",null,"","","","","","",null,"","","","","",null,"","","",null,null,null,null,null,null,null,null,null,null,null,null,null,null,null,null,null,null,null,null,null,null,null,null,null,null,null,0.5]
[75,"","","","","","","","","","","","","","","",null,"","","","","","",null,"","","","","",null,"","","",null,null,null,null,null,null,null,null,null,null,null,null,null,null,null,null,null,null,null,null,null,null,null,null,null,null,null,0.5]
[76,"","","","","","","","","","","","","","","",null,"","","","","","",null,"","","","","",null,"","","",null,null,null,null,null,null,null,null,null,null,null,null,null,null,null,null,null,null,null,null,null,null,null,null,null,null,null,0.5]
[77,"","","","","","","","","","","","","","","",null,"","","","","","",null,"","","","","",null,"","","",null,null,null,null,null,null,null,null,null,null,null,null,null,null,null,null,null,null,null,null,null,null,null,null,null,null,null,0.5]
[78,"","","","","","","","","","","","","","","",null,"","","","","","",null,"","","","","",null,"","","",null,null,null,null,null,null,null,null,null,null,null,null,null,null,null,null,null,null,null,null,null,null,null,null,null,null,null,0.5]
[79,"","","","","","","","","","","","","","","",null,"","","","","","",null,"","","","","",null,"","","",null,null,null,null,null,null,null,null,null,null,null,null,null,null,null,null,null,null,null,null,null,null,null,null,null,null,null,0.5]
[80,"","","","","","","","","","","","","","","",null,"","","","","","",null,"","","","","",null,"","","",null,null,null,null,null,null,null,null,null,null,null,null,null,null,null,null,null,null,null,null,null,null,null,null,null,null,null,0.5]
[81,"","","","","","","","","","","","","","","",null,"","","","","","",null,"","","","","",null,"","","",null,null,null,null,null,null,null,null,null,null,null,null,null,null,null,null,null,null,null,null,null,null,null,null,null,null,null,0.5]
[82,"","","","","","","","","","","","","","","",null,"","","","","","",null,"","","","","",null,"","","",null,null,null,null,null,null,null,null,null,null,null,null,null,null,null,null,null,null,null,null,null,null,null,null,null,null,null,0.5]
[83,"","","","","","","","","","","","","","","",null,"","","","","","",null,"","","","","",null,"","","",null,null,null,null,null,null,null,null,null,null,null,null,null,null,null,null,null,null,null,null,null,null,null,null,null,null,null,0.5]
[84,"","","","","","","","","","","","","","","",null,"","","","","","",null,"","","","","",null,"","","",null,null,null,null,null,null,null,null,null,null,null,null,null,null,null,null,null,null,null,null,null,null,null,null,null,null,null,0.5]
[85,"","","","","","","","","","","","","","","",null,"","","","","","",null,"","","","","",null,"","","",null,null,null,null,null,null,null,null,null,null,null,null,null,null,null,null,null,null,null,null,null,null,null,null,null,null,null,0.5]
[86,"","","","","","","","","","","","","","","",null,"","","","","","",null,"","","","","",null,"","","",null,null,null,null,null,null,null,null,null,null,null,null,null,null,null,null,null,null,null,null,null,null,null,null,null,null,null,0.5]
[87,"","","","","","","","","","","","","","","",null,"","","","","","",null,"","","","","",null,"","","",null,null,null,null,null,null,null,null,null,null,null,null,null,null,null,null,null,null,null,null,null,null,null,null,null,null,null,0.5]
[88,"","","","","","","","","","","","","","","",null,"","","","","","",null,"","","","","",null,"","","",null,null,null,null,null,null,null,null,null,null,null,null,null,null,null,null,null,null,null,null,null,null,null,null,null,null,null,0.5]
[89,"","","","","","","","","","","","","","","",null,"","","","","","",null,"","","","","",null,"","","",null,null,null,null,null,null,null,null,null,null,null,null,null,null,null,null,null,null,null,null,null,null,null,null,null,null,null,0.5]
[90,"","","","","","","","","","","","","","","",null,"","","","","","",null,"","","","","",null,"","","",null,null,null,null,null,null,null,null,null,null,null,null,null,null,null,null,null,null,null,null,null,null,null,null,null,null,null,0.5]
[91,"","","","","","","","","","","","","","","",null,"","","","","","",null,"","","","","",null,"","","",null,null,null,null,null,null,null,null,null,null,null,null,null,null,null,null,null,null,null,null,null,null,null,null,null,null,null,0.5]
[92,"","","","","","","","","","","","","","","",null,"","","","","","",null,"","","","","",null,"","","",null,null,null,null,null,null,null,null,null,null,null,null,null,null,null,null,null,null,null,null,null,null,null,null,null,null,null,0.5]
[93,"","","","","","","","","","","","","","","",null,"","","","","","",null,"","","","","",null,"","","",null,null,null,null,null,null,null,null,null,null,null,null,null,null,null,null,null,null,null,null,null,null,null,null,null,null,null,0.5]
[94,"","","","","","","","","","","","","","","",null,"","","","","","",null,"","","","","",null,"","","",null,null,null,null,null,null,null,null,null,null,null,null,null,null,null,null,null,null,null,null,null,null,null,null,null,null,null,0.5]
[95,"","","","","","","","","","","","","","","",null,"","","","","","",null,"","","","","",null,"","","",null,null,null,null,null,null,null,null,null,null,null,null,null,null,null,null,null,null,null,null,null,null,null,null,null,null,null,0.5]
[96,"","","","","","","","","","","","","","","",null,"","","","","","",null,"","","","","",null,"","","",null,null,null,null,null,null,null,null,null,null,null,null,null,null,null,null,null,null,null,null,null,null,null,null,null,null,null,0.5]
[97,"","","","","","","","","","","","","","","",null,"","","","","","",null,"","","","","",null,"","","",null,null,null,null,null,null,null,null,null,null,null,null,null,null,null,null,null,null,null,null,null,null,null,null,null,null,null,0.5]
[98,"","","","","","","","","","","","","","","",null,"","","","","","",null,"","","","","",null,"","","",null,null,null,null,null,null,null,null,null,null,null,null,null,null,null,null,null,null,null,null,null,null,null,null,null,null,null,0.5]
[99,"","","","","","","","","","","","","","","",null,"","","","","","",null,"","","","","",null,"","","",null,null,null,null,null,null,null,null,null,null,null,null,null,null,null,null,null,null,null,null,null,null,null,null,null,null,null,0.5]
[100,"","","","","","","","","","","","","","","",null,"","","","","","",null,"","","","","",null,"","","",null,null,null,null,null,null,null,null,null,null,null,null,null,null,null,null,null,null,null,null,null,null,null,null,null,null,null,0.5]
[101,"","","","","","","","","","","","","","","",null,"","","","","","",null,"","","","","",null,"","","",null,null,null,null,null,null,null,null,null,null,null,null,null,null,null,null,null,null,null,null,null,null,null,null,null,null,null,0.5]
[102,"","","","","","","","","","","","","","","",null,"","","","","","",null,"","","","","",null,"","","",null,null,null,null,null,null,null,null,null,null,null,null,null,null,null,null,null,null,null,null,null,null,null,null,null,null,null,0.5]
[103,"","","","","","","","","","","","","","","",null,"","","","","","",null,"","","","","",null,"","","",null,null,null,null,null,null,null,null,null,null,null,null,null,null,null,null,null,null,null,null,null,null,null,null,null,null,null,0.5]
[104,"","","","","","","","","","","","","","","",null,"","","","","","",null,"","","","","",null,"","","",null,null,null,null,null,null,null,null,null,null,null,null,null,null,null,null,null,null,null,null,null,null,null,null,null,null,null,0.5]
[105,"","","","","","","","","","","","","","","",null,"","","","","","",null,"","","","","",null,"","","",null,null,null,null,null,null,null,null,null,null,null,null,null,null,null,null,null,null,null,null,null,null,null,null,null,null,null,0.5]
[106,"","","","","","","","","","","","","","","",null,"","","","","","",null,"","","","","",null,"","","",null,null,null,null,null,null,null,null,null,null,null,null,null,null,null,null,null,null,null,null,null,null,null,null,null,null,null,0.5]
[107,"","","","","","","","","","","","","","","",null,"","","","","","",null,"","","","","",null,"","","",null,null,null,null,null,null,null,null,null,null,null,null,null,null,null,null,null,null,null,null,null,null,null,null,null,null,null,0.5]
[108,"","","","","","","","","","","","","","","",null,"","","","","","",null,"","","","","",null,"","","",null,null,null,null,null,null,null,null,null,null,null,null,null,null,null,null,null,null,null,null,null,null,null,null,null,null,null,0.5]
[109,"","","","","","","","","","","","","","","",null,"","","","","","",null,"","","","","",null,"","","",null,null,null,null,null,null,null,null,null,null,null,null,null,null,null,null,null,null,null,null,null,null,null,null,null,null,null,0.5]
[110,"","","","","","","","","","","","","","","",null,"","","","","","",null,"","","","","",null,"","","",null,null,null,null,null,null,null,null,null,null,null,null,null,null,null,null,null,null,null,null,null,null,null,null,null,null,null,0.5]
[111,"","","","","","","","","","","","","","","",null,"","","","","","",null,"","","","","",null,"","","",null,null,null,null,null,null,null,null,null,null,null,null,null,null,null,null,null,null,null,null,null,null,null,null,null,null,null,0.5]
[112,"","","","","","","","","","","","","","","",null,"","","","","","",null,"","","","","",null,"","","",null,null,null,null,null,null,null,null,null,null,null,null,null,null,null,null,null,null,null,null,null,null,null,null,null,null,null,0.5]
[113,"","","","","","","","","","","","","","","",null,"","","","","","",null,"","","","","",null,"","","",null,null,null,null,null,null,null,null,null,null,null,null,null,null,null,null,null,null,null,null,null,null,null,null,null,null,null,0.5]
[114,"","","","","","","","","","","","","","","",null,"","","","","","",null,"","","","","",null,"","","",null,null,null,null,null,null,null,null,null,null,null,null,null,null,null,null,null,null,null,null,null,null,null,null,null,null,null,0.5]
[115,"","","","","","","","","","","","","","","",null,"","","","","","",null,"","","","","",null,"","","",null,null,null,null,null,null,null,null,null,null,null,null,null,null,null,null,null,null,null,null,null,null,null,null,null,null,null,0.5]
[116,"","","","","","","","","","","","","","","",null,"","","","","","",null,"","","","","",null,"","","",null,null,null,null,null,null,null,null,null,null,null,null,null,null,null,null,null,null,null,null,null,null,null,null,null,null,null,0.5]
[117,"","","","","","","","","","","","","","","",null,"","","","","","",null,"","","","","",null,"","","",null,null,null,null,null,null,null,null,null,null,null,null,null,null,null,null,null,null,null,null,null,null,null,null,null,null,null,0.5]
[118,"","","","","","","","","","","","","","","",null,"","","","","","",null,"","","","","",null,"","","",null,null,null,null,null,null,null,null,null,null,null,null,null,null,null,null,null,null,null,null,null,null,null,null,null,null,null,0.5]
[119,"","","","","","","","","","","","","","","",null,"","","","","","",null,"","","","","",null,"","","",null,null,null,null,null,null,null,null,null,null,null,null,null,null,null,null,null,null,null,null,null,null,null,null,null,null,null,0.5]
[120,"","","","","","","","","","","","","","","",null,"","","","","","",null,"","","","","",null,"","","",null,null,null,null,null,null,null,null,null,null,null,null,null,null,null,null,null,null,null,null,null,null,null,null,null,null,null,0.5]
[121,"","","","","","","","","","","","","","","",null,"","","","","","",null,"","","","","",null,"","","",null,null,null,null,null,null,null,null,null,null,null,null,null,null,null,null,null,null,null,null,null,null,null,null,null,null,null,0.5]
[122,"","","","","","","","","","","","","","","",null,"","","","","","",null,"","","","","",null,"","","",null,null,null,null,null,null,null,null,null,null,null,null,null,null,null,null,null,null,null,null,null,null,null,null,null,null,null,0.5]
[123,"","","","","","","","","","","","","","","",null,"","","","","","",null,"","","","","",null,"","","",null,null,null,null,null,null,null,null,null,null,null,null,null,null,null,null,null,null,null,null,null,null,null,null,null,null,null,0.5]
[124,"","","","","","","","","","","","","","","",null,"","","","","","",null,"","","","","",null,"","","",null,null,null,null,null,null,null,null,null,null,null,null,null,null,null,null,null,null,null,null,null,null,null,null,null,null,null,0.5]
[125,"","","","","","","","","","","","","","","",null,"","","","","","",null,"","","","","",null,"","","",null,null,null,null,null,null,null,null,null,null,null,null,null,null,null,null,null,null,null,null,null,null,null,null,null,null,null,0.5]
[126,"","","","","","","","","","","","","","","",null,"","","","","","",null,"","","","","",null,"","","",null,null,null,null,null,null,null,null,null,null,null,null,null,null,null,null,null,null,null,null,null,null,null,null,null,null,null,0.5]
[127,"","","","","","","","","","","","","","","",null,"","","","","","",null,"","","","","",null,"","","",null,null,null,null,null,null,null,null,null,null,null,null,null,null,null,null,null,null,null,null,null,null,null,null,null,null,null,0.5]
[128,"","","","","","","","","","","","","","","",null,"","","","","","",null,"","","","","",null,"","","",null,null,null,null,null,null,null,null,null,null,null,null,null,null,null,null,null,null,null,null,null,null,null,null,null,null,null,0.5]
[129,"","","","","","","","","","","","","","","",null,"","","","","","",null,"","","","","",null,"","","",null,null,null,null,null,null,null,null,null,null,null,null,null,null,null,null,null,null,null,null,null,null,null,null,null,null,null,0.5]
[130,"","","","","","","","","","","","","","","",null,"","","","","","",null,"","","","","",null,"","","",null,null,null,null,null,null,null,null,null,null,null,null,null,null,null,null,null,null,null,null,null,null,null,null,null,null,null,0.5]
[131,"","","","","","","","","","","","","","","",null,"","","","","","",null,"","","","","",null,"","","",null,null,null,null,null,null,null,null,null,null,null,null,null,null,null,null,null,null,null,null,null,null,null,null,null,null,null,0.5]
[132,"","","","","","","","","","","","","","","",null,"","","","","","",null,"","","","","",null,"","","",null,null,null,null,null,null,null,null,null,null,null,null,null,null,null,null,null,null,null,null,null,null,null,null,null,null,null,0.5]
[133,"","","","","","","","","","","","","","","",null,"","","","","","",null,"","","","","",null,"","","",null,null,null,null,null,null,null,null,null,null,null,null,null,null,null,null,null,null,null,null,null,null,null,null,null,null,null,0.5]
[134,"","","","","","","","","","","","","","","",null,"","","","","","",null,"","","","","",null,"","","",null,null,null,null,null,null,null,null,null,null,null,null,null,null,null,null,null,null,null,null,null,null,null,null,null,null,null,0.5]
[135,"","","","","","","","","","","","","","","",null,"","","","","","",null,"","","","","",null,"","","",null,null,null,null,null,null,null,null,null,null,null,null,null,null,null,null,null,null,null,null,null,null,null,null,null,null,null,0.5]
[136,"","","","","","","","","","","","","","","",null,"","","","","","",null,"","","","","",null,"","","",null,null,null,null,null,null,null,null,null,null,null,null,null,null,null,null,null,null,null,null,null,null,null,null,null,null,null,0.5]
[137,"","","","","","","","","","","","","","","",null,"","","","","","",null,"","","","","",null,"","","",null,null,null,null,null,null,null,null,null,null,null,null,null,null,null,null,null,null,null,null,null,null,null,null,null,null,null,0.5]
[138,"","","","","","","","","","","","","","","",null,"","","","","","",null,"","","","","",null,"","","",null,null,null,null,null,null,null,null,null,null,null,null,null,null,null,null,null,null,null,null,null,null,null,null,null,null,null,0.5]
[139,"","","","","","","","","","","","","","","",null,"","","","","","",null,"","","","","",null,"","","",null,null,null,null,null,null,null,null,null,null,null,null,null,null,null,null,null,null,null,null,null,null,null,null,null,null,null,0.5]
[140,"","","","","","","","","","","","","","","",null,"","","","","","",null,"","","","","",null,"","","",null,null,null,null,null,null,null,null,null,null,null,null,null,null,null,null,null,null,null,null,null,null,null,null,null,null,null,0.5]
[141,"","","","","","","","","","","","","","","",null,"","","","","","",null,"","","","","",null,"","","",null,null,null,null,null,null,null,null,null,null,null,null,null,null,null,null,null,null,null,null,null,null,null,null,null,null,null,0.5]
[142,"","","","","","","","","","","","","","","",null,"","","","","","",null,"","","","","",null,"","","",null,null,null,null,null,null,null,null,null,null,null,null,null,null,null,null,null,null,null,null,null,null,null,null,null,null,null,0.5]
[143,"","","","","","","","","","","","","","","",null,"","","","","","",null,"","","","","",null,"","","",null,null,null,null,null,null,null,null,null,null,null,null,null,null,null,null,null,null,null,null,null,null,null,null,null,null,null,0.5]
[144,"","","","","","","","","","","","","","","",null,"","","","","","",null,"","","","","",null,"","","",null,null,null,null,null,null,null,null,null,null,null,null,null,null,null,null,null,null,null,null,null,null,null,null,null,null,null,0.5]
[145,"","","","","","","","","","","","","","","",null,"","","","","","",null,"","","","","",null,"","","",null,null,null,null,null,null,null,null,null,null,null,null,null,null,null,null,null,null,null,null,null,null,null,null,null,null,null,0.5]
[146,"","","","","","","","","","","","","","","",null,"","","","","","",null,"","","","","",null,"","","",null,null,null,null,null,null,null,null,null,null,null,null,null,null,null,null,null,null,null,null,null,null,null,null,null,null,null,0.5]
[147,"","","","","","","","","","","","","","","",null,"","","","","","",null,"","","","","",null,"","","",null,null,null,null,null,null,null,null,null,null,null,null,null,null,null,null,null,null,null,null,null,null,null,null,null,null,null,0.5]
[148,"","","","","","","","","","","","","","","",null,"","","","","","",null,"","","","","",null,"","","",null,null,null,null,null,null,null,null,null,null,null,null,null,null,null,null,null,null,null,null,null,null,null,null,null,null,null,0.5]
[149,"","","","","","","","","","","","","","","",null,"","","","","","",null,"","","","","",null,"","","",null,null,null,null,null,null,null,null,null,null,null,null,null,null,null,null,null,null,null,null,null,null,null,null,null,null,null,0.5]
[150,"","","","","","","","","","","","","","","",null,"","","","","","",null,"","","","","",null,"","","",null,null,null,null,null,null,null,null,null,null,null,null,null,null,null,null,null,null,null,null,null,null,null,null,null,null,null,0.5]
[151,"","","","","","","","","","","","","","","",null,"","","","","","",null,"","","","","",null,"","","",null,null,null,null,null,null,null,null,null,null,null,null,null,null,null,null,null,null,null,null,null,null,null,null,null,null,null,0.5]
[152,"","","","","","","","","","","","","","","",null,"","","","","","",null,"","","","","",null,"","","",null,null,null,null,null,null,null,null,null,null,null,null,null,null,null,null,null,null,null,null,null,null,null,null,null,null,null,0.5]
[153,"","","","","","","","","","","","","","","",null,"","","","","","",null,"","","","","",null,"","","",null,null,null,null,null,null,null,null,null,null,null,null,null,null,null,null,null,null,null,null,null,null,null,null,null,null,null,0.5]
[154,"","","","","","","","","","","","","","","",null,"","","","","","",null,"","","","","",null,"","","",null,null,null,null,null,null,null,null,null,null,null,null,null,null,null,null,null,null,null,null,null,null,null,null,null,null,null,0.5]
[155,"","","","","","","","","","","","","","","",null,"","","","","","",null,"","","","","",null,"","","",null,null,null,null,null,null,null,null,null,null,null,null,null,null,null,null,null,null,null,null,null,null,null,null,null,null,null,0.5]
[156,"","","","","","","","","","","","","","","",null,"","","","","","",null,"","","","","",null,"","","",null,null,null,null,null,null,null,null,null,null,null,null,null,null,null,null,null,null,null,null,null,null,null,null,null,null,null,0.5]
[157,"","","","","","","","","","","","","","","",null,"","","","","","",null,"","","","","",null,"","","",null,null,null,null,null,null,null,null,null,null,null,null,null,null,null,null,null,null,null,null,null,null,null,null,null,null,null,0.5]
[158,"","","","","","","","","","","","","","","",null,"","","","","","",null,"","","","","",null,"","","",null,null,null,null,null,null,null,null,null,null,null,null,null,null,null,null,null,null,null,null,null,null,null,null,null,null,null,0.5]
[159,"","","","","","","","","","","","","","","",null,"","","","","","",null,"","","","","",null,"","","",null,null,null,null,null,null,null,null,null,null,null,null,null,null,null,null,null,null,null,null,null,null,null,null,null,null,null,0.5]
[160,"","","","","","","","","","","","","","","",null,"","","","","","",null,"","","","","",null,"","","",null,null,null,null,null,null,null,null,null,null,null,null,null,null,null,null,null,null,null,null,null,null,null,null,null,null,null,0.5]
[161,"","","","","","","","","","","","","","","",null,"","","","","","",null,"","","","","",null,"","","",null,null,null,null,null,null,null,null,null,null,null,null,null,null,null,null,null,null,null,null,null,null,null,null,null,null,null,0.5]
[162,"","","","","","","","","","","","","","","",null,"","","","","","",null,"","","","","",null,"","","",null,null,null,null,null,null,null,null,null,null,null,null,null,null,null,null,null,null,null,null,null,null,null,null,null,null,null,0.5]
[163,"","","","","","","","","","","","","","","",null,"","","","","","",null,"","","","","",null,"","","",null,null,null,null,null,null,null,null,null,null,null,null,null,null,null,null,null,null,null,null,null,null,null,null,null,null,null,0.5]
[164,"","","","","","","","","","","","","","","",null,"","","","","","",null,"","","","","",null,"","","",null,null,null,null,null,null,null,null,null,null,null,null,null,null,null,null,null,null,null,null,null,null,null,null,null,null,null,0.5]
[165,"","","","","","","","","","","","","","","",null,"","","","","","",null,"","","","","",null,"","","",null,null,null,null,null,null,null,null,null,null,null,null,null,null,null,null,null,null,null,null,null,null,null,null,null,null,null,0.5]
[166,"","","","","","","","","","","","","","","",null,"","","","","","",null,"","","","","",null,"","","",null,null,null,null,null,null,null,null,null,null,null,null,null,null,null,null,null,null,null,null,null,null,null,null,null,null,null,0.5]
[167,"","","","","","","","","","","","","","","",null,"","","","","","",null,"","","","","",null,"","","",null,null,null,null,null,null,null,null,null,null,null,null,null,null,null,null,null,null,null,null,null,null,null,null,null,null,null,0.5]
[168,"","","","","","","","","","","","","","","",null,"","","","","","",null,"","","","","",null,"","","",null,null,null,null,null,null,null,null,null,null,null,null,null,null,null,null,null,null,null,null,null,null,null,null,null,null,null,0.5]
[169,"","","","","","","","","","","","","","","",null,"","","","","","",null,"","","","","",null,"","","",null,null,null,null,null,null,null,null,null,null,null,null,null,null,null,null,null,null,null,null,null,null,null,null,null,null,null,0.5]
[170,"","","","","","","","","","","","","","","",null,"","","","","","",null,"","","","","",null,"","","",null,null,null,null,null,null,null,null,null,null,null,null,null,null,null,null,null,null,null,null,null,null,null,null,null,null,null,0.5]
[171,"","","","","","","","","","","","","","","",null,"","","","","","",null,"","","","","",null,"","","",null,null,null,null,null,null,null,null,null,null,null,null,null,null,null,null,null,null,null,null,null,null,null,null,null,null,null,0.5]
[172,"","","","","","","","","","","","","","","",null,"","","","","","",null,"","","","","",null,"","","",null,null,null,null,null,null,null,null,null,null,null,null,null,null,null,null,null,null,null,null,null,null,null,null,null,null,null,0.5]
[173,"","","","","","","","","","","","","","","",null,"","","","","","",null,"","","","","",null,"","","",null,null,null,null,null,null,null,null,null,null,null,null,null,null,null,null,null,null,null,null,null,null,null,null,null,null,null,0.5]
[174,"","","","","","","","","","","","","","","",null,"","","","","","",null,"","","","","",null,"","","",null,null,null,null,null,null,null,null,null,null,null,null,null,null,null,null,null,null,null,null,null,null,null,null,null,null,null,0.5]
[175,"","","","","","","","","","","","","","","",null,"","","","","","",null,"","","","","",null,"","","",null,null,null,null,null,null,null,null,null,null,null,null,null,null,null,null,null,null,null,null,null,null,null,null,null,null,null,0.5]
[176,"","","","","","","","","","","","","","","",null,"","","","","","",null,"","","","","",null,"","","",null,null,null,null,null,null,null,null,null,null,null,null,null,null,null,null,null,null,null,null,null,null,null,null,null,null,null,0.5]
[177,"","","","","","","","","","","","","","","",null,"","","","","","",null,"","","","","",null,"","","",null,null,null,null,null,null,null,null,null,null,null,null,null,null,null,null,null,null,null,null,null,null,null,null,null,null,null,0.5]
[178,"","","","","","","","","","","","","","","",null,"","","","","","",null,"","","","","",null,"","","",null,null,null,null,null,null,null,null,null,null,null,null,null,null,null,null,null,null,null,null,null,null,null,null,null,null,null,0.5]
[179,"","","","","","","","","","","","","","","",null,"","","","","","",null,"","","","","",null,"","","",null,null,null,null,null,null,null,null,null,null,null,null,null,null,null,null,null,null,null,null,null,null,null,null,null,null,null,0.5]
[180,"","","","","","","","","","","","","","","",null,"","","","","","",null,"","","","","",null,"","","",null,null,null,null,null,null,null,null,null,null,null,null,null,null,null,null,null,null,null,null,null,null,null,null,null,null,null,0.5]
[181,"","","","","","","","","","","","","","","",null,"","","","","","",null,"","","","","",null,"","","",null,null,null,null,null,null,null,null,null,null,null,null,null,null,null,null,null,null,null,null,null,null,null,null,null,null,null,0.5]
[182,"","","","","","","","","","","","","","","",null,"","","","","","",null,"","","","","",null,"","","",null,null,null,null,null,null,null,null,null,null,null,null,null,null,null,null,null,null,null,null,null,null,null,null,null,null,null,0.5]
[183,"","","","","","","","","","","","","","","",null,"","","","","","",null,"","","","","",null,"","","",null,null,null,null,null,null,null,null,null,null,null,null,null,null,null,null,null,null,null,null,null,null,null,null,null,null,null,0.5]
[184,"","","","","","","","","","","","","","","",null,"","","","","","",null,"","","","","",null,"","","",null,null,null,null,null,null,null,null,null,null,null,null,null,null,null,null,null,null,null,null,null,null,null,null,null,null,null,0.5]
[185,"","","","","","","","","","","","","","","",null,"","","","","","",null,"","","","","",null,"","","",null,null,null,null,null,null,null,null,null,null,null,null,null,null,null,null,null,null,null,null,null,null,null,null,null,null,null,0.5]
[186,"","","","","","","","","","","","","","","",null,"","","","","","",null,"","","","","",null,"","","",null,null,null,null,null,null,null,null,null,null,null,null,null,null,null,null,null,null,null,null,null,null,null,null,null,null,null,0.5]
[187,"","","","","","","","","","","","","","","",null,"","","","","","",null,"","","","","",null,"","","",null,null,null,null,null,null,null,null,null,null,null,null,null,null,null,null,null,null,null,null,null,null,null,null,null,null,null,0.5]
[188,"","","","","","","","","","","","","","","",null,"","","","","","",null,"","","","","",null,"","","",null,null,null,null,null,null,null,null,null,null,null,null,null,null,null,null,null,null,null,null,null,null,null,null,null,null,null,0.5]
[189,"","","","","","","","","","","","","","","",null,"","","","","","",null,"","","","","",null,"","","",null,null,null,null,null,null,null,null,null,null,null,null,null,null,null,null,null,null,null,null,null,null,null,null,null,null,null,0.5]
[190,"","","","","","","","","","","","","","","",null,"","","","","","",null,"","","","","",null,"","","",null,null,null,null,null,null,null,null,null,null,null,null,null,null,null,null,null,null,null,null,null,null,null,null,null,null,null,0.5]
[191,"","","","","","","","","","","","","","","",null,"","","","","","",null,"","","","","",null,"","","",null,null,null,null,null,null,null,null,null,null,null,null,null,null,null,null,null,null,null,null,null,null,null,null,null,null,null,0.5]
[192,"","","","","","","","","","","","","","","",null,"","","","","","",null,"","","","","",null,"","","",null,null,null,null,null,null,null,null,null,null,null,null,null,null,null,null,null,null,null,null,null,null,null,null,null,null,null,0.5]
[193,"","","","","","","","","","","","","","","",null,"","","","","","",null,"","","","","",null,"","","",null,null,null,null,null,null,null,null,null,null,null,null,null,null,null,null,null,null,null,null,null,null,null,null,null,null,null,0.5]
[194,"","","","","","","","","","","","","","","",null,"","","","","","",null,"","","","","",null,"","","",null,null,null,null,null,null,null,null,null,null,null,null,null,null,null,null,null,null,null,null,null,null,null,null,null,null,null,0.5]
[195,"","","","","","","","","","","","","","","",null,"","","","","","",null,"","","","","",null,"","","",null,null,null,null,null,null,null,null,null,null,null,null,null,null,null,null,null,null,null,null,null,null,null,null,null,null,null,0.5]
[196,"","","","","","","","","","","","","","","",null,"","","","","","",null,"","","","","",null,"","","",null,null,null,null,null,null,null,null,null,null,null,null,null,null,null,null,null,null,null,null,null,null,null,null,null,null,null,0.5]
[197,"","","","","","","","","","","","","","","",null,"","","","","","",null,"","","","","",null,"","","",null,null,null,null,null,null,null,null,null,null,null,null,null,null,null,null,null,null,null,null,null,null,null,null,null,null,null,0.5]
[198,"","","","","","","","","","","","","","","",null,"","","","","","",null,"","","","","",null,"","","",null,null,null,null,null,null,null,null,null,null,null,null,null,null,null,null,null,null,null,null,null,null,null,null,null,null,null,0.5]
[199,"","","","","","","","","","","","","","","",null,"","","","","","",null,"","","","","",null,"","","",null,null,null,null,null,null,null,null,null,null,null,null,null,null,null,null,null,null,null,null,null,null,null,null,null,null,null,0.5]
[200,"","","","","","","","","","","","","","","",null,"","","","","","",null,"","","","","",null,"","","",null,null,null,null,null,null,null,null,null,null,null,null,null,null,null,null,null,null,null,null,null,null,null,null,null,null,null,0.5]
[201,"","","","","","","","","","","","","","","",null,"","","","","","",null,"","","","","",null,"","","",null,null,null,null,null,null,null,null,null,null,null,null,null,null,null,null,null,null,null,null,null,null,null,null,null,null,null,0.5]
["REPARACIÓN","","","","","","","","","","","","","","","",null,"","","","","","",null,"","","","","",null,"","","",null,null,null,null,null,null,null,null,null,null,null,null,null,null,null,null,null,null,null,null,null,null,null,null,null,null,null,0.5]

{"sheet":"C2 A C","index":6,"n_rows":210,"n_cols":61,"rows_kept":210,"cut":false,"hidden":false,"merged":[[3,37,3,38],[0,0,0,8],[1,0,1,8],[2,0,2,8],[3,31,3,35],[1,11,1,12],[3,10,3,15],[3,17,3,22],[2,10,2,11],[3,24,3,29]]}
["COPA CENTRO AGRICOLA",null,null,null,null,null,null,null,null,null,null,null,null,null,20,"Km",null,null,null,null,null,20,"Km",null,null,null,null,"DISTANCIA",20,"Km",null,null,null,"DISTANCIA",20,"Km",null,80,"Km"]
["I CHONE 11/02/2017, HCDA. SAN BERNARDO",null,null,null,null,null,null,null,null,null,"FECHA:","2017-02-13T16:07:18.280",null,null,"T. MÁXIMO","1:40:00",null,null,null,null,"T. MÁXIMO","1:40:00",null,null,null,null,null,"T. MÁXIMO","1:40:00",null,null,null,null,"T. MÁXIMO","1:40:00",null,null,"6:40:00","T. MÁXIMO "]
["CHASQUI 2 ABIERTA NOVICIOS",null,null,null,null,null,null,null,null,null,"TIEMPO DE DESCANSO:",null,6.25E-2,null,"T. MÍNIMO","1:15:00",null,null,null,null,"T. MÍNIMO","1:15:00",null,null,null,null,null,"T. MÍNIMO","1:15:00",null,null,null,null,"T. MÍNIMO","1:15:00",null,null,"5:00:00","T. MÍNIMO "]
[null,null,null,null,null,null,null,null,null,null,"PRIMERA ETAPA",null,null,null,null,null,null,"SEGUNDA ETAPA",null,null,null,null,null,null,"TERCERA ETAPA",null,null,null,null,null,null,"CUARTA ETAPA",null,null,null,null,null,"TOTAL"]
["POSICION","CODIGO","NOMBRE DEL JINETE","CODIGO","NOMBRE DEL CABALLO","HORA DE SALIDA ","HORA FINAL","TIEMPO DE COMPETENCIA","TIEMPO MEDIO DE RECUPERACIÓN","PUNTAJE","HORA DE LLEGADA","HORA DE CHEQUEO","TIEMPO DE RECUPERACIÓN","TIEMPO DE LA ETAPA","VELOCI     DAD","HORA DE SALIDA",null,"HORA DE LLEGADA","HORA DE CHEQUEO","TIEMPO DE RECUPERACIÓN","TIEMPO DE LA ETAPA","VELOCI     DAD","HORA DE SALIDA",null,"HORA DE LLEGADA","HORA DE CHEQUEO","TIEMPO DE RECUPERACIÓN","TIEMPO DE LA ETAPA","VELOCI     DAD","HORA DE SALIDA",null,"HORA DE LLEGADA","HORA DE CHEQUEO","TIEMPO DE RECUPERACIÓN","TIEMPO DE LA ETAPA","VELOCI     DAD",null,"TIEMPO EN CARRERA","VELOCIDAD DE CARRERA"]
[null,null,null,null,null,null,null,null,null,160]
[null,"A081","KOPPEL OSWALDO","C511","SHAKKIRA VO","08:30:00","",23,"DESCALIFICADO","","","","","","","",null,"","","","","","",null,"","","","","","",null,"","","","","",null,"","",null,null,null,null,null,null,null,null,null,null,null,null,null,null,null,null,null,null,null,null,null,1]
[null,"A178","ANDRADE JUAN CARLOS","C240","KALIFA","08:30:00","",23,"EXCESO ","","09:47:33","09:54:25","00:06:52","01:24:25",15.473887814313352,"10:24:25",null,"11:39:00","11:46:11","","","","",null,"","","","","","",null,"","","","","",null,"","",null,null,null,null,null,null,null,null,null,null,null,null,null,null,null,null,null,null,null,null,null,0.95]
[null,"","","","","","","","","","","","","","","",null,"","","","","","",null,"","","","","","",null,"","","","","",null,"","",null,null,null,null,null,null,null,null,null,null,null,null,null,null,null,null,null,null,null,null,null,0.9]
[null,"","","","","","","","","","","","","","","",null,"","","","","","",null,"","","","","","",null,"","","","","",null,"","",null,null,null,null,null,null,null,null,null,null,null,null,null,null,null,null,null,null,null,null,null,0.85]
[null,"","","","","","","","","","","","","","","",null,"","","","","","",null,"","","","","","",null,"","","","","",null,"","",null,null,null,null,null,null,null,null,null,null,null,null,null,null,null,null,null,null,null,null,null,0.8]
[null,"","","","","","","","","","","","","","","",null,"","","","","","",null,"","","","","","",null,"","","","","",null,"","",null,null,null,null,null,null,null,null,null,null,null,null,null,null,null,null,null,null,null,null,null,0.75]
[null,"","","","","","","","","","","","","","","",null,"","","","","","",null,"","","","","","",null,"","","","","",null,"","",null,null,null,null,null,null,null,null,null,null,null,null,null,null,null,null,null,null,null,null,null,0.7]
[null,"","","","","","","","","","","","","","","",null,"","","","","","",null,"","","","","","",null,"","","","","",null,"","",null,null,null,null,null,null,null,null,null,null,null,null,null,null,null,null,null,null,null,null,null,0.65]
[null,"","","","","","","","","","","","","","","",null,"","","","","","",null,"","","","","","",null,"","","","","",null,"","",null,null,null,null,null,null,null,null,null,null,null,null,null,null,null,null,null,null,null,null,null,0.6]
[null,"","","","","","","","","","","","","","","",null,"","","","","","",null,"","","","","","",null,"","","","","",null,"","",null,null,null,null,null,null,null,null,null,null,null,null,null,null,null,null,null,null,null,null,null,0.55000000000000004]
[null,"","","","","","","","","","","","","","","",null,"","","","","","",null,"","","","","","",null,"","","","","",null,"","",null,null,null,null,null,null,null,null,null,null,null,null,null,null,null,null,null,null,null,null,null,0.5]
[null,"","","","","","","","","","","","","","","",null,"","","","","","",null,"","","","","","",null,"","","","","",null,"","",null,null,null,null,null,null,null,null,null,null,null,null,null,null,null,null,null,null,null,null,null,0.5]
[null,"","","","","","","","","","","","","","","",null,"","","","","","",null,"","","","","","",null,"","","","","",null,"","",null,null,null,null,null,null,null,null,null,null,null,null,null,null,null,null,null,null,null,null,null,0.5]
[null,"","","","","","","","","","","","","","","",null,"","","","","","",null,"","","","","","",null,"","","","","",null,"","",null,null,null,null,null,null,null,null,null,null,null,null,null,null,null,null,null,null,null,null,null,0.5]
[null,"","","","","","","","","","","","","","","",null,"","","","","","",null,"","","","","","",null,"","","","","",null,"","",null,null,null,null,null,null,null,null,null,null,null,null,null,null,null,null,null,null,null,null,null,0.5]
[null,"","","","","","","","","","","","","","","",null,"","","","","","",null,"","","","","","",null,"","","","","",null,"","",null,null,null,null,null,null,null,null,null,null,null,null,null,null,null,null,null,null,null,null,null,0.5]
[null,"","","","","","","","","","","","","","","",null,"","","","","","",null,"","","","","","",null,"","","","","",null,"","",null,null,null,null,null,null,null,null,null,null,null,null,null,null,null,null,null,null,null,null,null,0.5]
[null,"","","","","","","","","","","","","","","",null,"","","","","","",null,"","","","","","",null,"","","","","",null,"","",null,null,null,null,null,null,null,null,null,null,null,null,null,null,null,null,null,null,null,null,null,0.5]
[null,"","","","","","","","","","","","","","","",null,"","","","","","",null,"","","","","","",null,"","","","","",null,"","",null,null,null,null,null,null,null,null,null,null,null,null,null,null,null,null,null,null,null,null,null,0.5]
[null,"","","","","","","","","","","","","","","",null,"","","","","","",null,"","","","","","",null,"","","","","",null,"","",null,null,null,null,null,null,null,null,null,null,null,null,null,null,null,null,null,null,null,null,null,0.5]
[null,"","","","","","","","","","","","","","","",null,"","","","","","",null,"","","","","","",null,"","","","","",null,"","",null,null,null,null,null,null,null,null,null,null,null,null,null,null,null,null,null,null,null,null,null,0.5]
[null,"","","","","","","","","","","","","","","",null,"","","","","","",null,"","","","","","",null,"","","","","",null,"","",null,null,null,null,null,null,null,null,null,null,null,null,null,null,null,null,null,null,null,null,null,0.5]
[null,"","","","","","","","","","","","","","","",null,"","","","","","",null,"","","","","","",null,"","","","","",null,"","",null,null,null,null,null,null,null,null,null,null,null,null,null,null,null,null,null,null,null,null,null,0.5]
[null,"","","","","","","","","","","","","","","",null,"","","","","","",null,"","","","","","",null,"","","","","",null,"","",null,null,null,null,null,null,null,null,null,null,null,null,null,null,null,null,null,null,null,null,null,0.5]
[null,"","","","","","","","","","","","","","","",null,"","","","","","",null,"","","","","","",null,"","","","","",null,"","",null,null,null,null,null,null,null,null,null,null,null,null,null,null,null,null,null,null,null,null,null,0.5]
[null,"","","","","","","","","","","","","","","",null,"","","","","","",null,"","","","","","",null,"","","","","",null,"","",null,null,null,null,null,null,null,null,null,null,null,null,null,null,null,null,null,null,null,null,null,0.5]
[null,"","","","","","","","","","","","","","","",null,"","","","","","",null,"","","","","","",null,"","","","","",null,"","",null,null,null,null,null,null,null,null,null,null,null,null,null,null,null,null,null,null,null,null,null,0.5]
[null,"","","","","","","","","","","","","","","",null,"","","","","","",null,"","","","","","",null,"","","","","",null,"","",null,null,null,null,null,null,null,null,null,null,null,null,null,null,null,null,null,null,null,null,null,0.5]
[null,"","","","","","","","","","","","","","","",null,"","","","","","",null,"","","","","","",null,"","","","","",null,"","",null,null,null,null,null,null,null,null,null,null,null,null,null,null,null,null,null,null,null,null,null,0.5]
[null,"","","","","","","","","","","","","","","",null,"","","","","","",null,"","","","","","",null,"","","","","",null,"","",null,null,null,null,null,null,null,null,null,null,null,null,null,null,null,null,null,null,null,null,null,0.5]
[null,"","","","","","","","","","","","","","","",null,"","","","","","",null,"","","","","","",null,"","","","","",null,"","",null,null,null,null,null,null,null,null,null,null,null,null,null,null,null,null,null,null,null,null,null,0.5]
[null,"","","","","","","","","","","","","","","",null,"","","","","","",null,"","","","","","",null,"","","","","",null,"","",null,null,null,null,null,null,null,null,null,null,null,null,null,null,null,null,null,null,null,null,null,0.5]
[null,"","","","","","","","","","","","","","","",null,"","","","","","",null,"","","","","","",null,"","","","","",null,"","",null,null,null,null,null,null,null,null,null,null,null,null,null,null,null,null,null,null,null,null,null,0.5]
[null,"","","","","","","","","","","","","","","",null,"","","","","","",null,"","","","","","",null,"","","","","",null,"","",null,null,null,null,null,null,null,null,null,null,null,null,null,null,null,null,null,null,null,null,null,0.5]
[null,"","","","","","","","","","","","","","","",null,"","","","","","",null,"","","","","","",null,"","","","","",null,"","",null,null,null,null,null,null,null,null,null,null,null,null,null,null,null,null,null,null,null,null,null,0.5]
[null,"","","","","","","","","","","","","","","",null,"","","","","","",null,"","","","","","",null,"","","","","",null,"","",null,null,null,null,null,null,null,null,null,null,null,null,null,null,null,null,null,null,null,null,null,0.5]
[null,"","","","","","","","","","","","","","","",null,"","","","","","",null,"","","","","","",null,"","","","","",null,"","",null,null,null,null,null,null,null,null,null,null,null,null,null,null,null,null,null,null,null,null,null,0.5]
[null,"","","","","","","","","","","","","","","",null,"","","","","","",null,"","","","","","",null,"","","","","",null,"","",null,null,null,null,null,null,null,null,null,null,null,null,null,null,null,null,null,null,null,null,null,0.5]
[null,"","","","","","","","","","","","","","","",null,"","","","","","",null,"","","","","","",null,"","","","","",null,"","",null,null,null,null,null,null,null,null,null,null,null,null,null,null,null,null,null,null,null,null,null,0.5]
[null,"","","","","","","","","","","","","","","",null,"","","","","","",null,"","","","","","",null,"","","","","",null,"","",null,null,null,null,null,null,null,null,null,null,null,null,null,null,null,null,null,null,null,null,null,0.5]
[null,"","","","","","","","","","","","","","","",null,"","","","","","",null,"","","","","","",null,"","","","","",null,"","",null,null,null,null,null,null,null,null,null,null,null,null,null,null,null,null,null,null,null,null,null,0.5]
[null,"","","","","","","","","","","","","","","",null,"","","","","","",null,"","","","","","",null,"","","","","",null,"","",null,null,null,null,null,null,null,null,null,null,null,null,null,null,null,null,null,null,null,null,null,0.5]
[null,"","","","","","","","","","","","","","","",null,"","","","","","",null,"","","","","","",null,"","","","","",null,"","",null,null,null,null,null,null,null,null,null,null,null,null,null,null,null,null,null,null,null,null,null,0.5]
[null,"","","","","","","","","","","","","","","",null,"","","","","","",null,"","","","","","",null,"","","","","",null,"","",null,null,null,null,null,null,null,null,null,null,null,null,null,null,null,null,null,null,null,null,null,0.5]
[null,"","","","","","","","","","","","","","","",null,"","","","","","",null,"","","","","","",null,"","","","","",null,"","",null,null,null,null,null,null,null,null,null,null,null,null,null,null,null,null,null,null,null,null,null,0.5]
[null,"","","","","","","","","","","","","","","",null,"","","","","","",null,"","","","","","",null,"","","","","",null,"","",null,null,null,null,null,null,null,null,null,null,null,null,null,null,null,null,null,null,null,null,null,0.5]
[null,"","","","","","","","","","","","","","","",null,"","","","","","",null,"","","","","","",null,"","","","","",null,"","",null,null,null,null,null,null,null,null,null,null,null,null,null,null,null,null,null,null,null,null,null,0.5]
[null,"","","","","","","","","","","","","","","",null,"","","","","","",null,"","","","","","",null,"","","","","",null,"","",null,null,null,null,null,null,null,null,null,null,null,null,null,null,null,null,null,null,null,null,null,0.5]
[null,"","","","","","","","","","","","","","","",null,"","","","","","",null,"","","","","","",null,"","","","","",null,"","",null,null,null,null,null,null,null,null,null,null,null,null,null,null,null,null,null,null,null,null,null,0.5]
[null,"","","","","","","","","","","","","","","",null,"","","","","","",null,"","","","","","",null,"","","","","",null,"","",null,null,null,null,null,null,null,null,null,null,null,null,null,null,null,null,null,null,null,null,null,0.5]
[null,"","","","","","","","","","","","","","","",null,"","","","","","",null,"","","","","","",null,"","","","","",null,"","",null,null,null,null,null,null,null,null,null,null,null,null,null,null,null,null,null,null,null,null,null,0.5]
[null,"","","","","","","","","","","","","","","",null,"","","","","","",null,"","","","","","",null,"","","","","",null,"","",null,null,null,null,null,null,null,null,null,null,null,null,null,null,null,null,null,null,null,null,null,0.5]
[null,"","","","","","","","","","","","","","","",null,"","","","","","",null,"","","","","","",null,"","","","","",null,"","",null,null,null,null,null,null,null,null,null,null,null,null,null,null,null,null,null,null,null,null,null,0.5]
[null,"","","","","","","","","","","","","","","",null,"","","","","","",null,"","","","","","",null,"","","","","",null,"","",null,null,null,null,null,null,null,null,null,null,null,null,null,null,null,null,null,null,null,null,null,0.5]
[null,"","","","","","","","","","","","","","","",null,"","","","","","",null,"","","","","","",null,"","","","","",null,"","",null,null,null,null,null,null,null,null,null,null,null,null,null,null,null,null,null,null,null,null,null,0.5]
[null,"","","","","","","","","","","","","","","",null,"","","","","","",null,"","","","","","",null,"","","","","",null,"","",null,null,null,null,null,null,null,null,null,null,null,null,null,null,null,null,null,null,null,null,null,0.5]
[null,"","","","","","","","","","","","","","","",null,"","","","","","",null,"","","","","","",null,"","","","","",null,"","",null,null,null,null,null,null,null,null,null,null,null,null,null,null,null,null,null,null,null,null,null,0.5]
[null,"","","","","","","","","","","","","","","",null,"","","","","","",null,"","","","","","",null,"","","","","",null,"","",null,null,null,null,null,null,null,null,null,null,null,null,null,null,null,null,null,null,null,null,null,0.5]
[null,"","","","","","","","","","","","","","","",null,"","","","","","",null,"","","","","","",null,"","","","","",null,"","",null,null,null,null,null,null,null,null,null,null,null,null,null,null,null,null,null,null,null,null,null,0.5]
[null,"","","","","","","","","","","","","","","",null,"","","","","","",null,"","","","","","",null,"","","","","",null,"","",null,null,null,null,null,null,null,null,null,null,null,null,null,null,null,null,null,null,null,null,null,0.5]
[null,"","","","","","","","","","","","","","","",null,"","","","","","",null,"","","","","","",null,"","","","","",null,"","",null,null,null,null,null,null,null,null,null,null,null,null,null,null,null,null,null,null,null,null,null,0.5]
[null,"","","","","","","","","","","","","","","",null,"","","","","","",null,"","","","","","",null,"","","","","",null,"","",null,null,null,null,null,null,null,null,null,null,null,null,null,null,null,null,null,null,null,null,null,0.5]
[null,"","","","","","","","","","","","","","","",null,"","","","","","",null,"","","","","","",null,"","","","","",null,"","",null,null,null,null,null,null,null,null,null,null,null,null,null,null,null,null,null,null,null,null,null,0.5]
[null,"","","","","","","","","","","","","","","",null,"","","","","","",null,"","","","","","",null,"","","","","",null,"","",null,null,null,null,null,null,null,null,null,null,null,null,null,null,null,null,null,null,null,null,null,0.5]
[null,"","","","","","","","","","","","","","","",null,"","","","","","",null,"","","","","","",null,"","","","","",null,"","",null,null,null,null,null,null,null,null,null,null,null,null,null,null,null,null,null,null,null,null,null,0.5]
[null,"","","","","","","","","","","","","","","",null,"","","","","","",null,"","","","","","",null,"","","","","",null,"","",null,null,null,null,null,null,null,null,null,null,null,null,null,null,null,null,null,null,null,null,null,0.5]
[null,"","","","","","","","","","","","","","","",null,"","","","","","",null,"","","","","","",null,"","","","","",null,"","",null,null,null,null,null,null,null,null,null,null,null,null,null,null,null,null,null,null,null,null,null,0.5]
[null,"","","","","","","","","","","","","","","",null,"","","","","","",null,"","","","","","",null,"","","","","",null,"","",null,null,null,null,null,null,null,null,null,null,null,null,null,null,null,null,null,null,null,null,null,0.5]
[null,"","","","","","","","","","","","","","","",null,"","","","","","",null,"","","","","","",null,"","","","","",null,"","",null,null,null,null,null,null,null,null,null,null,null,null,null,null,null,null,null,null,null,null,null,0.5]
[null,"","","","","","","","","","","","","","","",null,"","","","","","",null,"","","","","","",null,"","","","","",null,"","",null,null,null,null,null,null,null,null,null,null,null,null,null,null,null,null,null,null,null,null,null,0.5]
[null,"","","","","","","","","","","","","","","",null,"","","","","","",null,"","","","","","",null,"","","","","",null,"","",null,null,null,null,null,null,null,null,null,null,null,null,null,null,null,null,null,null,null,null,null,0.5]
[null,"","","","","","","","","","","","","","","",null,"","","","","","",null,"","","","","","",null,"","","","","",null,"","",null,null,null,null,null,null,null,null,null,null,null,null,null,null,null,null,null,null,null,null,null,0.5]
[null,"","","","","","","","","","","","","","","",null,"","","","","","",null,"","","","","","",null,"","","","","",null,"","",null,null,null,null,null,null,null,null,null,null,null,null,null,null,null,null,null,null,null,null,null,0.5]
[null,"","","","","","","","","","","","","","","",null,"","","","","","",null,"","","","","","",null,"","","","","",null,"","",null,null,null,null,null,null,null,null,null,null,null,null,null,null,null,null,null,null,null,null,null,0.5]
[null,"","","","","","","","","","","","","","","",null,"","","","","","",null,"","","","","","",null,"","","","","",null,"","",null,null,null,null,null,null,null,null,null,null,null,null,null,null,null,null,null,null,null,null,null,0.5]
[null,"","","","","","","","","","","","","","","",null,"","","","","","",null,"","","","","","",null,"","","","","",null,"","",null,null,null,null,null,null,null,null,null,null,null,null,null,null,null,null,null,null,null,null,null,0.5]
[null,"","","","","","","","","","","","","","","",null,"","","","","","",null,"","","","","","",null,"","","","","",null,"","",null,null,null,null,null,null,null,null,null,null,null,null,null,null,null,null,null,null,null,null,null,0.5]
[null,"","","","","","","","","","","","","","","",null,"","","","","","",null,"","","","","","",null,"","","","","",null,"","",null,null,null,null,null,null,null,null,null,null,null,null,null,null,null,null,null,null,null,null,null,0.5]
[null,"","","","","","","","","","","","","","","",null,"","","","","","",null,"","","","","","",null,"","","","","",null,"","",null,null,null,null,null,null,null,null,null,null,null,null,null,null,null,null,null,null,null,null,null,0.5]
[null,"","","","","","","","","","","","","","","",null,"","","","","","",null,"","","","","","",null,"","","","","",null,"","",null,null,null,null,null,null,null,null,null,null,null,null,null,null,null,null,null,null,null,null,null,0.5]
[null,"","","","","","","","","","","","","","","",null,"","","","","","",null,"","","","","","",null,"","","","","",null,"","",null,null,null,null,null,null,null,null,null,null,null,null,null,null,null,null,null,null,null,null,null,0.5]
[null,"","","","","","","","","","","","","","","",null,"","","","","","",null,"","","","","","",null,"","","","","",null,"","",null,null,null,null,null,null,null,null,null,null,null,null,null,null,null,null,null,null,null,null,null,0.5]
[null,"","","","","","","","","","","","","","","",null,"","","","","","",null,"","","","","","",null,"","","","","",null,"","",null,null,null,null,null,null,null,null,null,null,null,null,null,null,null,null,null,null,null,null,null,0.5]
[null,"","","","","","","","","","","","","","","",null,"","","","","","",null,"","","","","","",null,"","","","","",null,"","",null,null,null,null,null,null,null,null,null,null,null,null,null,null,null,null,null,null,null,null,null,0.5]
[null,"","","","","","","","","","","","","","","",null,"","","","","","",null,"","","","","","",null,"","","","","",null,"","",null,null,null,null,null,null,null,null,null,null,null,null,null,null,null,null,null,null,null,null,null,0.5]
[null,"","","","","","","","","","","","","","","",null,"","","","","","",null,"","","","","","",null,"","","","","",null,"","",null,null,null,null,null,null,null,null,null,null,null,null,null,null,null,null,null,null,null,null,null,0.5]
[null,"","","","","","","","","","","","","","","",null,"","","","","","",null,"","","","","","",null,"","","","","",null,"","",null,null,null,null,null,null,null,null,null,null,null,null,null,null,null,null,null,null,null,null,null,0.5]
[null,"","","","","","","","","","","","","","","",null,"","","","","","",null,"","","","","","",null,"","","","","",null,"","",null,null,null,null,null,null,null,null,null,null,null,null,null,null,null,null,null,null,null,null,null,0.5]
[null,"","","","","","","","","","","","","","","",null,"","","","","","",null,"","","","","","",null,"","","","","",null,"","",null,null,null,null,null,null,null,null,null,null,null,null,null,null,null,null,null,null,null,null,null,0.5]
[null,"","","","","","","","","","","","","","","",null,"","","","","","",null,"","","","","","",null,"","","","","",null,"","",null,null,null,null,null,null,null,null,null,null,null,null,null,null,null,null,null,null,null,null,null,0.5]
[null,"","","","","","","","","","","","","","","",null,"","","","","","",null,"","","","","","",null,"","","","","",null,"","",null,null,null,null,null,null,null,null,null,null,null,null,null,null,null,null,null,null,null,null,null,0.5]
[null,"","","","","","","","","","","","","","","",null,"","","","","","",null,"","","","","","",null,"","","","","",null,"","",null,null,null,null,null,null,null,null,null,null,null,null,null,null,null,null,null,null,null,null,null,0.5]
[null,"","","","","","","","","","","","","","","",null,"","","","","","",null,"","","","","","",null,"","","","","",null,"","",null,null,null,null,null,null,null,null,null,null,null,null,null,null,null,null,null,null,null,null,null,0.5]
[null,"","","","","","","","","","","","","","","",null,"","","","","","",null,"","","","","","",null,"","","","","",null,"","",null,null,null,null,null,null,null,null,null,null,null,null,null,null,null,null,null,null,null,null,null,0.5]
[null,"","","","","","","","","","","","","","","",null,"","","","","","",null,"","","","","","",null,"","","","","",null,"","",null,null,null,null,null,null,null,null,null,null,null,null,null,null,null,null,null,null,null,null,null,0.5]
[null,"","","","","","","","","","","","","","","",null,"","","","","","",null,"","","","","","",null,"","","","","",null,"","",null,null,null,null,null,null,null,null,null,null,null,null,null,null,null,null,null,null,null,null,null,0.5]
[null,"","","","","","","","","","","","","","","",null,"","","","","","",null,"","","","","","",null,"","","","","",null,"","",null,null,null,null,null,null,null,null,null,null,null,null,null,null,null,null,null,null,null,null,null,0.5]
[null,"","","","","","","","","","","","","","","",null,"","","","","","",null,"","","","","","",null,"","","","","",null,"","",null,null,null,null,null,null,null,null,null,null,null,null,null,null,null,null,null,null,null,null,null,0.5]
[null,"","","","","","","","","","","","","","","",null,"","","","","","",null,"","","","","","",null,"","","","","",null,"","",null,null,null,null,null,null,null,null,null,null,null,null,null,null,null,null,null,null,null,null,null,0.5]
[null,"","","","","","","","","","","","","","","",null,"","","","","","",null,"","","","","","",null,"","","","","",null,"","",null,null,null,null,null,null,null,null,null,null,null,null,null,null,null,null,null,null,null,null,null,0.5]
[null,"","","","","","","","","","","","","","","",null,"","","","","","",null,"","","","","","",null,"","","","","",null,"","",null,null,null,null,null,null,null,null,null,null,null,null,null,null,null,null,null,null,null,null,null,0.5]
[null,"","","","","","","","","","","","","","","",null,"","","","","","",null,"","","","","","",null,"","","","","",null,"","",null,null,null,null,null,null,null,null,null,null,null,null,null,null,null,null,null,null,null,null,null,0.5]
[null,"","","","","","","","","","","","","","","",null,"","","","","","",null,"","","","","","",null,"","","","","",null,"","",null,null,null,null,null,null,null,null,null,null,null,null,null,null,null,null,null,null,null,null,null,0.5]
[null,"","","","","","","","","","","","","","","",null,"","","","","","",null,"","","","","","",null,"","","","","",null,"","",null,null,null,null,null,null,null,null,null,null,null,null,null,null,null,null,null,null,null,null,null,0.5]
[null,"","","","","","","","","","","","","","","",null,"","","","","","",null,"","","","","","",null,"","","","","",null,"","",null,null,null,null,null,null,null,null,null,null,null,null,null,null,null,null,null,null,null,null,null,0.5]
[null,"","","","","","","","","","","","","","","",null,"","","","","","",null,"","","","","","",null,"","","","","",null,"","",null,null,null,null,null,null,null,null,null,null,null,null,null,null,null,null,null,null,null,null,null,0.5]
[null,"","","","","","","","","","","","","","","",null,"","","","","","",null,"","","","","","",null,"","","","","",null,"","",null,null,null,null,null,null,null,null,null,null,null,null,null,null,null,null,null,null,null,null,null,0.5]
[null,"","","","","","","","","","","","","","","",null,"","","","","","",null,"","","","","","",null,"","","","","",null,"","",null,null,null,null,null,null,null,null,null,null,null,null,null,null,null,null,null,null,null,null,null,0.5]
[null,"","","","","","","","","","","","","","","",null,"","","","","","",null,"","","","","","",null,"","","","","",null,"","",null,null,null,null,null,null,null,null,null,null,null,null,null,null,null,null,null,null,null,null,null,0.5]
[null,"","","","","","","","","","","","","","","",null,"","","","","","",null,"","","","","","",null,"","","","","",null,"","",null,null,null,null,null,null,null,null,null,null,null,null,null,null,null,null,null,null,null,null,null,0.5]
[null,"","","","","","","","","","","","","","","",null,"","","","","","",null,"","","","","","",null,"","","","","",null,"","",null,null,null,null,null,null,null,null,null,null,null,null,null,null,null,null,null,null,null,null,null,0.5]
[null,"","","","","","","","","","","","","","","",null,"","","","","","",null,"","","","","","",null,"","","","","",null,"","",null,null,null,null,null,null,null,null,null,null,null,null,null,null,null,null,null,null,null,null,null,0.5]
[null,"","","","","","","","","","","","","","","",null,"","","","","","",null,"","","","","","",null,"","","","","",null,"","",null,null,null,null,null,null,null,null,null,null,null,null,null,null,null,null,null,null,null,null,null,0.5]
[null,"","","","","","","","","","","","","","","",null,"","","","","","",null,"","","","","","",null,"","","","","",null,"","",null,null,null,null,null,null,null,null,null,null,null,null,null,null,null,null,null,null,null,null,null,0.5]
[null,"","","","","","","","","","","","","","","",null,"","","","","","",null,"","","","","","",null,"","","","","",null,"","",null,null,null,null,null,null,null,null,null,null,null,null,null,null,null,null,null,null,null,null,null,0.5]
[null,"","","","","","","","","","","","","","","",null,"","","","","","",null,"","","","","","",null,"","","","","",null,"","",null,null,null,null,null,null,null,null,null,null,null,null,null,null,null,null,null,null,null,null,null,0.5]
[null,"","","","","","","","","","","","","","","",null,"","","","","","",null,"","","","","","",null,"","","","","",null,"","",null,null,null,null,null,null,null,null,null,null,null,null,null,null,null,null,null,null,null,null,null,0.5]
[null,"","","","","","","","","","","","","","","",null,"","","","","","",null,"","","","","","",null,"","","","","",null,"","",null,null,null,null,null,null,null,null,null,null,null,null,null,null,null,null,null,null,null,null,null,0.5]
[null,"","","","","","","","","","","","","","","",null,"","","","","","",null,"","","","","","",null,"","","","","",null,"","",null,null,null,null,null,null,null,null,null,null,null,null,null,null,null,null,null,null,null,null,null,0.5]
[null,"","","","","","","","","","","","","","","",null,"","","","","","",null,"","","","","","",null,"","","","","",null,"","",null,null,null,null,null,null,null,null,null,null,null,null,null,null,null,null,null,null,null,null,null,0.5]
[null,"","","","","","","","","","","","","","","",null,"","","","","","",null,"","","","","","",null,"","","","","",null,"","",null,null,null,null,null,null,null,null,null,null,null,null,null,null,null,null,null,null,null,null,null,0.5]
[null,"","","","","","","","","","","","","","","",null,"","","","","","",null,"","","","","","",null,"","","","","",null,"","",null,null,null,null,null,null,null,null,null,null,null,null,null,null,null,null,null,null,null,null,null,0.5]
[null,"","","","","","","","","","","","","","","",null,"","","","","","",null,"","","","","","",null,"","","","","",null,"","",null,null,null,null,null,null,null,null,null,null,null,null,null,null,null,null,null,null,null,null,null,0.5]
[null,"","","","","","","","","","","","","","","",null,"","","","","","",null,"","","","","","",null,"","","","","",null,"","",null,null,null,null,null,null,null,null,null,null,null,null,null,null,null,null,null,null,null,null,null,0.5]
[null,"","","","","","","","","","","","","","","",null,"","","","","","",null,"","","","","","",null,"","","","","",null,"","",null,null,null,null,null,null,null,null,null,null,null,null,null,null,null,null,null,null,null,null,null,0.5]
[null,"","","","","","","","","","","","","","","",null,"","","","","","",null,"","","","","","",null,"","","","","",null,"","",null,null,null,null,null,null,null,null,null,null,null,null,null,null,null,null,null,null,null,null,null,0.5]
[null,"","","","","","","","","","","","","","","",null,"","","","","","",null,"","","","","","",null,"","","","","",null,"","",null,null,null,null,null,null,null,null,null,null,null,null,null,null,null,null,null,null,null,null,null,0.5]
[null,"","","","","","","","","","","","","","","",null,"","","","","","",null,"","","","","","",null,"","","","","",null,"","",null,null,null,null,null,null,null,null,null,null,null,null,null,null,null,null,null,null,null,null,null,0.5]
[null,"","","","","","","","","","","","","","","",null,"","","","","","",null,"","","","","","",null,"","","","","",null,"","",null,null,null,null,null,null,null,null,null,null,null,null,null,null,null,null,null,null,null,null,null,0.5]
[null,"","","","","","","","","","","","","","","",null,"","","","","","",null,"","","","","","",null,"","","","","",null,"","",null,null,null,null,null,null,null,null,null,null,null,null,null,null,null,null,null,null,null,null,null,0.5]
[null,"","","","","","","","","","","","","","","",null,"","","","","","",null,"","","","","","",null,"","","","","",null,"","",null,null,null,null,null,null,null,null,null,null,null,null,null,null,null,null,null,null,null,null,null,0.5]
[null,"","","","","","","","","","","","","","","",null,"","","","","","",null,"","","","","","",null,"","","","","",null,"","",null,null,null,null,null,null,null,null,null,null,null,null,null,null,null,null,null,null,null,null,null,0.5]
[null,"","","","","","","","","","","","","","","",null,"","","","","","",null,"","","","","","",null,"","","","","",null,"","",null,null,null,null,null,null,null,null,null,null,null,null,null,null,null,null,null,null,null,null,null,0.5]
[null,"","","","","","","","","","","","","","","",null,"","","","","","",null,"","","","","","",null,"","","","","",null,"","",null,null,null,null,null,null,null,null,null,null,null,null,null,null,null,null,null,null,null,null,null,0.5]
[null,"","","","","","","","","","","","","","","",null,"","","","","","",null,"","","","","","",null,"","","","","",null,"","",null,null,null,null,null,null,null,null,null,null,null,null,null,null,null,null,null,null,null,null,null,0.5]
[null,"","","","","","","","","","","","","","","",null,"","","","","","",null,"","","","","","",null,"","","","","",null,"","",null,null,null,null,null,null,null,null,null,null,null,null,null,null,null,null,null,null,null,null,null,0.5]
[null,"","","","","","","","","","","","","","","",null,"","","","","","",null,"","","","","","",null,"","","","","",null,"","",null,null,null,null,null,null,null,null,null,null,null,null,null,null,null,null,null,null,null,null,null,0.5]
[null,"","","","","","","","","","","","","","","",null,"","","","","","",null,"","","","","","",null,"","","","","",null,"","",null,null,null,null,null,null,null,null,null,null,null,null,null,null,null,null,null,null,null,null,null,0.5]
[null,"","","","","","","","","","","","","","","",null,"","","","","","",null,"","","","","","",null,"","","","","",null,"","",null,null,null,null,null,null,null,null,null,null,null,null,null,null,null,null,null,null,null,null,null,0.5]
[null,"","","","","","","","","","","","","","","",null,"","","","","","",null,"","","","","","",null,"","","","","",null,"","",null,null,null,null,null,null,null,null,null,null,null,null,null,null,null,null,null,null,null,null,null,0.5]
[null,"","","","","","","","","","","","","","","",null,"","","","","","",null,"","","","","","",null,"","","","","",null,"","",null,null,null,null,null,null,null,null,null,null,null,null,null,null,null,null,null,null,null,null,null,0.5]
[null,"","","","","","","","","","","","","","","",null,"","","","","","",null,"","","","","","",null,"","","","","",null,"","",null,null,null,null,null,null,null,null,null,null,null,null,null,null,null,null,null,null,null,null,null,0.5]
[null,"","","","","","","","","","","","","","","",null,"","","","","","",null,"","","","","","",null,"","","","","",null,"","",null,null,null,null,null,null,null,null,null,null,null,null,null,null,null,null,null,null,null,null,null,0.5]
[null,"","","","","","","","","","","","","","","",null,"","","","","","",null,"","","","","","",null,"","","","","",null,"","",null,null,null,null,null,null,null,null,null,null,null,null,null,null,null,null,null,null,null,null,null,0.5]
[null,"","","","","","","","","","","","","","","",null,"","","","","","",null,"","","","","","",null,"","","","","",null,"","",null,null,null,null,null,null,null,null,null,null,null,null,null,null,null,null,null,null,null,null,null,0.5]
[null,"","","","","","","","","","","","","","","",null,"","","","","","",null,"","","","","","",null,"","","","","",null,"","",null,null,null,null,null,null,null,null,null,null,null,null,null,null,null,null,null,null,null,null,null,0.5]
[null,"","","","","","","","","","","","","","","",null,"","","","","","",null,"","","","","","",null,"","","","","",null,"","",null,null,null,null,null,null,null,null,null,null,null,null,null,null,null,null,null,null,null,null,null,0.5]
[null,"","","","","","","","","","","","","","","",null,"","","","","","",null,"","","","","","",null,"","","","","",null,"","",null,null,null,null,null,null,null,null,null,null,null,null,null,null,null,null,null,null,null,null,null,0.5]
[null,"","","","","","","","","","","","","","","",null,"","","","","","",null,"","","","","","",null,"","","","","",null,"","",null,null,null,null,null,null,null,null,null,null,null,null,null,null,null,null,null,null,null,null,null,0.5]
[null,"","","","","","","","","","","","","","","",null,"","","","","","",null,"","","","","","",null,"","","","","",null,"","",null,null,null,null,null,null,null,null,null,null,null,null,null,null,null,null,null,null,null,null,null,0.5]
[null,"","","","","","","","","","","","","","","",null,"","","","","","",null,"","","","","","",null,"","","","","",null,"","",null,null,null,null,null,null,null,null,null,null,null,null,null,null,null,null,null,null,null,null,null,0.5]
[null,"","","","","","","","","","","","","","","",null,"","","","","","",null,"","","","","","",null,"","","","","",null,"","",null,null,null,null,null,null,null,null,null,null,null,null,null,null,null,null,null,null,null,null,null,0.5]
[null,"","","","","","","","","","","","","","","",null,"","","","","","",null,"","","","","","",null,"","","","","",null,"","",null,null,null,null,null,null,null,null,null,null,null,null,null,null,null,null,null,null,null,null,null,0.5]
[null,"","","","","","","","","","","","","","","",null,"","","","","","",null,"","","","","","",null,"","","","","",null,"","",null,null,null,null,null,null,null,null,null,null,null,null,null,null,null,null,null,null,null,null,null,0.5]
[null,"","","","","","","","","","","","","","","",null,"","","","","","",null,"","","","","","",null,"","","","","",null,"","",null,null,null,null,null,null,null,null,null,null,null,null,null,null,null,null,null,null,null,null,null,0.5]
[null,"","","","","","","","","","","","","","","",null,"","","","","","",null,"","","","","","",null,"","","","","",null,"","",null,null,null,null,null,null,null,null,null,null,null,null,null,null,null,null,null,null,null,null,null,0.5]
[null,"","","","","","","","","","","","","","","",null,"","","","","","",null,"","","","","","",null,"","","","","",null,"","",null,null,null,null,null,null,null,null,null,null,null,null,null,null,null,null,null,null,null,null,null,0.5]
[null,"","","","","","","","","","","","","","","",null,"","","","","","",null,"","","","","","",null,"","","","","",null,"","",null,null,null,null,null,null,null,null,null,null,null,null,null,null,null,null,null,null,null,null,null,0.5]
[null,"","","","","","","","","","","","","","","",null,"","","","","","",null,"","","","","","",null,"","","","","",null,"","",null,null,null,null,null,null,null,null,null,null,null,null,null,null,null,null,null,null,null,null,null,0.5]
[null,"","","","","","","","","","","","","","","",null,"","","","","","",null,"","","","","","",null,"","","","","",null,"","",null,null,null,null,null,null,null,null,null,null,null,null,null,null,null,null,null,null,null,null,null,0.5]
[null,"","","","","","","","","","","","","","","",null,"","","","","","",null,"","","","","","",null,"","","","","",null,"","",null,null,null,null,null,null,null,null,null,null,null,null,null,null,null,null,null,null,null,null,null,0.5]
[null,"","","","","","","","","","","","","","","",null,"","","","","","",null,"","","","","","",null,"","","","","",null,"","",null,null,null,null,null,null,null,null,null,null,null,null,null,null,null,null,null,null,null,null,null,0.5]
[null,"","","","","","","","","","","","","","","",null,"","","","","","",null,"","","","","","",null,"","","","","",null,"","",null,null,null,null,null,null,null,null,null,null,null,null,null,null,null,null,null,null,null,null,null,0.5]
[null,"","","","","","","","","","","","","","","",null,"","","","","","",null,"","","","","","",null,"","","","","",null,"","",null,null,null,null,null,null,null,null,null,null,null,null,null,null,null,null,null,null,null,null,null,0.5]
[null,"","","","","","","","","","","","","","","",null,"","","","","","",null,"","","","","","",null,"","","","","",null,"","",null,null,null,null,null,null,null,null,null,null,null,null,null,null,null,null,null,null,null,null,null,0.5]
[null,"","","","","","","","","","","","","","","",null,"","","","","","",null,"","","","","","",null,"","","","","",null,"","",null,null,null,null,null,null,null,null,null,null,null,null,null,null,null,null,null,null,null,null,null,0.5]
[null,"","","","","","","","","","","","","","","",null,"","","","","","",null,"","","","","","",null,"","","","","",null,"","",null,null,null,null,null,null,null,null,null,null,null,null,null,null,null,null,null,null,null,null,null,0.5]
[null,"","","","","","","","","","","","","","","",null,"","","","","","",null,"","","","","","",null,"","","","","",null,"","",null,null,null,null,null,null,null,null,null,null,null,null,null,null,null,null,null,null,null,null,null,0.5]
[null,"","","","","","","","","","","","","","","",null,"","","","","","",null,"","","","","","",null,"","","","","",null,"","",null,null,null,null,null,null,null,null,null,null,null,null,null,null,null,null,null,null,null,null,null,0.5]
[null,"","","","","","","","","","","","","","","",null,"","","","","","",null,"","","","","","",null,"","","","","",null,"","",null,null,null,null,null,null,null,null,null,null,null,null,null,null,null,null,null,null,null,null,null,0.5]
[null,"","","","","","","","","","","","","","","",null,"","","","","","",null,"","","","","","",null,"","","","","",null,"","",null,null,null,null,null,null,null,null,null,null,null,null,null,null,null,null,null,null,null,null,null,0.5]
[null,"","","","","","","","","","","","","","","",null,"","","","","","",null,"","","","","","",null,"","","","","",null,"","",null,null,null,null,null,null,null,null,null,null,null,null,null,null,null,null,null,null,null,null,null,0.5]
[null,"","","","","","","","","","","","","","","",null,"","","","","","",null,"","","","","","",null,"","","","","",null,"","",null,null,null,null,null,null,null,null,null,null,null,null,null,null,null,null,null,null,null,null,null,0.5]
[null,"","","","","","","","","","","","","","","",null,"","","","","","",null,"","","","","","",null,"","","","","",null,"","",null,null,null,null,null,null,null,null,null,null,null,null,null,null,null,null,null,null,null,null,null,0.5]
[null,"","","","","","","","","","","","","","","",null,"","","","","","",null,"","","","","","",null,"","","","","",null,"","",null,null,null,null,null,null,null,null,null,null,null,null,null,null,null,null,null,null,null,null,null,0.5]
[null,"","","","","","","","","","","","","","","",null,"","","","","","",null,"","","","","","",null,"","","","","",null,"","",null,null,null,null,null,null,null,null,null,null,null,null,null,null,null,null,null,null,null,null,null,0.5]
[null,"","","","","","","","","","","","","","","",null,"","","","","","",null,"","","","","","",null,"","","","","",null,"","",null,null,null,null,null,null,null,null,null,null,null,null,null,null,null,null,null,null,null,null,null,0.5]
[null,"","","","","","","","","","","","","","","",null,"","","","","","",null,"","","","","","",null,"","","","","",null,"","",null,null,null,null,null,null,null,null,null,null,null,null,null,null,null,null,null,null,null,null,null,0.5]
[null,"","","","","","","","","","","","","","","",null,"","","","","","",null,"","","","","","",null,"","","","","",null,"","",null,null,null,null,null,null,null,null,null,null,null,null,null,null,null,null,null,null,null,null,null,0.5]
[null,"","","","","","","","","","","","","","","",null,"","","","","","",null,"","","","","","",null,"","","","","",null,"","",null,null,null,null,null,null,null,null,null,null,null,null,null,null,null,null,null,null,null,null,null,0.5]
[null,"","","","","","","","","","","","","","","",null,"","","","","","",null,"","","","","","",null,"","","","","",null,"","",null,null,null,null,null,null,null,null,null,null,null,null,null,null,null,null,null,null,null,null,null,0.5]
[null,"","","","","","","","","","","","","","","",null,"","","","","","",null,"","","","","","",null,"","","","","",null,"","",null,null,null,null,null,null,null,null,null,null,null,null,null,null,null,null,null,null,null,null,null,0.5]
[null,"","","","","","","","","","","","","","","",null,"","","","","","",null,"","","","","","",null,"","","","","",null,"","",null,null,null,null,null,null,null,null,null,null,null,null,null,null,null,null,null,null,null,null,null,0.5]
[null,"","","","","","","","","","","","","","","",null,"","","","","","",null,"","","","","","",null,"","","","","",null,"","",null,null,null,null,null,null,null,null,null,null,null,null,null,null,null,null,null,null,null,null,null,0.5]
[null,"","","","","","","","","","","","","","","",null,"","","","","","",null,"","","","","","",null,"","","","","",null,"","",null,null,null,null,null,null,null,null,null,null,null,null,null,null,null,null,null,null,null,null,null,0.5]
[null,"","","","","","","","","","","","","","","",null,"","","","","","",null,"","","","","","",null,"","","","","",null,"","",null,null,null,null,null,null,null,null,null,null,null,null,null,null,null,null,null,null,null,null,null,0.5]
[null,"","","","","","","","","","","","","","","",null,"","","","","","",null,"","","","","","",null,"","","","","",null,"","",null,null,null,null,null,null,null,null,null,null,null,null,null,null,null,null,null,null,null,null,null,0.5]
[null,"","","","","","","","","","","","","","","",null,"","","","","","",null,"","","","","","",null,"","","","","",null,"","",null,null,null,null,null,null,null,null,null,null,null,null,null,null,null,null,null,null,null,null,null,0.5]
[null,"","","","","","","","","","","","","","","",null,"","","","","","",null,"","","","","","",null,"","","","","",null,"","",null,null,null,null,null,null,null,null,null,null,null,null,null,null,null,null,null,null,null,null,null,0.5]
[null,"","","","","","","","","","","","","","","",null,"","","","","","",null,"","","","","","",null,"","","","","",null,"","",null,null,null,null,null,null,null,null,null,null,null,null,null,null,null,null,null,null,null,null,null,0.5]
[null,"","","","","","","","","","","","","","","",null,"","","","","","",null,"","","","","","",null,"","","","","",null,"","",null,null,null,null,null,null,null,null,null,null,null,null,null,null,null,null,null,null,null,null,null,0.5]
[null,"","","","","","","","","","","","","","","",null,"","","","","","",null,"","","","","","",null,"","","","","",null,"","",null,null,null,null,null,null,null,null,null,null,null,null,null,null,null,null,null,null,null,null,null,0.5]
[null,"","","","","","","","","","","","","","","",null,"","","","","","",null,"","","","","","",null,"","","","","",null,"","",null,null,null,null,null,null,null,null,null,null,null,null,null,null,null,null,null,null,null,null,null,0.5]
[null,"","","","","","","","","","","","","","","",null,"","","","","","",null,"","","","","","",null,"","","","","",null,"","",null,null,null,null,null,null,null,null,null,null,null,null,null,null,null,null,null,null,null,null,null,0.5]
[null,"","","","","","","","","","","","","","","",null,"","","","","","",null,"","","","","","",null,"","","","","",null,"","",null,null,null,null,null,null,null,null,null,null,null,null,null,null,null,null,null,null,null,null,null,0.5]
[null,"","","","","","","","","","","","","","","",null,"","","","","","",null,"","","","","","",null,"","","","","",null,"","",null,null,null,null,null,null,null,null,null,null,null,null,null,null,null,null,null,null,null,null,null,0.5]
[null,"","","","","","","","","","","","","","","",null,"","","","","","",null,"","","","","","",null,"","","","","",null,"","",null,null,null,null,null,null,null,null,null,null,null,null,null,null,null,null,null,null,null,null,null,0.5]
[null,"","","","","","","","","","","","","","","",null,"","","","","","",null,"","","","","","",null,"","","","","",null,"","",null,null,null,null,null,null,null,null,null,null,null,null,null,null,null,null,null,null,null,null,null,0.5]
[null,"","","","","","","","","","","","","","","",null,"","","","","","",null,"","","","","","",null,"","","","","",null,"","",null,null,null,null,null,null,null,null,null,null,null,null,null,null,null,null,null,null,null,null,null,0.5]
[null,"","","","","","","","","","","","","","","",null,"","","","","","",null,"","","","","","",null,"","","","","",null,"","",null,null,null,null,null,null,null,null,null,null,null,null,null,null,null,null,null,null,null,null,null,0.5]
[null,"","","","","","","","","","","","","","","",null,"","","","","","",null,"","","","","","",null,"","","","","",null,"","",null,null,null,null,null,null,null,null,null,null,null,null,null,null,null,null,null,null,null,null,null,0.5]
["REPARACIÓN","","","","","","","","","","","","","","","",null,"","","","","","",null,"","","","","","",null,"","","","","",null,"","",null,null,null,null,null,null,null,null,null,null,null,null,null,null,null,null,null,null,null,null,null,0.5]
[null,null,null,null,null,null,null,null,null,null,null,null,null,null,null,null,null,null,null,null,null,null,null,null,null,null,null,null,null,null,null,"","","","",""]
[null,null,null,null,null,null,null,null,null,null,null,null,null,null,null,null,null,null,null,null,null,null,null,null,null,null,null,null,null,null,null,"","","","",""]

{"sheet":"C2 A L","index":7,"n_rows":210,"n_cols":61,"rows_kept":210,"cut":false,"hidden":false,"merged":[[3,37,3,39],[0,0,0,8],[1,0,1,8],[2,0,2,8],[3,31,3,35],[1,11,1,12],[3,10,3,15],[3,17,3,22],[2,10,2,11],[3,24,3,29]]}
["COPA CENTRO AGRICOLA",null,null,null,null,null,null,null,null,null,null,null,null,null,20,"Km",null,null,null,null,null,20,"Km",null,null,null,null,"DISTANCIA",20,"Km",null,null,null,"DISTANCIA",20,"Km",null,80,null,"Km"]
["I CHONE 11/02/2017, HCDA. SAN BERNARDO",null,null,null,null,null,null,null,null,null,"FECHA:","2017-02-13T16:07:19.130",null,null,"T. MÁXIMO","LIBRE",null,null,null,null,"T. MÁXIMO","LIBRE",null,null,null,null,null,"T. MÁXIMO","LIBRE",null,null,null,null,"T. MÁXIMO","LIBRE",null,null,"6:40:00",null,"T. MÁXIMO "]
["CHASQUI 2 ABIERTA VELOCIDAD LIBRE",null,null,null,null,null,null,null,null,null,"TIEMPO DE DESCANSO:",null,6.25E-2,null,"T. MÍNIMO","LIBRE",null,null,null,null,"T. MÍNIMO","LIBRE",null,null,null,null,null,"T. MÍNIMO","LIBRE",null,null,null,null,"T. MÍNIMO","LIBRE"]
[null,null,null,null,null,null,null,null,null,null,"PRIMERA ETAPA",null,null,null,null,null,null,"SEGUNDA ETAPA",null,null,null,null,null,null,"TERCERA ETAPA",null,null,null,null,null,null,"CUARTA ETAPA",null,null,null,null,null,"TOTAL"]
["POSICION","CODIGO","NOMBRE DEL JINETE","CODIGO","NOMBRE DEL CABALLO","HORA DE SALIDA ","HORA FINAL","TIEMPO DE COMPETENCIA","TIEMPO MEDIO DE RECUPERACIÓN","PUNTAJE","HORA DE LLEGADA","HORA DE CHEQUEO","TIEMPO DE RECUPERACIÓN","TIEMPO DE LA ETAPA","VELOCI     DAD","HORA DE SALIDA",null,"HORA DE LLEGADA","HORA DE CHEQUEO","TIEMPO DE RECUPERACIÓN","TIEMPO DE LA ETAPA","VELOCI     DAD","HORA DE SALIDA",null,"HORA DE LLEGADA","HORA DE CHEQUEO","TIEMPO DE RECUPERACIÓN","TIEMPO DE LA ETAPA","VELOCI     DAD","HORA DE SALIDA",null,"HORA DE LLEGADA","HORA DE CHEQUEO","TIEMPO DE RECUPERACIÓN","TIEMPO DE LA ETAPA","VELOCI     DAD",null,"TIEMPO EN CARRERA","VELOCIDAD DE COMPETENCIA","VELOCIDAD DE CARRERA"]
[null,null,null,null,null,null,null,null,null,160]
[1,"A045","MORABOWEN CESAR","C229","BULERIA","08:30:00","13:56:59",0.16457175925925921,"00:05:47",160,"09:29:04","09:33:10","00:04:06","01:03:10",18.997361477572586,"10:03:10",null,"10:55:07","10:59:52","00:04:45","00:56:42",21.16402116402114,"11:29:52",null,"12:21:29","12:29:59","00:08:30","01:00:07",19.961186581646746,"12:59:59",null,"13:56:59","14:07:42","00:10:43","00:57:00",21.052631578947445,null,"03:39:38",20.254588930304529,21.854606161784794,null,null,null,null,null,null,null,null,null,null,null,null,null,null,null,null,null,null,null,null,1]
[2,"A092","VINTIMILLA PABLO","C252","BIANCA","08:30:00","14:19:49",0.18042824074074065,"00:08:03",152,"09:29:03","09:39:29","00:10:26","01:09:29",17.270328615975043,"10:09:29",null,"11:04:11","11:10:41","00:06:30","01:01:12",19.60784313725491,"11:40:41",null,"12:40:13","12:47:26","00:07:13","01:06:45",17.977528089887652,"13:17:26",null,"14:19:49","14:31:31","00:11:42","01:02:23",19.235907026449407,null,"03:55:40",18.474565398678564,20.367751060820396,null,null,null,null,null,null,null,null,null,null,null,null,null,null,null,null,null,null,null,null,0.95]
[3,"A059","ALMEIDA AYALA HECTOR","C140","SC SADIQ","08:30:00","15:32:07",0.23063657407407406,"00:05:59",144,"09:47:38","09:52:15","00:04:37","01:22:15",14.589665653495443,"10:22:15",null,"11:38:18","11:45:01","00:06:43","01:22:46",14.498590414820791,"12:15:01",null,"13:30:50","13:37:27","00:06:37","01:22:26",14.557217953902118,"14:07:27",null,"15:32:07","15:41:55","00:09:48","01:24:40",14.173228346456709,null,"05:14:10",14.452752546795805,15.27851458885941,null,null,null,null,null,null,null,null,null,null,null,null,null,null,null,null,null,null,null,null,0.9]
[4,"A249","ANDRADE JOSE DANIEL","C282","MAGIC MENES","08:30:00","",23,"E CLAUDICACIÓN","","09:30:21","09:33:45","00:03:24","01:03:45",18.823529411764714,"10:03:45",null,"10:55:06","10:59:22","00:04:16","00:55:37",21.576266107281985,"11:29:22",null,"","","","","","",null,"","","","","",null,"","","",null,null,null,null,null,null,null,null,null,null,null,null,null,null,null,null,null,null,null,null,0.85]
[5,"","","","","","","","","","","","","","","",null,"","","","","","",null,"","","","","","",null,"","","","","",null,"","","",null,null,null,null,null,null,null,null,null,null,null,null,null,null,null,null,null,null,null,null,0.8]
[6,"","","","","","","","","","","","","","","",null,"","","","","","",null,"","","","","","",null,"","","","","",null,"","","",null,null,null,null,null,null,null,null,null,null,null,null,null,null,null,null,null,null,null,null,0.75]
[7,"","","","","","","","","","","","","","","",null,"","","","","","",null,"","","","","","",null,"","","","","",null,"","","",null,null,null,null,null,null,null,null,null,null,null,null,null,null,null,null,null,null,null,null,0.7]
[8,"","","","","","","","","","","","","","","",null,"","","","","","",null,"","","","","","",null,"","","","","",null,"","","",null,null,null,null,null,null,null,null,null,null,null,null,null,null,null,null,null,null,null,null,0.65]
[9,"","","","","","","","","","","","","","","",null,"","","","","","",null,"","","","","","",null,"","","","","",null,"","","",null,null,null,null,null,null,null,null,null,null,null,null,null,null,null,null,null,null,null,null,0.6]
[10,"","","","","","","","","","","","","","","",null,"","","","","","",null,"","","","","","",null,"","","","","",null,"","","",null,null,null,null,null,null,null,null,null,null,null,null,null,null,null,null,null,null,null,null,0.55000000000000004]
[11,"","","","","","","","","","","","","","","",null,"","","","","","",null,"","","","","","",null,"","","","","",null,"","","",null,null,null,null,null,null,null,null,null,null,null,null,null,null,null,null,null,null,null,null,0.5]
[12,"","","","","","","","","","","","","","","",null,"","","","","","",null,"","","","","","",null,"","","","","",null,"","","",null,null,null,null,null,null,null,null,null,null,null,null,null,null,null,null,null,null,null,null,0.5]
[13,"","","","","","","","","","","","","","","",null,"","","","","","",null,"","","","","","",null,"","","","","",null,"","","",null,null,null,null,null,null,null,null,null,null,null,null,null,null,null,null,null,null,null,null,0.5]
[14,"","","","","","","","","","","","","","","",null,"","","","","","",null,"","","","","","",null,"","","","","",null,"","","",null,null,null,null,null,null,null,null,null,null,null,null,null,null,null,null,null,null,null,null,0.5]
[15,"","","","","","","","","","","","","","","",null,"","","","","","",null,"","","","","","",null,"","","","","",null,"","","",null,null,null,null,null,null,null,null,null,null,null,null,null,null,null,null,null,null,null,null,0.5]
[16,"","","","","","","","","","","","","","","",null,"","","","","","",null,"","","","","","",null,"","","","","",null,"","","",null,null,null,null,null,null,null,null,null,null,null,null,null,null,null,null,null,null,null,null,0.5]
[17,"","","","","","","","","","","","","","","",null,"","","","","","",null,"","","","","","",null,"","","","","",null,"","","",null,null,null,null,null,null,null,null,null,null,null,null,null,null,null,null,null,null,null,null,0.5]
[18,"","","","","","","","","","","","","","","",null,"","","","","","",null,"","","","","","",null,"","","","","",null,"","","",null,null,null,null,null,null,null,null,null,null,null,null,null,null,null,null,null,null,null,null,0.5]
[19,"","","","","","","","","","","","","","","",null,"","","","","","",null,"","","","","","",null,"","","","","",null,"","","",null,null,null,null,null,null,null,null,null,null,null,null,null,null,null,null,null,null,null,null,0.5]
[20,"","","","","","","","","","","","","","","",null,"","","","","","",null,"","","","","","",null,"","","","","",null,"","","",null,null,null,null,null,null,null,null,null,null,null,null,null,null,null,null,null,null,null,null,0.5]
[21,"","","","","","","","","","","","","","","",null,"","","","","","",null,"","","","","","",null,"","","","","",null,"","","",null,null,null,null,null,null,null,null,null,null,null,null,null,null,null,null,null,null,null,null,0.5]
[22,"","","","","","","","","","","","","","","",null,"","","","","","",null,"","","","","","",null,"","","","","",null,"","","",null,null,null,null,null,null,null,null,null,null,null,null,null,null,null,null,null,null,null,null,0.5]
[23,"","","","","","","","","","","","","","","",null,"","","","","","",null,"","","","","","",null,"","","","","",null,"","","",null,null,null,null,null,null,null,null,null,null,null,null,null,null,null,null,null,null,null,null,0.5]
[24,"","","","","","","","","","","","","","","",null,"","","","","","",null,"","","","","","",null,"","","","","",null,"","","",null,null,null,null,null,null,null,null,null,null,null,null,null,null,null,null,null,null,null,null,0.5]
[25,"","","","","","","","","","","","","","","",null,"","","","","","",null,"","","","","","",null,"","","","","",null,"","","",null,null,null,null,null,null,null,null,null,null,null,null,null,null,null,null,null,null,null,null,0.5]
[26,"","","","","","","","","","","","","","","",null,"","","","","","",null,"","","","","","",null,"","","","","",null,"","","",null,null,null,null,null,null,null,null,null,null,null,null,null,null,null,null,null,null,null,null,0.5]
[27,"","","","","","","","","","","","","","","",null,"","","","","","",null,"","","","","","",null,"","","","","",null,"","","",null,null,null,null,null,null,null,null,null,null,null,null,null,null,null,null,null,null,null,null,0.5]
[28,"","","","","","","","","","","","","","","",null,"","","","","","",null,"","","","","","",null,"","","","","",null,"","","",null,null,null,null,null,null,null,null,null,null,null,null,null,null,null,null,null,null,null,null,0.5]
[29,"","","","","","","","","","","","","","","",null,"","","","","","",null,"","","","","","",null,"","","","","",null,"","","",null,null,null,null,null,null,null,null,null,null,null,null,null,null,null,null,null,null,null,null,0.5]
[30,"","","","","","","","","","","","","","","",null,"","","","","","",null,"","","","","","",null,"","","","","",null,"","","",null,null,null,null,null,null,null,null,null,null,null,null,null,null,null,null,null,null,null,null,0.5]
[31,"","","","","","","","","","","","","","","",null,"","","","","","",null,"","","","","","",null,"","","","","",null,"","","",null,null,null,null,null,null,null,null,null,null,null,null,null,null,null,null,null,null,null,null,0.5]
[32,"","","","","","","","","","","","","","","",null,"","","","","","",null,"","","","","","",null,"","","","","",null,"","","",null,null,null,null,null,null,null,null,null,null,null,null,null,null,null,null,null,null,null,null,0.5]
[33,"","","","","","","","","","","","","","","",null,"","","","","","",null,"","","","","","",null,"","","","","",null,"","","",null,null,null,null,null,null,null,null,null,null,null,null,null,null,null,null,null,null,null,null,0.5]
[34,"","","","","","","","","","","","","","","",null,"","","","","","",null,"","","","","","",null,"","","","","",null,"","","",null,null,null,null,null,null,null,null,null,null,null,null,null,null,null,null,null,null,null,null,0.5]
[35,"","","","","","","","","","","","","","","",null,"","","","","","",null,"","","","","","",null,"","","","","",null,"","","",null,null,null,null,null,null,null,null,null,null,null,null,null,null,null,null,null,null,null,null,0.5]
[36,"","","","","","","","","","","","","","","",null,"","","","","","",null,"","","","","","",null,"","","","","",null,"","","",null,null,null,null,null,null,null,null,null,null,null,null,null,null,null,null,null,null,null,null,0.5]
[37,"","","","","","","","","","","","","","","",null,"","","","","","",null,"","","","","","",null,"","","","","",null,"","","",null,null,null,null,null,null,null,null,null,null,null,null,null,null,null,null,null,null,null,null,0.5]
[38,"","","","","","","","","","","","","","","",null,"","","","","","",null,"","","","","","",null,"","","","","",null,"","","",null,null,null,null,null,null,null,null,null,null,null,null,null,null,null,null,null,null,null,null,0.5]
[39,"","","","","","","","","","","","","","","",null,"","","","","","",null,"","","","","","",null,"","","","","",null,"","","",null,null,null,null,null,null,null,null,null,null,null,null,null,null,null,null,null,null,null,null,0.5]
[40,"","","","","","","","","","","","","","","",null,"","","","","","",null,"","","","","","",null,"","","","","",null,"","","",null,null,null,null,null,null,null,null,null,null,null,null,null,null,null,null,null,null,null,null,0.5]
[41,"","","","","","","","","","","","","","","",null,"","","","","","",null,"","","","","","",null,"","","","","",null,"","","",null,null,null,null,null,null,null,null,null,null,null,null,null,null,null,null,null,null,null,null,0.5]
[42,"","","","","","","","","","","","","","","",null,"","","","","","",null,"","","","","","",null,"","","","","",null,"","","",null,null,null,null,null,null,null,null,null,null,null,null,null,null,null,null,null,null,null,null,0.5]
[43,"","","","","","","","","","","","","","","",null,"","","","","","",null,"","","","","","",null,"","","","","",null,"","","",null,null,null,null,null,null,null,null,null,null,null,null,null,null,null,null,null,null,null,null,0.5]
[44,"","","","","","","","","","","","","","","",null,"","","","","","",null,"","","","","","",null,"","","","","",null,"","","",null,null,null,null,null,null,null,null,null,null,null,null,null,null,null,null,null,null,null,null,0.5]
[45,"","","","","","","","","","","","","","","",null,"","","","","","",null,"","","","","","",null,"","","","","",null,"","","",null,null,null,null,null,null,null,null,null,null,null,null,null,null,null,null,null,null,null,null,0.5]
[46,"","","","","","","","","","","","","","","",null,"","","","","","",null,"","","","","","",null,"","","","","",null,"","","",null,null,null,null,null,null,null,null,null,null,null,null,null,null,null,null,null,null,null,null,0.5]
[47,"","","","","","","","","","","","","","","",null,"","","","","","",null,"","","","","","",null,"","","","","",null,"","","",null,null,null,null,null,null,null,null,null,null,null,null,null,null,null,null,null,null,null,null,0.5]
[48,"","","","","","","","","","","","","","","",null,"","","","","","",null,"","","","","","",null,"","","","","",null,"","","",null,null,null,null,null,null,null,null,null,null,null,null,null,null,null,null,null,null,null,null,0.5]
[49,"","","","","","","","","","","","","","","",null,"","","","","","",null,"","","","","","",null,"","","","","",null,"","","",null,null,null,null,null,null,null,null,null,null,null,null,null,null,null,null,null,null,null,null,0.5]
[50,"","","","","","","","","","","","","","","",null,"","","","","","",null,"","","","","","",null,"","","","","",null,"","","",null,null,null,null,null,null,null,null,null,null,null,null,null,null,null,null,null,null,null,null,0.5]
[51,"","","","","","","","","","","","","","","",null,"","","","","","",null,"","","","","","",null,"","","","","",null,"","","",null,null,null,null,null,null,null,null,null,null,null,null,null,null,null,null,null,null,null,null,0.5]
[52,"","","","","","","","","","","","","","","",null,"","","","","","",null,"","","","","","",null,"","","","","",null,"","","",null,null,null,null,null,null,null,null,null,null,null,null,null,null,null,null,null,null,null,null,0.5]
[53,"","","","","","","","","","","","","","","",null,"","","","","","",null,"","","","","","",null,"","","","","",null,"","","",null,null,null,null,null,null,null,null,null,null,null,null,null,null,null,null,null,null,null,null,0.5]
[54,"","","","","","","","","","","","","","","",null,"","","","","","",null,"","","","","","",null,"","","","","",null,"","","",null,null,null,null,null,null,null,null,null,null,null,null,null,null,null,null,null,null,null,null,0.5]
[55,"","","","","","","","","","","","","","","",null,"","","","","","",null,"","","","","","",null,"","","","","",null,"","","",null,null,null,null,null,null,null,null,null,null,null,null,null,null,null,null,null,null,null,null,0.5]
[56,"","","","","","","","","","","","","","","",null,"","","","","","",null,"","","","","","",null,"","","","","",null,"","","",null,null,null,null,null,null,null,null,null,null,null,null,null,null,null,null,null,null,null,null,0.5]
[57,"","","","","","","","","","","","","","","",null,"","","","","","",null,"","","","","","",null,"","","","","",null,"","","",null,null,null,null,null,null,null,null,null,null,null,null,null,null,null,null,null,null,null,null,0.5]
[58,"","","","","","","","","","","","","","","",null,"","","","","","",null,"","","","","","",null,"","","","","",null,"","","",null,null,null,null,null,null,null,null,null,null,null,null,null,null,null,null,null,null,null,null,0.5]
[59,"","","","","","","","","","","","","","","",null,"","","","","","",null,"","","","","","",null,"","","","","",null,"","","",null,null,null,null,null,null,null,null,null,null,null,null,null,null,null,null,null,null,null,null,0.5]
[60,"","","","","","","","","","","","","","","",null,"","","","","","",null,"","","","","","",null,"","","","","",null,"","","",null,null,null,null,null,null,null,null,null,null,null,null,null,null,null,null,null,null,null,null,0.5]
[61,"","","","","","","","","","","","","","","",null,"","","","","","",null,"","","","","","",null,"","","","","",null,"","","",null,null,null,null,null,null,null,null,null,null,null,null,null,null,null,null,null,null,null,null,0.5]
[62,"","","","","","","","","","","","","","","",null,"","","","","","",null,"","","","","","",null,"","","","","",null,"","","",null,null,null,null,null,null,null,null,null,null,null,null,null,null,null,null,null,null,null,null,0.5]
[63,"","","","","","","","","","","","","","","",null,"","","","","","",null,"","","","","","",null,"","","","","",null,"","","",null,null,null,null,null,null,null,null,null,null,null,null,null,null,null,null,null,null,null,null,0.5]
[64,"","","","","","","","","","","","","","","",null,"","","","","","",null,"","","","","","",null,"","","","","",null,"","","",null,null,null,null,null,null,null,null,null,null,null,null,null,null,null,null,null,null,null,null,0.5]
[65,"","","","","","","","","","","","","","","",null,"","","","","","",null,"","","","","","",null,"","","","","",null,"","","",null,null,null,null,null,null,null,null,null,null,null,null,null,null,null,null,null,null,null,null,0.5]
[66,"","","","","","","","","","","","","","","",null,"","","","","","",null,"","","","","","",null,"","","","","",null,"","","",null,null,null,null,null,null,null,null,null,null,null,null,null,null,null,null,null,null,null,null,0.5]
[67,"","","","","","","","","","","","","","","",null,"","","","","","",null,"","","","","","",null,"","","","","",null,"","","",null,null,null,null,null,null,null,null,null,null,null,null,null,null,null,null,null,null,null,null,0.5]
[68,"","","","","","","","","","","","","","","",null,"","","","","","",null,"","","","","","",null,"","","","","",null,"","","",null,null,null,null,null,null,null,null,null,null,null,null,null,null,null,null,null,null,null,null,0.5]
[69,"","","","","","","","","","","","","","","",null,"","","","","","",null,"","","","","","",null,"","","","","",null,"","","",null,null,null,null,null,null,null,null,null,null,null,null,null,null,null,null,null,null,null,null,0.5]
[70,"","","","","","","","","","","","","","","",null,"","","","","","",null,"","","","","","",null,"","","","","",null,"","","",null,null,null,null,null,null,null,null,null,null,null,null,null,null,null,null,null,null,null,null,0.5]
[71,"","","","","","","","","","","","","","","",null,"","","","","","",null,"","","","","","",null,"","","","","",null,"","","",null,null,null,null,null,null,null,null,null,null,null,null,null,null,null,null,null,null,null,null,0.5]
[72,"","","","","","","","","","","","","","","",null,"","","","","","",null,"","","","","","",null,"","","","","",null,"","","",null,null,null,null,null,null,null,null,null,null,null,null,null,null,null,null,null,null,null,null,0.5]
[73,"","","","","","","","","","","","","","","",null,"","","","","","",null,"","","","","","",null,"","","","","",null,"","","",null,null,null,null,null,null,null,null,null,null,null,null,null,null,null,null,null,null,null,null,0.5]
[74,"","","","","","","","","","","","","","","",null,"","","","","","",null,"","","","","","",null,"","","","","",null,"","","",null,null,null,null,null,null,null,null,null,null,null,null,null,null,null,null,null,null,null,null,0.5]
[75,"","","","","","","","","","","","","","","",null,"","","","","","",null,"","","","","","",null,"","","","","",null,"","","",null,null,null,null,null,null,null,null,null,null,null,null,null,null,null,null,null,null,null,null,0.5]
[76,"","","","","","","","","","","","","","","",null,"","","","","","",null,"","","","","","",null,"","","","","",null,"","","",null,null,null,null,null,null,null,null,null,null,null,null,null,null,null,null,null,null,null,null,0.5]
[77,"","","","","","","","","","","","","","","",null,"","","","","","",null,"","","","","","",null,"","","","","",null,"","","",null,null,null,null,null,null,null,null,null,null,null,null,null,null,null,null,null,null,null,null,0.5]
[78,"","","","","","","","","","","","","","","",null,"","","","","","",null,"","","","","","",null,"","","","","",null,"","","",null,null,null,null,null,null,null,null,null,null,null,null,null,null,null,null,null,null,null,null,0.5]
[79,"","","","","","","","","","","","","","","",null,"","","","","","",null,"","","","","","",null,"","","","","",null,"","","",null,null,null,null,null,null,null,null,null,null,null,null,null,null,null,null,null,null,null,null,0.5]
[80,"","","","","","","","","","","","","","","",null,"","","","","","",null,"","","","","","",null,"","","","","",null,"","","",null,null,null,null,null,null,null,null,null,null,null,null,null,null,null,null,null,null,null,null,0.5]
[81,"","","","","","","","","","","","","","","",null,"","","","","","",null,"","","","","","",null,"","","","","",null,"","","",null,null,null,null,null,null,null,null,null,null,null,null,null,null,null,null,null,null,null,null,0.5]
[82,"","","","","","","","","","","","","","","",null,"","","","","","",null,"","","","","","",null,"","","","","",null,"","","",null,null,null,null,null,null,null,null,null,null,null,null,null,null,null,null,null,null,null,null,0.5]
[83,"","","","","","","","","","","","","","","",null,"","","","","","",null,"","","","","","",null,"","","","","",null,"","","",null,null,null,null,null,null,null,null,null,null,null,null,null,null,null,null,null,null,null,null,0.5]
[84,"","","","","","","","","","","","","","","",null,"","","","","","",null,"","","","","","",null,"","","","","",null,"","","",null,null,null,null,null,null,null,null,null,null,null,null,null,null,null,null,null,null,null,null,0.5]
[85,"","","","","","","","","","","","","","","",null,"","","","","","",null,"","","","","","",null,"","","","","",null,"","","",null,null,null,null,null,null,null,null,null,null,null,null,null,null,null,null,null,null,null,null,0.5]
[86,"","","","","","","","","","","","","","","",null,"","","","","","",null,"","","","","","",null,"","","","","",null,"","","",null,null,null,null,null,null,null,null,null,null,null,null,null,null,null,null,null,null,null,null,0.5]
[87,"","","","","","","","","","","","","","","",null,"","","","","","",null,"","","","","","",null,"","","","","",null,"","","",null,null,null,null,null,null,null,null,null,null,null,null,null,null,null,null,null,null,null,null,0.5]
[88,"","","","","","","","","","","","","","","",null,"","","","","","",null,"","","","","","",null,"","","","","",null,"","","",null,null,null,null,null,null,null,null,null,null,null,null,null,null,null,null,null,null,null,null,0.5]
[89,"","","","","","","","","","","","","","","",null,"","","","","","",null,"","","","","","",null,"","","","","",null,"","","",null,null,null,null,null,null,null,null,null,null,null,null,null,null,null,null,null,null,null,null,0.5]
[90,"","","","","","","","","","","","","","","",null,"","","","","","",null,"","","","","","",null,"","","","","",null,"","","",null,null,null,null,null,null,null,null,null,null,null,null,null,null,null,null,null,null,null,null,0.5]
[91,"","","","","","","","","","","","","","","",null,"","","","","","",null,"","","","","","",null,"","","","","",null,"","","",null,null,null,null,null,null,null,null,null,null,null,null,null,null,null,null,null,null,null,null,0.5]
[92,"","","","","","","","","","","","","","","",null,"","","","","","",null,"","","","","","",null,"","","","","",null,"","","",null,null,null,null,null,null,null,null,null,null,null,null,null,null,null,null,null,null,null,null,0.5]
[93,"","","","","","","","","","","","","","","",null,"","","","","","",null,"","","","","","",null,"","","","","",null,"","","",null,null,null,null,null,null,null,null,null,null,null,null,null,null,null,null,null,null,null,null,0.5]
[94,"","","","","","","","","","","","","","","",null,"","","","","","",null,"","","","","","",null,"","","","","",null,"","","",null,null,null,null,null,null,null,null,null,null,null,null,null,null,null,null,null,null,null,null,0.5]
[95,"","","","","","","","","","","","","","","",null,"","","","","","",null,"","","","","","",null,"","","","","",null,"","","",null,null,null,null,null,null,null,null,null,null,null,null,null,null,null,null,null,null,null,null,0.5]
[96,"","","","","","","","","","","","","","","",null,"","","","","","",null,"","","","","","",null,"","","","","",null,"","","",null,null,null,null,null,null,null,null,null,null,null,null,null,null,null,null,null,null,null,null,0.5]
[97,"","","","","","","","","","","","","","","",null,"","","","","","",null,"","","","","","",null,"","","","","",null,"","","",null,null,null,null,null,null,null,null,null,null,null,null,null,null,null,null,null,null,null,null,0.5]
[98,"","","","","","","","","","","","","","","",null,"","","","","","",null,"","","","","","",null,"","","","","",null,"","","",null,null,null,null,null,null,null,null,null,null,null,null,null,null,null,null,null,null,null,null,0.5]
[99,"","","","","","","","","","","","","","","",null,"","","","","","",null,"","","","","","",null,"","","","","",null,"","","",null,null,null,null,null,null,null,null,null,null,null,null,null,null,null,null,null,null,null,null,0.5]
[100,"","","","","","","","","","","","","","","",null,"","","","","","",null,"","","","","","",null,"","","","","",null,"","","",null,null,null,null,null,null,null,null,null,null,null,null,null,null,null,null,null,null,null,null,0.5]
[101,"","","","","","","","","","","","","","","",null,"","","","","","",null,"","","","","","",null,"","","","","",null,"","","",null,null,null,null,null,null,null,null,null,null,null,null,null,null,null,null,null,null,null,null,0.5]
[102,"","","","","","","","","","","","","","","",null,"","","","","","",null,"","","","","","",null,"","","","","",null,"","","",null,null,null,null,null,null,null,null,null,null,null,null,null,null,null,null,null,null,null,null,0.5]
[103,"","","","","","","","","","","","","","","",null,"","","","","","",null,"","","","","","",null,"","","","","",null,"","","",null,null,null,null,null,null,null,null,null,null,null,null,null,null,null,null,null,null,null,null,0.5]
[104,"","","","","","","","","","","","","","","",null,"","","","","","",null,"","","","","","",null,"","","","","",null,"","","",null,null,null,null,null,null,null,null,null,null,null,null,null,null,null,null,null,null,null,null,0.5]
[105,"","","","","","","","","","","","","","","",null,"","","","","","",null,"","","","","","",null,"","","","","",null,"","","",null,null,null,null,null,null,null,null,null,null,null,null,null,null,null,null,null,null,null,null,0.5]
[106,"","","","","","","","","","","","","","","",null,"","","","","","",null,"","","","","","",null,"","","","","",null,"","","",null,null,null,null,null,null,null,null,null,null,null,null,null,null,null,null,null,null,null,null,0.5]
[107,"","","","","","","","","","","","","","","",null,"","","","","","",null,"","","","","","",null,"","","","","",null,"","","",null,null,null,null,null,null,null,null,null,null,null,null,null,null,null,null,null,null,null,null,0.5]
[108,"","","","","","","","","","","","","","","",null,"","","","","","",null,"","","","","","",null,"","","","","",null,"","","",null,null,null,null,null,null,null,null,null,null,null,null,null,null,null,null,null,null,null,null,0.5]
[109,"","","","","","","","","","","","","","","",null,"","","","","","",null,"","","","","","",null,"","","","","",null,"","","",null,null,null,null,null,null,null,null,null,null,null,null,null,null,null,null,null,null,null,null,0.5]
[110,"","","","","","","","","","","","","","","",null,"","","","","","",null,"","","","","","",null,"","","","","",null,"","","",null,null,null,null,null,null,null,null,null,null,null,null,null,null,null,null,null,null,null,null,0.5]
[111,"","","","","","","","","","","","","","","",null,"","","","","","",null,"","","","","","",null,"","","","","",null,"","","",null,null,null,null,null,null,null,null,null,null,null,null,null,null,null,null,null,null,null,null,0.5]
[112,"","","","","","","","","","","","","","","",null,"","","","","","",null,"","","","","","",null,"","","","","",null,"","","",null,null,null,null,null,null,null,null,null,null,null,null,null,null,null,null,null,null,null,null,0.5]
[113,"","","","","","","","","","","","","","","",null,"","","","","","",null,"","","","","","",null,"","","","","",null,"","","",null,null,null,null,null,null,null,null,null,null,null,null,null,null,null,null,null,null,null,null,0.5]
[114,"","","","","","","","","","","","","","","",null,"","","","","","",null,"","","","","","",null,"","","","","",null,"","","",null,null,null,null,null,null,null,null,null,null,null,null,null,null,null,null,null,null,null,null,0.5]
[115,"","","","","","","","","","","","","","","",null,"","","","","","",null,"","","","","","",null,"","","","","",null,"","","",null,null,null,null,null,null,null,null,null,null,null,null,null,null,null,null,null,null,null,null,0.5]
[116,"","","","","","","","","","","","","","","",null,"","","","","","",null,"","","","","","",null,"","","","","",null,"","","",null,null,null,null,null,null,null,null,null,null,null,null,null,null,null,null,null,null,null,null,0.5]
[117,"","","","","","","","","","","","","","","",null,"","","","","","",null,"","","","","","",null,"","","","","",null,"","","",null,null,null,null,null,null,null,null,null,null,null,null,null,null,null,null,null,null,null,null,0.5]
[118,"","","","","","","","","","","","","","","",null,"","","","","","",null,"","","","","","",null,"","","","","",null,"","","",null,null,null,null,null,null,null,null,null,null,null,null,null,null,null,null,null,null,null,null,0.5]
[119,"","","","","","","","","","","","","","","",null,"","","","","","",null,"","","","","","",null,"","","","","",null,"","","",null,null,null,null,null,null,null,null,null,null,null,null,null,null,null,null,null,null,null,null,0.5]
[120,"","","","","","","","","","","","","","","",null,"","","","","","",null,"","","","","","",null,"","","","","",null,"","","",null,null,null,null,null,null,null,null,null,null,null,null,null,null,null,null,null,null,null,null,0.5]
[121,"","","","","","","","","","","","","","","",null,"","","","","","",null,"","","","","","",null,"","","","","",null,"","","",null,null,null,null,null,null,null,null,null,null,null,null,null,null,null,null,null,null,null,null,0.5]
[122,"","","","","","","","","","","","","","","",null,"","","","","","",null,"","","","","","",null,"","","","","",null,"","","",null,null,null,null,null,null,null,null,null,null,null,null,null,null,null,null,null,null,null,null,0.5]
[123,"","","","","","","","","","","","","","","",null,"","","","","","",null,"","","","","","",null,"","","","","",null,"","","",null,null,null,null,null,null,null,null,null,null,null,null,null,null,null,null,null,null,null,null,0.5]
[124,"","","","","","","","","","","","","","","",null,"","","","","","",null,"","","","","","",null,"","","","","",null,"","","",null,null,null,null,null,null,null,null,null,null,null,null,null,null,null,null,null,null,null,null,0.5]
[125,"","","","","","","","","","","","","","","",null,"","","","","","",null,"","","","","","",null,"","","","","",null,"","","",null,null,null,null,null,null,null,null,null,null,null,null,null,null,null,null,null,null,null,null,0.5]
[126,"","","","","","","","","","","","","","","",null,"","","","","","",null,"","","","","","",null,"","","","","",null,"","","",null,null,null,null,null,null,null,null,null,null,null,null,null,null,null,null,null,null,null,null,0.5]
[127,"","","","","","","","","","","","","","","",null,"","","","","","",null,"","","","","","",null,"","","","","",null,"","","",null,null,null,null,null,null,null,null,null,null,null,null,null,null,null,null,null,null,null,null,0.5]
[128,"","","","","","","","","","","","","","","",null,"","","","","","",null,"","","","","","",null,"","","","","",null,"","","",null,null,null,null,null,null,null,null,null,null,null,null,null,null,null,null,null,null,null,null,0.5]
[129,"","","","","","","","","","","","","","","",null,"","","","","","",null,"","","","","","",null,"","","","","",null,"","","",null,null,null,null,null,null,null,null,null,null,null,null,null,null,null,null,null,null,null,null,0.5]
[130,"","","","","","","","","","","","","","","",null,"","","","","","",null,"","","","","","",null,"","","","","",null,"","","",null,null,null,null,null,null,null,null,null,null,null,null,null,null,null,null,null,null,null,null,0.5]
[131,"","","","","","","","","","","","","","","",null,"","","","","","",null,"","","","","","",null,"","","","","",null,"","","",null,null,null,null,null,null,null,null,null,null,null,null,null,null,null,null,null,null,null,null,0.5]
[132,"","","","","","","","","","","","","","","",null,"","","","","","",null,"","","","","","",null,"","","","","",null,"","","",null,null,null,null,null,null,null,null,null,null,null,null,null,null,null,null,null,null,null,null,0.5]
[133,"","","","","","","","","","","","","","","",null,"","","","","","",null,"","","","","","",null,"","","","","",null,"","","",null,null,null,null,null,null,null,null,null,null,null,null,null,null,null,null,null,null,null,null,0.5]
[134,"","","","","","","","","","","","","","","",null,"","","","","","",null,"","","","","","",null,"","","","","",null,"","","",null,null,null,null,null,null,null,null,null,null,null,null,null,null,null,null,null,null,null,null,0.5]
[135,"","","","","","","","","","","","","","","",null,"","","","","","",null,"","","","","","",null,"","","","","",null,"","","",null,null,null,null,null,null,null,null,null,null,null,null,null,null,null,null,null,null,null,null,0.5]
[136,"","","","","","","","","","","","","","","",null,"","","","","","",null,"","","","","","",null,"","","","","",null,"","","",null,null,null,null,null,null,null,null,null,null,null,null,null,null,null,null,null,null,null,null,0.5]
[137,"","","","","","","","","","","","","","","",null,"","","","","","",null,"","","","","","",null,"","","","","",null,"","","",null,null,null,null,null,null,null,null,null,null,null,null,null,null,null,null,null,null,null,null,0.5]
[138,"","","","","","","","","","","","","","","",null,"","","","","","",null,"","","","","","",null,"","","","","",null,"","","",null,null,null,null,null,null,null,null,null,null,null,null,null,null,null,null,null,null,null,null,0.5]
[139,"","","","","","","","","","","","","","","",null,"","","","","","",null,"","","","","","",null,"","","","","",null,"","","",null,null,null,null,null,null,null,null,null,null,null,null,null,null,null,null,null,null,null,null,0.5]
[140,"","","","","","","","","","","","","","","",null,"","","","","","",null,"","","","","","",null,"","","","","",null,"","","",null,null,null,null,null,null,null,null,null,null,null,null,null,null,null,null,null,null,null,null,0.5]
[141,"","","","","","","","","","","","","","","",null,"","","","","","",null,"","","","","","",null,"","","","","",null,"","","",null,null,null,null,null,null,null,null,null,null,null,null,null,null,null,null,null,null,null,null,0.5]
[142,"","","","","","","","","","","","","","","",null,"","","","","","",null,"","","","","","",null,"","","","","",null,"","","",null,null,null,null,null,null,null,null,null,null,null,null,null,null,null,null,null,null,null,null,0.5]
[143,"","","","","","","","","","","","","","","",null,"","","","","","",null,"","","","","","",null,"","","","","",null,"","","",null,null,null,null,null,null,null,null,null,null,null,null,null,null,null,null,null,null,null,null,0.5]
[144,"","","","","","","","","","","","","","","",null,"","","","","","",null,"","","","","","",null,"","","","","",null,"","","",null,null,null,null,null,null,null,null,null,null,null,null,null,null,null,null,null,null,null,null,0.5]
[145,"","","","","","","","","","","","","","","",null,"","","","","","",null,"","","","","","",null,"","","","","",null,"","","",null,null,null,null,null,null,null,null,null,null,null,null,null,null,null,null,null,null,null,null,0.5]
[146,"","","","","","","","","","","","","","","",null,"","","","","","",null,"","","","","","",null,"","","","","",null,"","","",null,null,null,null,null,null,null,null,null,null,null,null,null,null,null,null,null,null,null,null,0.5]
[147,"","","","","","","","","","","","","","","",null,"","","","","","",null,"","","","","","",null,"","","","","",null,"","","",null,null,null,null,null,null,null,null,null,null,null,null,null,null,null,null,null,null,null,null,0.5]
[148,"","","","","","","","","","","","","","","",null,"","","","","","",null,"","","","","","",null,"","","","","",null,"","","",null,null,null,null,null,null,null,null,null,null,null,null,null,null,null,null,null,null,null,null,0.5]
[149,"","","","","","","","","","","","","","","",null,"","","","","","",null,"","","","","","",null,"","","","","",null,"","","",null,null,null,null,null,null,null,null,null,null,null,null,null,null,null,null,null,null,null,null,0.5]
[150,"","","","","","","","","","","","","","","",null,"","","","","","",null,"","","","","","",null,"","","","","",null,"","","",null,null,null,null,null,null,null,null,null,null,null,null,null,null,null,null,null,null,null,null,0.5]
[151,"","","","","","","","","","","","","","","",null,"","","","","","",null,"","","","","","",null,"","","","","",null,"","","",null,null,null,null,null,null,null,null,null,null,null,null,null,null,null,null,null,null,null,null,0.5]
[152,"","","","","","","","","","","","","","","",null,"","","","","","",null,"","","","","","",null,"","","","","",null,"","","",null,null,null,null,null,null,null,null,null,null,null,null,null,null,null,null,null,null,null,null,0.5]
[153,"","","","","","","","","","","","","","","",null,"","","","","","",null,"","","","","","",null,"","","","","",null,"","","",null,null,null,null,null,null,null,null,null,null,null,null,null,null,null,null,null,null,null,null,0.5]
[154,"","","","","","","","","","","","","","","",null,"","","","","","",null,"","","","","","",null,"","","","","",null,"","","",null,null,null,null,null,null,null,null,null,null,null,null,null,null,null,null,null,null,null,null,0.5]
[155,"","","","","","","","","","","","","","","",null,"","","","","","",null,"","","","","","",null,"","","","","",null,"","","",null,null,null,null,null,null,null,null,null,null,null,null,null,null,null,null,null,null,null,null,0.5]
[156,"","","","","","","","","","","","","","","",null,"","","","","","",null,"","","","","","",null,"","","","","",null,"","","",null,null,null,null,null,null,null,null,null,null,null,null,null,null,null,null,null,null,null,null,0.5]
[157,"","","","","","","","","","","","","","","",null,"","","","","","",null,"","","","","","",null,"","","","","",null,"","","",null,null,null,null,null,null,null,null,null,null,null,null,null,null,null,null,null,null,null,null,0.5]
[158,"","","","","","","","","","","","","","","",null,"","","","","","",null,"","","","","","",null,"","","","","",null,"","","",null,null,null,null,null,null,null,null,null,null,null,null,null,null,null,null,null,null,null,null,0.5]
[159,"","","","","","","","","","","","","","","",null,"","","","","","",null,"","","","","","",null,"","","","","",null,"","","",null,null,null,null,null,null,null,null,null,null,null,null,null,null,null,null,null,null,null,null,0.5]
[160,"","","","","","","","","","","","","","","",null,"","","","","","",null,"","","","","","",null,"","","","","",null,"","","",null,null,null,null,null,null,null,null,null,null,null,null,null,null,null,null,null,null,null,null,0.5]
[161,"","","","","","","","","","","","","","","",null,"","","","","","",null,"","","","","","",null,"","","","","",null,"","","",null,null,null,null,null,null,null,null,null,null,null,null,null,null,null,null,null,null,null,null,0.5]
[162,"","","","","","","","","","","","","","","",null,"","","","","","",null,"","","","","","",null,"","","","","",null,"","","",null,null,null,null,null,null,null,null,null,null,null,null,null,null,null,null,null,null,null,null,0.5]
[163,"","","","","","","","","","","","","","","",null,"","","","","","",null,"","","","","","",null,"","","","","",null,"","","",null,null,null,null,null,null,null,null,null,null,null,null,null,null,null,null,null,null,null,null,0.5]
[164,"","","","","","","","","","","","","","","",null,"","","","","","",null,"","","","","","",null,"","","","","",null,"","","",null,null,null,null,null,null,null,null,null,null,null,null,null,null,null,null,null,null,null,null,0.5]
[165,"","","","","","","","","","","","","","","",null,"","","","","","",null,"","","","","","",null,"","","","","",null,"","","",null,null,null,null,null,null,null,null,null,null,null,null,null,null,null,null,null,null,null,null,0.5]
[166,"","","","","","","","","","","","","","","",null,"","","","","","",null,"","","","","","",null,"","","","","",null,"","","",null,null,null,null,null,null,null,null,null,null,null,null,null,null,null,null,null,null,null,null,0.5]
[167,"","","","","","","","","","","","","","","",null,"","","","","","",null,"","","","","","",null,"","","","","",null,"","","",null,null,null,null,null,null,null,null,null,null,null,null,null,null,null,null,null,null,null,null,0.5]
[168,"","","","","","","","","","","","","","","",null,"","","","","","",null,"","","","","","",null,"","","","","",null,"","","",null,null,null,null,null,null,null,null,null,null,null,null,null,null,null,null,null,null,null,null,0.5]
[169,"","","","","","","","","","","","","","","",null,"","","","","","",null,"","","","","","",null,"","","","","",null,"","","",null,null,null,null,null,null,null,null,null,null,null,null,null,null,null,null,null,null,null,null,0.5]
[170,"","","","","","","","","","","","","","","",null,"","","","","","",null,"","","","","","",null,"","","","","",null,"","","",null,null,null,null,null,null,null,null,null,null,null,null,null,null,null,null,null,null,null,null,0.5]
[171,"","","","","","","","","","","","","","","",null,"","","","","","",null,"","","","","","",null,"","","","","",null,"","","",null,null,null,null,null,null,null,null,null,null,null,null,null,null,null,null,null,null,null,null,0.5]
[172,"","","","","","","","","","","","","","","",null,"","","","","","",null,"","","","","","",null,"","","","","",null,"","","",null,null,null,null,null,null,null,null,null,null,null,null,null,null,null,null,null,null,null,null,0.5]
[173,"","","","","","","","","","","","","","","",null,"","","","","","",null,"","","","","","",null,"","","","","",null,"","","",null,null,null,null,null,null,null,null,null,null,null,null,null,null,null,null,null,null,null,null,0.5]
[174,"","","","","","","","","","","","","","","",null,"","","","","","",null,"","","","","","",null,"","","","","",null,"","","",null,null,null,null,null,null,null,null,null,null,null,null,null,null,null,null,null,null,null,null,0.5]
[175,"","","","","","","","","","","","","","","",null,"","","","","","",null,"","","","","","",null,"","","","","",null,"","","",null,null,null,null,null,null,null,null,null,null,null,null,null,null,null,null,null,null,null,null,0.5]
[176,"","","","","","","","","","","","","","","",null,"","","","","","",null,"","","","","","",null,"","","","","",null,"","","",null,null,null,null,null,null,null,null,null,null,null,null,null,null,null,null,null,null,null,null,0.5]
[177,"","","","","","","","","","","","","","","",null,"","","","","","",null,"","","","","","",null,"","","","","",null,"","","",null,null,null,null,null,null,null,null,null,null,null,null,null,null,null,null,null,null,null,null,0.5]
[178,"","","","","","","","","","","","","","","",null,"","","","","","",null,"","","","","","",null,"","","","","",null,"","","",null,null,null,null,null,null,null,null,null,null,null,null,null,null,null,null,null,null,null,null,0.5]
[179,"","","","","","","","","","","","","","","",null,"","","","","","",null,"","","","","","",null,"","","","","",null,"","","",null,null,null,null,null,null,null,null,null,null,null,null,null,null,null,null,null,null,null,null,0.5]
[180,"","","","","","","","","","","","","","","",null,"","","","","","",null,"","","","","","",null,"","","","","",null,"","","",null,null,null,null,null,null,null,null,null,null,null,null,null,null,null,null,null,null,null,null,0.5]
[181,"","","","","","","","","","","","","","","",null,"","","","","","",null,"","","","","","",null,"","","","","",null,"","","",null,null,null,null,null,null,null,null,null,null,null,null,null,null,null,null,null,null,null,null,0.5]
[182,"","","","","","","","","","","","","","","",null,"","","","","","",null,"","","","","","",null,"","","","","",null,"","","",null,null,null,null,null,null,null,null,null,null,null,null,null,null,null,null,null,null,null,null,0.5]
[183,"","","","","","","","","","","","","","","",null,"","","","","","",null,"","","","","","",null,"","","","","",null,"","","",null,null,null,null,null,null,null,null,null,null,null,null,null,null,null,null,null,null,null,null,0.5]
[184,"","","","","","","","","","","","","","","",null,"","","","","","",null,"","","","","","",null,"","","","","",null,"","","",null,null,null,null,null,null,null,null,null,null,null,null,null,null,null,null,null,null,null,null,0.5]
[185,"","","","","","","","","","","","","","","",null,"","","","","","",null,"","","","","","",null,"","","","","",null,"","","",null,null,null,null,null,null,null,null,null,null,null,null,null,null,null,null,null,null,null,null,0.5]
[186,"","","","","","","","","","","","","","","",null,"","","","","","",null,"","","","","","",null,"","","","","",null,"","","",null,null,null,null,null,null,null,null,null,null,null,null,null,null,null,null,null,null,null,null,0.5]
[187,"","","","","","","","","","","","","","","",null,"","","","","","",null,"","","","","","",null,"","","","","",null,"","","",null,null,null,null,null,null,null,null,null,null,null,null,null,null,null,null,null,null,null,null,0.5]
[188,"","","","","","","","","","","","","","","",null,"","","","","","",null,"","","","","","",null,"","","","","",null,"","","",null,null,null,null,null,null,null,null,null,null,null,null,null,null,null,null,null,null,null,null,0.5]
[189,"","","","","","","","","","","","","","","",null,"","","","","","",null,"","","","","","",null,"","","","","",null,"","","",null,null,null,null,null,null,null,null,null,null,null,null,null,null,null,null,null,null,null,null,0.5]
[190,"","","","","","","","","","","","","","","",null,"","","","","","",null,"","","","","","",null,"","","","","",null,"","","",null,null,null,null,null,null,null,null,null,null,null,null,null,null,null,null,null,null,null,null,0.5]
[191,"","","","","","","","","","","","","","","",null,"","","","","","",null,"","","","","","",null,"","","","","",null,"","","",null,null,null,null,null,null,null,null,null,null,null,null,null,null,null,null,null,null,null,null,0.5]
[192,"","","","","","","","","","","","","","","",null,"","","","","","",null,"","","","","","",null,"","","","","",null,"","","",null,null,null,null,null,null,null,null,null,null,null,null,null,null,null,null,null,null,null,null,0.5]
[193,"","","","","","","","","","","","","","","",null,"","","","","","",null,"","","","","","",null,"","","","","",null,"","","",null,null,null,null,null,null,null,null,null,null,null,null,null,null,null,null,null,null,null,null,0.5]
[194,"","","","","","","","","","","","","","","",null,"","","","","","",null,"","","","","","",null,"","","","","",null,"","","",null,null,null,null,null,null,null,null,null,null,null,null,null,null,null,null,null,null,null,null,0.5]
[195,"","","","","","","","","","","","","","","",null,"","","","","","",null,"","","","","","",null,"","","","","",null,"","","",null,null,null,null,null,null,null,null,null,null,null,null,null,null,null,null,null,null,null,null,0.5]
[196,"","","","","","","","","","","","","","","",null,"","","","","","",null,"","","","","","",null,"","","","","",null,"","","",null,null,null,null,null,null,null,null,null,null,null,null,null,null,null,null,null,null,null,null,0.5]
[197,"","","","","","","","","","","","","","","",null,"","","","","","",null,"","","","","","",null,"","","","","",null,"","","",null,null,null,null,null,null,null,null,null,null,null,null,null,null,null,null,null,null,null,null,0.5]
[198,"","","","","","","","","","","","","","","",null,"","","","","","",null,"","","","","","",null,"","","","","",null,"","","",null,null,null,null,null,null,null,null,null,null,null,null,null,null,null,null,null,null,null,null,0.5]
[199,"","","","","","","","","","","","","","","",null,"","","","","","",null,"","","","","","",null,"","","","","",null,"","","",null,null,null,null,null,null,null,null,null,null,null,null,null,null,null,null,null,null,null,null,0.5]
[200,"","","","","","","","","","","","","","","",null,"","","","","","",null,"","","","","","",null,"","","","","",null,"","","",null,null,null,null,null,null,null,null,null,null,null,null,null,null,null,null,null,null,null,null,0.5]
[201,"","","","","","","","","","","","","","","",null,"","","","","","",null,"","","","","","",null,"","","","","",null,"","","",null,null,null,null,null,null,null,null,null,null,null,null,null,null,null,null,null,null,null,null,0.5]
["REPARACIÓN","","","","","","","","","","","","","","","",null,"","","","","","",null,"","","","","","",null,"","","","","",null,"","","",null,null,null,null,null,null,null,null,null,null,null,null,null,null,null,null,null,null,null,null,0.5]
[null,null,null,null,null,null,null,null,null,null,null,null,null,null,null,null,null,null,null,null,null,null,null,null,null,null,null,null,null,"",null,"","",""]
[null,null,null,null,null,null,null,null,null,null,null,null,null,null,null,null,null,null,null,null,null,null,null,null,null,null,null,null,null,"",null,"","",""]

{"sheet":"Categorías","index":8,"n_rows":41,"n_cols":6,"rows_kept":41,"cut":false,"hidden":false,"merged":[]}
[null,null,null,"O"]
[null,"HOJA","ETAPAS","VELOCIDAD","CLAVE","NOMBRE"]
[null,"GENERAL 1",1,"CONTROLADA","PR I","PROMOCIONAL INFANTIL"]
[null,"GENERAL 1",1,"LIBRE","PR M","PROMOCIONAL MENORES"]
[null,"GENERAL 1",1,"LIBRE","PR J","PROMOCIONALL JUVENIL"]
[null,"GENERAL 1",1,"LIBRE","PR A","PROMOCIONAL ABIERTA"]
[null,"GENERAL 1",1,"LIBRE","PR MA","PROMOCIONAL MASTER"]
[null,"GENERAL 1",1,"LIBRE","PR A M","PROMOCIONAL ADULTO & MENOR"]
[null,"GENERAL 2",2,"LIBRE","PR 2 M","PROMOCIONAL 2 ETAPAS MENORES"]
[null,"GENERAL 2",2,"LIBRE","PR 2 J","PROMOCIONAL 2 ETAPAS JUVENIL"]
[null,"GENERAL 2",2,"LIBRE","PR 2 A","PROMOCIONAL 2 ETAPAS ABIERTA"]
[null,"GENERAL 2",2,"LIBRE","PR 2 MA","PROMOCIONAL 2 ETAPAS MASTER"]
[null,"GENERAL 2",2,"LIBRE","PR 2 A M","PROMOCIONAL 2 ETAPAS ADULTO&MENOR"]
[null,"GENERAL 2",2,"CONTROLADA","C1 M C","CHASQUI 1 MENORES VELOCIDAD CONTROLADA (NOVICIOS)"]
[null,"GENERAL 2",2,"CONTROLADA","C1 J C","CHASQUI 1 JUVENIL VELOCIDAD CONTROLADA (NOVICIOS)"]
[null,"GENERAL 2",2,"CONTROLADA","C1 A C","CHASQUI 1 ABIERTA VELOCIDAD CONTROLADA (NOVICIOS)"]
[null,"GENERAL 2",2,"LIBRE","C1 J L","CHASQUI 1 JUVENIL VELOCIDAD LIBRE (ELITE)"]
[null,"GENERAL 2",2,"LIBRE","C1 A L","CHASQUI 1 ABIERTA VELOCIDAD LIBRE (ELITE)"]
[null,"GENERAL 2",2,"LIBRE","C1 M L","CHASQUI 1 MASTER VELOCIDAD LIBRE (ELITE)"]
[null,"GENERAL 3",3,"CONTROLADA","C1 M C S","CHASQUI 1 MASTER VELOCIDAD CONTROLADA SECENTA KM (NOVICIOS)"]
[null,"GENERAL 3",3,"CONTROLADA","C1 J C S","CHASQUI 1 JUVENIL VELOCIDAD CONTROLADA SECENTA KM (NOVICIOS)"]
[null,"GENERAL 3",3,"CONTROLADA","C1 A C S","CHASQUI 1 ABIERTA VELOCIDAD CONTROLADA SECENTA KM (NOVICIOS)"]
[null,"GENERAL 3",3,"LIBRE","C1 J L S","CHASQUI 1 JUVENIL VELOCIDAD LIBRE SECENTA (ELITE)"]
[null,"GENERAL 3",3,"LIBRE","C1 A L S","CHASQUI 1 ABIERTA VELOCIDAD LIBRE SECENTA (ELITE)"]
[null,"GENERAL 3",3,"LIBRE","C1 M L S","CHASQUI 1 MASTER VELOCIDAD LIBRESECENTA (ELITE)"]
[null,"GENERAL 3C",3,"CONTROLADA","C2 J C 3","CHASQUI 2 JUVENIL VELOCIDAD CONTROLADA 3 ETAPAS (NOVICIOS)"]
[null,"GENERAL 3C",3,"CONTROLADA","C2 A C 3","CHASQUI 2 ABIERTA VELOCIDAD CONTROLADA 3 ETAPAS (NOVICIOS)"]
[null,"GENERAL 3L",3,"LIBRE","C2 J L 3","CHASQUI 2 JUVENIL VELOCIDAD LIBRE 3 ETAPAS (ELITE)"]
[null,"GENERAL 3L",3,"LIBRE","C2 A L 3","CHASQUI 2 ABIERTA VELOCIDAD LIBRE 3 ETAPAS (ELITE)"]
[null,"GENERAL 4",4,"CONTROLADA","C2 M C","CHASQUI 2 MASTER VELOCIDAD CONTROLADA (NOVICIOS)"]
[null,"GENERAL 4",4,"CONTROLADA","C2 J C","CHASQUI 2 JUVENIL VELOCIDAD CONTROLADA (NOVICIOS)"]
[null,"GENERAL 4",4,"CONTROLADA","C2 A C","CHASQUI 2 ABIERTA VELOCIDAD CONTROLADA (NOVICIOS)"]
[null,"GENERAL 4L",4,"LIBRE","C2 M L","CHASQUI 2 MASTER VELOCIDAD LIBRE (ELITE)"]
[null,"GENERAL 4L",4,"LIBRE","C2 J L","CHASQUI 2 JUVENIL VELOCIDAD LIBRE (ELITE)"]
[null,"GENERAL 4L",4,"LIBRE","C2 A L","CHASQUI 2 ABIERTA VELOCIDAD LIBRE (ELITE)"]
[null,"GENERAL 100",4,"LIBRE","C2 J L 1","CHASQUI 2 JUVENIL VELOCIDAD LIBRE 100 KM (ELITE)"]
[null,"GENERAL 100",4,"LIBRE","C2 A L 1","CHASQUI 2 ABIERTA VELOCIDAD LIBRE 100 (ELITE)"]
[null,"GENERAL 100",4,"LIBRE","C3 J L 4","CHASQUI 3 JUVENIL VELOCIDAD LIBRE 4 ETAPAS(ELITE)"]
[null,"GENERAL 100",4,"LIBRE","C3 A L 4","CHASQUI 3 ABIERTA VELOCIDAD LIBRE 4 ETAPAS (ELITE)"]
[null,"GENERAL 5",5,"LIBRE","C3 J L","CHASQUI 3 JUVENIL VELOCIDAD LIBRE ELITE)"]
[null,"GENERAL 5",5,"LIBRE","C3 A L","CHASQUI 3 ABIERTA VELOCIDAD LIBRE (ELITE)"]